Workbook

Sheet Kuntakortti
A1: Valtiovarainministeriö/Kunta- ja aluehallinto-osasto,25.2.2015 | C1: Valitse KY
A2: KUNTAYHTYMIEN TALOUSARVIOT 2014-2015 JA TALOUSSUUNNITELMAT 2016-2017 | C2: valikosta:
A4: =INDEX(Luvut!$A$3:'Luvut'!$A$305,$A$7) -> Kuntayhtymät yhteensä | C4: 2014 | F4: 2015 | I4: 2016 | L4: 2017
A7: 1
C20: 1000 | F20: 1000 | H20: muut.% | I20: 1000 | K20: muut.% | L20: 1000 | N20: muut.%
A22: Henkilöstömenot (palkat+sivukulut) | C22: =VLOOKUP($A$4,Luvut!$A$3:$AX$305,14,FALSE) -> 6381220 | F22: =VLOOKUP($A$4,Luvut!$A$3:$EF$305,59,FALSE) -> 8151460 | H22: =((F22/C22)-1)*100 -> 27.74140368 | I22: =VLOOKUP($A$4,Luvut!$A$3:$EF$305,104,FALSE) -> 5963664 | K22: =((I22/F22)-1)*100 -> -26.83931467 | L22: =VLOOKUP($A$4,Luvut!$A$3:$HR$305,149,FALSE) -> 5931729 | N22: =((L22/I22)-1)*100 -> -0.5354929453
A23: Palvelujen ostot | C23: =VLOOKUP($A$4,Luvut!$A$3:$FZ$305,181,FALSE) -> 3536311 | F23: =VLOOKUP($A$4,Luvut!$A$3:$FZ$305,182,FALSE) -> 4422669 | H23: =((F23/C23)-1)*100 -> 25.06448104 | I23: =VLOOKUP($A$4,Luvut!$A$3:$GA$305,183,FALSE) -> 5555329 | K23: =((I23/F23)-1)*100 -> 25.61032716 | L23: =VLOOKUP($A$4,Luvut!$A$3:$HR$305,184,FALSE) -> 4690769 | N23: =((L23/I23)-1)*100 -> -15.56271465
A24: Toimintatuotot, sis. valmistus omaan käyt. | C24: =VLOOKUP($A$4,Luvut!$A$3:$AT$305,15,FALSE) -> 12993238 | F24: =VLOOKUP($A$4,Luvut!$A$3:$EF$305,60,FALSE) -> 15934045 | H24: 22.63336514 | I24: =VLOOKUP($A$4,Luvut!$A$3:$EF$305,105,FALSE) -> 13065817 | K24: -18.00062696 | L24: =VLOOKUP($A$4,Luvut!$A$3:$HR$305,150,FALSE) -> 13127376 | N24: 0.4711454324
A25: Toimintakulut | C25: =VLOOKUP($A$4,Luvut!$A$3:$AT$305,16,FALSE) -> 12108644 | F25: =VLOOKUP($A$4,Luvut!$A$3:$EF$305,61,FALSE) -> 15066892 | H25: 24.43087764 | I25: =VLOOKUP($A$4,Luvut!$A$3:$EF$305,106,FALSE) -> 12011072 | K25: -20.28168782 | L25: =VLOOKUP($A$4,Luvut!$A$3:$HR$305,151,FALSE) -> 12151937 | N25: 1.172792903
A26: Toimintakate | C26: =VLOOKUP($A$4,Luvut!$A$3:$AT$305,17,FALSE) -> 884594 | F26: =VLOOKUP($A$4,Luvut!$A$3:$EF$305,62,FALSE) -> 867153 | H26: -1.971638967 | I26: =VLOOKUP($A$4,Luvut!$A$3:$EF$305,107,FALSE) -> 1054745 | K26: 21.63309128 | L26: =VLOOKUP($A$4,Luvut!$A$3:$HR$305,152,FALSE) -> 975439 | N26: -7.51897378
A36: Vuosikate | C36: =VLOOKUP($A$4,Luvut!$A$3:$AT$305,24,FALSE) -> 531520 | F36: =VLOOKUP($A$4,Luvut!$A$3:$EF$305,69,FALSE) -> 520927 | I36: =VLOOKUP($A$4,Luvut!$A$3:$EF$305,114,FALSE) -> 546817 | L36: =VLOOKUP($A$4,Luvut!$A$3:$HR$305,159,FALSE) -> 644403
A38: Suunnitelman mukaiset | C38: =VLOOKUP($A$4,Luvut!$A$3:$AT$305,25,FALSE) -> 559845 | F38: =VLOOKUP($A$4,Luvut!$A$3:$EF$305,70,FALSE) -> 568695 | H38: 1.580794684 | I38: =VLOOKUP($A$4,Luvut!$A$3:$EF$305,115,FALSE) -> 590120 | K38: 3.767397287 | L38: =VLOOKUP($A$4,Luvut!$A$3:$HR$305,160,FALSE) -> 605986 | N38: 2.688605707
A39: poistot ja arvonalennukset
A52: Investoinnit, netto | C52: =C53+C54+C55 -> -886379 | F52: =F53+F54+F55 -> -950789 | H52: 7.266643276 | I52: =I53+I54+I55 -> -857039 | K52: -9.860231871 | L52: =L53+L54+L55 -> -846926 | N52: =((L52/I52)-1)*100 -> -1.179992976
A53: - Investointimenot | C53: =VLOOKUP($A$4,Luvut!$A$3:$HR$305,188,FALSE) -> -920807 | F53: =VLOOKUP($A$4,Luvut!$A$3:$HR$305,191,FALSE) -> -972820 | H53: 5.648632124 | I53: =VLOOKUP($A$4,Luvut!$A$3:$HR$305,194,FALSE) -> -899109 | K53: -7.577044057 | L53: =VLOOKUP($A$4,Luvut!$A$3:$HR$305,197,FALSE) -> -906749 | N53: 0.8497301217
A54: + Rahoitusosuudet investointimenoihin | C54: =VLOOKUP($A$4,Luvut!$A$3:$HR$305,189,FALSE) -> 23491 | F54: =VLOOKUP($A$4,Luvut!$A$3:$HR$305,192,FALSE) -> 18566 | H54: -20.96547614 | I54: =VLOOKUP($A$4,Luvut!$A$3:$HR$305,195,FALSE) -> 39040 | K54: 110.2768502 | L54: =VLOOKUP($A$4,Luvut!$A$3:$HR$305,198,FALSE) -> 59193 | N54: 51.62141393
A55: + Investointihyödykkeiden luovutustulot | C55: =VLOOKUP($A$4,Luvut!$A$3:$HR$305,190,FALSE) -> 10937 | F55: =VLOOKUP($A$4,Luvut!$A$3:$HR$305,193,FALSE) -> 3465 | H55: =((F55/C55)-1)*100 -> -68.31855171 | I55: =VLOOKUP($A$4,Luvut!$A$3:$HR$305,196,FALSE) -> 3030 | K55: -12.55411255 | L55: =VLOOKUP($A$4,Luvut!$A$3:$HR$305,199,FALSE) -> 630 | N55: -79.20792079
A67: Lainakanta | C67: =VLOOKUP($A$4,Luvut!$A$3:$HE$305,206,FALSE) -> 3113782 | F67: =VLOOKUP($A$4,Luvut!$A$3:$HE$305,210,FALSE) -> 3329350 | H67: =((F67/C67)-1)*100 -> 6.923028009 | I67: =VLOOKUP($A$4,Luvut!$A$3:$HO$305,214,FALSE) -> 3500671 | K67: =((I67/F67)-1)*100 -> 5.145779206 | L67: =VLOOKUP($A$4,Luvut!$A$3:$HO$305,218,FALSE) -> 3737032 | N67: =((L67/I67)-1)*100 -> 6.751876997
A73: Henkilöstön määrä | C73: =VLOOKUP($A$4,Luvut!$A$3:$HR$305,44,FALSE) -> 111747 | F73: =VLOOKUP($A$4,Luvut!$A$3:$HR$305,91,FALSE) -> 110593 | I73: =VLOOKUP($A$4,Luvut!$A$3:$HR$305,134,FALSE) -> 105959 | L73: =VLOOKUP($A$4,Luvut!$A$3:$HR$305,179,FALSE) -> 101995
A75: HUOM: Malmin kiinteistöt, Pohjois-Karjalan maakuntaliitto, Kuntayhtymä Raision-Naantalin vesilaitos ja Kainuun Jätehuollon ky eivät lähettäneet TA- ja TP-tietoja
A76: Lähde: Kunnat ja kuntayhtymät

Sheet Luvut
A1: 1 | B1: 2 | C1: hakee muualta | D1: 92 | E1: 93 | F1: 94 | G1: vanha | H1: 96 | I1: 97 | J1: 98 | K1: 99 | L1: 100 | M1: 101 | N1: 14 | O1: 15 | P1: 16 | Q1: 17 | R1: 18 | S1: 19 | U1: summana | X1: 24 | Y1: 25 | AI1: kaavasta | AQ1: 43 | AR1: 44 | AS1: kaavasta | AU1: 47 | AV1: hakee muualta | AZ1: vanha | BG1: 59 | BH1: 60 | BI1: 61 | BJ1: 62 | BK1: 63 | BL1: 64 | BN1: summana | BQ1: 69 | BR1: 70 | CJ1: 88 | CK1: kaavasta | CL1: 133 | CM1: 91 | CN1: 92 | CO1: hakee muualta | CP1: 92 | CQ1: 93 | CR1: 94 | CS1: vanha | CT1: 96 | CU1: 97 | CV1: 98 | CW1: 99 | CX1: 100 | CY1: 101 | CZ1: 104 | DA1: 105 | DB1: 106 | DC1: 107 | DD1: 108 | DE1: 109 | DG1: summana | DJ1: 114 | DK1: 115 | DU1: kaavasta | EC1: 133 | ED1: 134 | EE1: kaavasta | EF1: 133 | EG1: 137 | EJ1: 140 | ES1: 149 | ET1: 150 | EU1: 151 | EV1: 152 | EW1: 153 | EX1: 154 | FC1: 159 | FD1: 169 | FV1: 178 | FW1: 179 | FY1: 181 | FZ1: 182 | GA1: 183 | GB1: 184 | GF1: 188 | GG1: 189 | GH1: 190 | GI1: 191 | GJ1: 192 | GK1: 193 | GL1: 194 | GM1: 195 | GN1: 196 | GO1: 197 | GP1: 198 | GQ1: 199 | GR1: 2011 | GS1: 152 | GT1: 2012 | GU1: 154 | GV1: 2013 | GX1: 206 | HB1: 210 | HF1: 214 | HJ1: 218
A2: Kuntayhtymä | B2: Asukasluku 2014 | C2: Lainat e/asukas | D2: Lainanhoitokate | E2: Suhteellinen velkaantuneisuus-% | F2: Rahoitusvarallisuus, e/as | G2: Vuosikate | H2: Suunnitelman mukaiset poistot | I2: Tilikauden tulos | J2: Omavaraisuusaste, % | K2: Rahavarat e/as | L2: Kassan riittävyys, pv | M2: Kassasta maksut, €/as | N2: Henkilöstökulut 2014 | O2: Toimintatuotot | P2: Toimintakulut | Q2: Toimintakate | R2: Verotulot | S2: Valtionosuudet | T2: Alv-takaisinperintä | U2: Käyttökate | V2: Korkotuotot/-menot, netto | W2: Muut rahoitustuotot/-menot, netto (sis Osinkotuotot) | X2: Vuosikate | Y2: Sumu-poistot ja arvonalet | Z2: Satunnaiset tuotot | AA2: Satunnaiset kulut | AB2: Tilikauden tulos | AC2: Poistoeron lisäys(-) tai vähennys(+) | AD2: Varausten lisäys(-) tai vähennys(+) | AE2: Rahastojen lisäys(-) tai vähennys(+) | AF2: Tilikauden yli- tai alijäämä | AG2: Kumulat yli/alij | AH2: Tulorah (toiminnan rahavirta) | AI2: Investoinnit, netto | AJ2: Saamisten muutos (ent Pitkäaikaisten saamisten muutokset, netto) | AK2: Pitkäaikaisten lainojen vähennys | AL2: Toim ja inv rahavirta | AM2: Verotulot | AN2: Kunnallisvero | AO2: Osuus yhteisöveron tuotosta | AP2: Kiinteistövero | AQ2: Tuloveroprosentti | AR2: Henkilöstömäärä | AS2: Yhden veroprosentin tuotto 2006 | AT2: Sijoitus vuosikatteen mukaan | AU2: Asukasluku 2015 | AV2: Lainat e/asukas | AW2: Lainanhoitokate | AX2: Suhteellinen velkaantuneisuus-% | AY2: Rahoitusvarallisuus, e/as | AZ2: Vuosikate | BA2: Suunnitelman mukaiset poistot | BB2: Tilikauden tulos | BC2: Omavaraisuusaste, % | BD2: Rahavarat e/as | BE2: Kassan riittävyys, pv | BF2: Kassasta maksut, €/as | BG2: Henkilöstökulut 2015 | BH2: Toimintatuotot | BI2: Toimintakulut | BJ2: Toimintakate | BK2: Verotulot | BL2: Valtionosuudet | BM2: Alv-takaisinperintä | BN2: Käyttökate | BO2: Korkotuotot/-menot, netto | BP2: Muut rahoitustuotot/-menot, netto (sis Osinkotuotot) | BQ2: Vuosikate | BR2: Sumu-poistot ja arvonalet | BS2: Satu. tuotot | BT2: Satu. kulut | BU2: Tilikauden tulos | BV2: Poistoeron lisäys(-) tai vähennys(+) | BW2: Varausten lisäys(-) tai vähennys(+) | BX2: Rahastojen lisäys(-) tai vähennys(+) | BY2: Tilikauden yli- tai alijäämä | BZ2: Kumulat yli/alij | CA2: Tulorah (toiminnan rahavirta) | CB2: Investoinnit, netto | CC2: Saamisten muutos (ent Pitkäaikaisten saamisten muutokset, netto) | CD2: Pitkäaikaisten lainojen vähennys | CE2: Toim ja inv rahavirta | CF2: Verotulot | CG2: Kunnallisvero | CH2: Osuus yhteisöveron tuotosta | CI2: Kiinteistövero | CJ2: Tuloveroprosentti | CK2: Yhden veroprosentin tuotto 2006 | CL2: Sijoitus vuosikatteen mukaan | CM2: Henkilöstömäärä | CN2: Asukasluku 2016 | CO2: Lainat e/asukas | CP2: Lainanhoitokate | CQ2: Suhteellinen velkaantuneisuus-% | CR2: Rahoitusvarallisuus, e/as | CS2: Vuosikate | CT2: Suunnitelman mukaiset poistot | CU2: Tilikauden tulos | CV2: Omavaraisuusaste, % | CW2: Rahavarat e/as | CX2: Kassan riittävyys, pv | CY2: Kassasta maksut, €/as | CZ2: Henkilöstökulut 2016 | DA2: Toimintatuotot | DB2: Toimintakulut | DC2: Toimintakate | DD2: Verotulot | DE2: Valtionosuudet | DF2: Alv-takaisinperintä | DG2: Käyttökate | DH2: Korkotuotot/-menot, netto | DI2: Muut rahoitustuotot/-menot, netto (sis Osinkotuotot) | DJ2: Vuosikate | DK2: Sumu-poistot ja arvonalet | DL2: Satu. tuotot | DM2: Satu. kulut | DN2: Tilikauden tulos | DO2: Poistoeron lisäys(-) tai vähennys(+) | DP2: Varausten lisäys(-) tai vähennys(+) | DQ2: Rahastojen lisäys(-) tai vähennys(+) | DR2: Tilikauden yli- tai alijäämä | DS2: Kumulat yli/alij | DT2: Tulorah (toiminnan rahavirta) | DU2: Investoinnit, netto | DV2: Saamisten muutos (ent Pitkäaikaisten saamisten muutokset, netto) | DW2: Pitkäaikaisten lainojen vähennys | DX2: Toim ja inv rahavirta | DY2: Verotulot | DZ2: Kunnallisvero | EA2: Osuus yhteisöveron tuotosta | EB2: Kiinteistövero | EC2: Tuloveroprosentti | ED2: Henkilöstömäärä | EE2: Yhden veroprosentin tuotto 2006 | EF2: Sijoitus vuosikatteen mukaan | EG2: Asukasluku 2017 | EH2: Lainat e/asukas | EI2: Lainanhoitokate | EJ2: Suhteellinen velkaantuneisuus-% | EK2: Rahoitusvarallisuus, e/as | EL2: Vuosikate | EM2: Suunnitelman mukaiset poistot | EN2: Tilikauden tulos | EO2: Omavaraisuusaste, % | EP2: Rahavarat e/as | EQ2: Kassan riittävyys, pv | ER2: Kassasta maksut, €/as | ES2: Henkilöstökulut 2017 | ET2: Toimintatuotot | EU2: Toimintakulut | EV2: Toimintakate | EW2: Verotulot | EX2: Valtionosuudet | EY2: Alv-takaisinperintä | EZ2: Käyttökate | FA2: Korkotuotot/-menot, netto | FB2: Muut rahoitustuotot/-menot, netto (sis Osinkotuotot) | FC2: Vuosikate | FD2: Sumu-poistot ja arvonalet. | FE2: Satu. tuotot | FF2: Satu. kulut | FG2: Tilikauden tulos | FH2: Poistoeron lisäys(-) tai vähennys(+) | FI2: Varausten lisäys(-) tai vähennys(+) | FJ2: Rahastojen lisäys(-) tai vähennys(+) | FK2: Tilikauden yli- tai alijäämä | FL2: Kumulat yli/alij | FM2: Tulorah (toiminnan rahavirta) | FN2: Investoinnit, netto | FO2: Saamisten muutos (ent Pitkäaikaisten saamisten muutokset, netto) | FP2: Pitkäaikaisten lainojen vähennys | FQ2: Toim ja inv rahavirta | FR2: Verotulot | FS2: Kunnallisvero | FT2: Osuus yhteisöveron tuotosta | FU2: Kiinteistövero | FV2: Tuloveroprosentti | FW2: Henkilöstömäärä | FX2: Sijoitus vuosikatteen mukaan | FY2: Palvelujen ostot 2014 | FZ2: Palvelujen ostot 2015 | GA2: Palvelujen ostot 2016 | GB2: Palvelujen ostot 2017 | GC2: Harkvar2011 | GD2: Harkvar2012 | GE2: Harkvar2013 | GF2: Investointimenot 2014 | GG2: Rahoitusos. inv.menoihin | GH2: Inv.hyödykk. luovutustulot | GI2: Investointimenot 2015 | GJ2: Rahoitusos. inv.menoihin | GK2: Inv.hyödykkeiden luovutustulot | GL2: Investointimenot 2016 | GM2: Rahoitusos. inv.menoihin | GN2: Inv.hyödykkeiden luovutustulot | GO2: Investointimenot 2017 | GP2: Rahoitusos. inv.menoihin | GQ2: Inv.hyödykkeiden luovutustulot | GR2: Pitkäaikaisten lainojen lisäys | GS2: ± Lyhytaikaisten lainojen muutos | GT2: Pitkäaikaisten lainojen lisäys | GU2: ± Lyhytaikaisten lainojen muutos | GV2: Pitkäaikaisten lainojen lisäys | GW2: ± Lyhytaikaisten lainojen muutos | GX2: Lainakanta 2014 | GY2: josta pitkäaik | GZ2: josta lyhytaik | HA2: Lainasaamiset | HB2: Lainakanta 2015 | HC2: josta pitkäaik | HD2: josta lyhytaik | HE2: Lainasaamiset | HF2: Lainakanta 2016 | HG2: josta pitkäaik | HH2: josta lyhytaik | HI2: Lainasaamiset | HJ2: Lainakanta 2017
A3: Kuntayhtymät yhteensä | N3: 6381220 | O3: 12993238 | P3: 12108644 | Q3: 884594 | R3: 0 | S3: 0 | T3: 0 | U3: 0 | V3: 0 | W3: 0 | X3: 531520 | Y3: 559845 | Z3: 0 | AA3: 0 | AB3: 0 | AC3: 0 | AD3: 0 | AE3: 0 | AF3: 0 | AG3: 0 | AH3: 0 | AI3: 0 | AJ3: 0 | AK3: 0 | AL3: 0 | AM3: 0 | AN3: 0 | AO3: 0 | AP3: 0 | AQ3: 0 | AR3: 111747 | AS3: 0 | AT3: 22934 | AU3: 0 | AV3: 0 | AW3: -4273.063614 | AX3: 6464.6 | AY3: -292074 | AZ3: 0 | BA3: 0 | BB3: 0 | BC3: 7636.2 | BD3: 78461 | BE3: 3710 | BF3: 1071346.115 | BG3: 8151460 | BH3: 15934045 | BI3: 15066892 | BJ3: 867153 | BK3: 0 | BL3: 0 | BM3: 0 | BN3: 0 | BO3: 0 | BP3: 0 | BQ3: 520927 | BR3: 568695 | BS3: 0 | BT3: 0 | BU3: 0 | BV3: 0 | BW3: 0 | BX3: 0 | BY3: 0 | BZ3: 0 | CA3: 0 | CB3: 0 | CC3: 0 | CD3: 0 | CE3: 0 | CF3: 0 | CG3: 0 | CH3: 0 | CI3: 0 | CJ3: 0 | CK3: 0 | CL3: 0 | CM3: 110593 | CN3: 0 | CO3: 0 | CP3: 0 | CQ3: 0 | CR3: 0 | CS3: 0 | CT3: 0 | CU3: 0 | CV3: 0 | CW3: 0 | CX3: 0 | CY3: 0 | CZ3: 5963664 | DA3: 13065817 | DB3: 12011072 | DC3: 1054745 | DD3: 0 | DE3: 0 | DF3: 0 | DG3: 0 | DH3: 0 | DI3: 0 | DJ3: 546817 | DK3: 590120 | DL3: 0 | DM3: 0 | DN3: 0 | DO3: 0 | DP3: 0 | DQ3: 0 | DR3: 0 | DS3: 0 | DT3: 0 | DU3: 0 | DV3: 0 | DW3: 0 | DX3: 0 | DY3: 0 | DZ3: 0 | EA3: 0 | EB3: 0 | EC3: 0 | ED3: 105959 | EE3: 0 | EF3: 22124 | EG3: 0 | EH3: 0 | EI3: 0 | EJ3: 0 | EK3: 0 | EL3: 0 | EM3: 0 | EN3: 0 | EO3: 0 | EP3: 0 | EQ3: 0 | ER3: 0 | ES3: 5931729 | ET3: 13127376 | EU3: 12151937 | EV3: 975439 | EW3: 0 | EX3: 0 | EY3: 0 | EZ3: 0 | FA3: 0 | FB3: 0 | FC3: 644403 | FD3: 605986 | FE3: 0 | FF3: 0 | FG3: 0 | FH3: 0 | FI3: 0 | FJ3: 0 | FK3: 0 | FL3: 0 | FM3: 0 | FN3: 0 | FO3: 0 | FP3: 0 | FQ3: 0 | FR3: 0 | FS3: 0 | FT3: 0 | FU3: 0 | FV3: 0 | FW3: 101995 | FX3: 0 | FY3: 3536311 | FZ3: 4422669 | GA3: 5555329 | GB3: 4690769 | GC3: 29080 | GD3: 27790 | GE3: 29570 | GF3: -920807 | GG3: 23491 | GH3: 10937 | GI3: -972820 | GJ3: 18566 | GK3: 3465 | GL3: -899109 | GM3: 39040 | GN3: 3030 | GO3: -906749 | GP3: 59193 | GQ3: 630 | GR3: 0 | GS3: 0 | GT3: 0 | GU3: 0 | GV3: 0 | GW3: 0 | GX3: 3113782 | GY3: 0 | GZ3: 0 | HA3: 0 | HB3: 3329350 | HC3: 0 | HD3: 0 | HE3: 0 | HF3: 3500671 | HG3: 0 | HH3: 0 | HI3: 0 | HJ3: 3737032
A4: Helsingin ja Uudenmaan sairaanhoitopiirin ky. | B4: 17108 | D4: 0.7588319379 | E4: 44.9 | F4: -1980 | J4: 43.5 | K4: 212 | L4: 12 | M4: 6059.09543 | N4: 1112904 | O4: 1878404 | P4: 1757285 | Q4: 121119 | X4: 106564 | Y4: 106564 | AR4: 21926 | AT4: 199 | AW4: -0.4159336942 | AX4: 51.9 | AY4: -2485 | BC4: 37.8 | BD4: 158 | BE4: 8 | BF4: 7406.151512 | BG4: 1115410 | BH4: 1916211 | BI4: 1793040 | BJ4: 123171 | BQ4: 108527 | BR4: 110027 | CM4: 21911 | CZ4: 1126564 | DA4: 1940562 | DB4: 1813240 | DC4: 127322 | DJ4: 112162 | DK4: 112162 | ED4: 22020 | EF4: 205 | ES4: 1137830 | ET4: 1965819 | EU4: 1834550 | EV4: 131269 | FC4: 116109 | FD4: 116109 | FW4: 22130 | FY4: 269658 | FZ4: 290336 | GA4: 290336 | GB4: 294647 | GE4: 1540 | GF4: -165200 | GI4: -166080 | GL4: -111650 | GO4: -114670 | GX4: 294648 | HB4: 284409 | HF4: 284171 | HJ4: 283933 | HX4: 4670 | HY4: =HX4*-1 -> -4670
A5: Etelä-Karjalan sosiaali- ja terveydenhuollon kuntayhtymä (EKSOTE) | B5: 10227 | D5: 1.039768437 | E5: 29.1 | F5: -2055 | J5: 47.2 | K5: 316 | L5: 11 | M5: 10581.96959 | N5: 211187 | O5: 431483 | P5: 413783 | Q5: 17700 | X5: 16752 | Y5: 8465 | AR5: 3937 | AT5: 120 | AW5: 0.2648361382 | AX5: 33.5 | AY5: -2443 | BC5: 42 | BD5: 321 | BE5: 11 | BF5: 10728.18465 | BG5: 214024 | BH5: 442114 | BI5: 424083 | BJ5: 18031 | BQ5: 17623 | BR5: 9251 | CM5: 3886 | CZ5: 215629 | DA5: 448686 | DB5: 429477 | DC5: 19209 | DJ5: 18720 | DK5: 10347 | ED5: 3858 | EF5: 268 | ES5: 217110 | ET5: 458062 | EU5: 435572 | EV5: 22490 | FC5: 20942 | FD5: 12387 | FW5: 3830 | FY5: 120554 | FZ5: 123989 | GA5: 123989 | GB5: 130349 | GF5: -14948 | GI5: -36617 | GL5: -27203 | GO5: -14963 | GX5: 50358 | HB5: 52266 | HF5: 64608 | HJ5: 56391 | HX5: 3040 | HY5: -3040
A6: Kanta-Hämeen sairaanhoitopiirin ky. | B6: 2740 | D6: 0.7041906327 | E6: 56.7 | F6: -2821 | J6: 37 | K6: 403 | L6: 22 | M6: 8734.181818 | N6: 103341 | O6: 204294 | P6: 195729 | Q6: 8565 | X6: 7680 | Y6: 9780 | AR6: 1969 | AT6: 229 | AW6: 0.05185979971 | AX6: 59.4 | AY6: -3134 | BC6: 34 | BD6: 147 | BE6: 7 | BF6: 7455.632017 | BG6: 104135 | BH6: 211762 | BI6: 199319 | BJ6: 12443 | BQ6: 11774 | BR6: 10366 | CM6: 1899 | DA6: 219295 | DB6: 203200 | DC6: 16095 | DJ6: 15375 | DK6: 10590 | ED6: 1899 | EF6: 176 | ET6: 227321 | EU6: 207147 | EV6: 20174 | FC6: 19454 | FD6: 10740 | FW6: 1899 | FY6: 58475 | FZ6: 60963 | GA6: 60963 | GC6: 300 | GE6: 360 | GF6: -13800 | GI6: -14820 | GL6: -10230 | GO6: -12000 | GX6: 48431 | HB6: 48431 | HF6: 48431 | HJ6: 48431 | HX6: 792 | HY6: -792
A7: Länsi-Pohjan sairaanhoitopiirin ky. | B7: 12228 | D7: 0.7925311203 | E7: 42.6 | F7: -1469 | J7: 54.9 | K7: 1040 | L7: 52 | M7: 6691.190812 | N7: 52574 | O7: 101150 | P7: 98809 | Q7: 2341 | X7: 3911 | Y7: 3911 | AR7: 775 | AT7: 182 | AW7: 0.5507936508 | AX7: 45.2 | AY7: -1664 | BC7: 52.3 | BD7: 1116 | BE7: 54 | BF7: 7495.607852 | BG7: 54405 | BH7: 103400 | BI7: 99474 | BJ7: 3926 | BQ7: 3780 | BR7: 3780 | CM7: 777 | CZ7: 55494 | DA7: 105468 | DB7: 101464 | DC7: 4004 | DJ7: 3855 | DK7: 3855 | ED7: 777 | EF7: 192 | ES7: 56603 | ET7: 107577 | EU7: 103493 | EV7: 4084 | FC7: 3932 | FD7: 3932 | FW7: 777 | FY7: 30142 | FZ7: 30665 | GA7: 30665 | GB7: 31903 | GF7: -3490 | GI7: -3638 | GJ7: 30 | GL7: -4250 | GO7: -3560 | GX7: 2000 | HB7: 1900 | HF7: 2300 | HJ7: 1950 | HX7: 2706 | HY7: -2706
A8: Keski-Suomen sairaanhoitopiirin ky. | B8: 8405 | D8: 3.673333333 | E8: 47.2 | F8: -2410 | J8: 52.1 | K8: 38 | L8: 2 | M8: 6265.356554 | N8: 194294 | O8: 358418 | P8: 341137 | Q8: 17281 | X8: 15346 | Y8: 15546 | AT8: 138 | AW8: 2.292964245 | AX8: 50.3 | AY8: -2756 | BC8: 49.3 | BD8: 35 | BE8: 2 | BF8: 6547.571209 | BG8: 189548 | BH8: 356919 | BI8: 337554 | BJ8: 19365 | BQ8: 17456 | BR8: 16456 | DA8: 358598 | DB8: 337554 | DC8: 21044 | DJ8: 18645 | DK8: 15645 | EF8: 159 | ET8: 358503 | EU8: 337554 | EV8: 20949 | FC8: 17438 | FD8: 14438 | FY8: 87878 | FZ8: 89212 | GA8: 89212 | GF8: -24702 | GG8: 3234 | GH8: 3014 | GI8: -22595 | GJ8: 4839 | GK8: 300 | GL8: -53900 | GM8: 33355 | GN8: 1900 | GO8: -72711 | GP8: 55273 | GX8: 73220 | HB8: 78059 | HF8: 111414 | HJ8: 166687 | HX8: 380 | HY8: -380
A9: Pohjois-Savon sairaanhoitopiirin ky. | B9: 4991 | D9: -0.8244274809 | E9: 63.7 | F9: -2853 | J9: 32.3 | K9: 172 | L9: 11 | M9: 8208.918754 | N9: 248572 | O9: 457837 | P9: 440382 | Q9: 17455 | X9: 14488 | Y9: 13302 | AR9: 4707,2 | AT9: 314 | AW9: 0.9418212479 | AX9: 57.2 | AY9: -2703 | BC9: 31.1 | BD9: 203 | BE9: 13 | BF9: 5570.970329 | BG9: 242482 | BH9: 453559 | BI9: 428761 | BJ9: 24798 | BQ9: 20451 | BR9: 19510 | CM9: 4562,8 | CZ9: 242746 | DA9: 458423 | DB9: 430768 | DC9: 27655 | DJ9: 23266 | DK9: 22069 | ED9: 4562,8 | EF9: 169 | ES9: 243672 | ET9: 462651 | EU9: 433453 | EV9: 29198 | FC9: 24765 | FD9: 23569 | FW9: 4562,8 | FY9: 107234 | FZ9: 101253 | GA9: 101253 | GB9: 103150 | GD9: 650 | GF9: -85450 | GG9: 185 | GI9: -63043 | GL9: -39950 | GO9: -35000 | GX9: 141166 | HB9: 200166 | HF9: 222166 | HJ9: 237666 | HX9: 699 | HY9: -699
A10: Lapin sairaanhoitopiirin ky. | B10: 3962 | D10: 0.4494163424 | E10: 64.9 | F10: -2543 | J10: 25.1 | K10: 212 | L10: 14 | M10: 5500.377358 | N10: 95347 | O10: 177852 | P10: 169314 | Q10: 8538 | X10: 7447 | Y10: 7770 | AR10: 1637 | AT10: 280 | AW10: -1.108630952 | AX10: 79.5 | AY10: -3172 | BC10: 15 | BD10: 360 | BE10: 22 | BF10: 5883.404684 | BG10: 98205 | BH10: 182313 | BI10: 174205 | BJ10: 8108 | BQ10: 7646 | BR10: 7969 | CM10: 1637 | CZ10: 100660 | DA10: 186871 | DB10: 178560 | DC10: 8311 | DJ10: 7826 | DK10: 8149 | ED10: 1637 | EF10: 201 | ES10: 102874 | ET10: 190982 | EU10: 182488 | EV10: 8494 | FC10: 7986 | FD10: 8309 | FW10: 1637 | FY10: 43947 | FZ10: 46601 | GA10: 46601 | GB10: 48817 | GD10: 500 | GE10: 515 | GF10: -7800 | GI10: -9748 | GL10: -19935 | GO10: -13310 | GX10: 9229 | HB10: 9829 | HF10: 20429 | HJ10: 23869 | HX10: 607 | HY10: -607
A11: Etelä-Savon sairaanhoitopiirin ky. | B11: 1522 | D11: 6.936507937 | E11: 10.5 | F11: 1526 | J11: 88.9 | K11: 1999 | L11: 100 | M11: 7266.922095 | N11: 75923 | O11: 156019 | P11: 151395 | Q11: 4624 | X11: 4224 | Y11: 4100 | AR11: 1375 | AT11: 141 | AX11: 11.3 | AY11: 1324 | BC11: 87.7 | BD11: 1985 | BE11: 97 | BF11: 7500.652742 | BG11: 80423 | BH11: 157806 | BI11: 152297 | BJ11: 5509 | BQ11: 5149 | BR11: 4300 | CM11: 1355 | CZ11: 81227 | DA11: 159384 | DB11: 153365 | DC11: 6019 | DJ11: 5655 | DK11: 5000 | ED11: 1340 | EF11: 39 | ES11: 82032 | ET11: 160963 | EU11: 154884 | EV11: 6079 | FC11: 5712 | FD11: 5000 | FW11: 1340 | FY11: 46383 | FZ11: 43751 | GA11: 43751 | GB11: 44167 | GF11: -5526 | GI11: -5150 | GL11: -5520 | GO11: -5520 | GX11: 27769 | HB11: 25626 | HF11: 25283 | HJ11: 24888 | HX11: 63 | HY11: -63
A12: Satakunnan sairaanhoitopiirin ky. | B12: 1891 | D12: 0.8394230769 | E12: 35.4 | F12: -2424 | J12: 52.5 | K12: 102 | L12: 4 | M12: 9041.732699 | N12: 177525 | O12: 325345 | P12: 320512 | Q12: 4833 | X12: 4336 | Y12: 7176 | AR12: 3670 | AT12: 83 | AW12: 0.616334283 | AX12: 35 | AY12: -2528 | BC12: 52.4 | BD12: 254 | BE12: 9 | BF12: 9775.531915 | BG12: 180560 | BH12: 333675 | BI12: 326987 | BJ12: 6688 | BQ12: 5892 | BR12: 8859 | CM12: 3630 | CZ12: 183990 | DA12: 340015 | DB12: 333200 | DC12: 6815 | DJ12: 5915 | DK12: 9000 | ED12: 3620 | EF12: 261 | ES12: 185646 | ET12: 343075 | EU12: 336199 | EV12: 6876 | FC12: 5926 | FD12: 9100 | FW12: 3600 | FY12: 77262 | FZ12: 79090 | GA12: 79090 | GB12: 81318 | GF12: -21300 | GI12: -13150 | GL12: -12400 | GO12: -26800 | GX12: 16000 | HB12: 18400 | HF12: 20300 | HJ12: 30000 | HX12: 874 | HY12: -874
A13: Itä-Savon sairaanhoitopiirin kuntayhtymä SOSTERI | B13: 260753 | D13: 2.449075174 | E13: 23.9 | F13: 1837 | J13: 86.5 | K13: 2435 | L13: 134 | M13: 6609.093682 | N13: 81823 | O13: 181446 | P13: 177627 | Q13: 3819 | X13: 3370 | Y13: 3370 | AR13: 1403 | AT13: 26 | AW13: 5.500851095 | AX13: 24.2 | AY13: 1636 | BC13: 86.3 | BD13: 2425 | BE13: 133 | BF13: 6672.553967 | BG13: 75908 | BH13: 178382 | BI13: 174623 | BJ13: 3759 | BQ13: 3376 | BR13: 3376 | CM13: 1385 | CZ13: 74390 | DA13: 174814 | DB13: 171130 | DC13: 3684 | DJ13: 3309 | DK13: 3309 | ED13: 1385 | EF13: 27 | ES13: 72902 | ET13: 171318 | EU13: 167708 | EV13: 3610 | FC13: 3243 | FD13: 3243 | FW13: 1385 | FY13: 44353 | FZ13: 45333 | GA13: 45333 | GB13: 43538 | GF13: -3320 | GI13: -1733 | GL13: -1365 | GO13: -1163 | GX13: 14022 | HB13: 12757 | HF13: 11491 | HJ13: 10225 | HX13: 55179 | HY13: -55179
A14: Etelä-Pohjanmaan sairaanhoitopiirin ky. | B14: 12368 | D14: 2.996190476 | E14: 29.8 | F14: -1443 | J14: 63 | K14: 89 | L14: 5 | M14: 6315.276883 | N14: 163697 | O14: 284379 | P14: 271687 | Q14: 12692 | X14: 11680 | Y14: 11000 | AR14: 3085 | AT14: 172 | AW14: 2.09716909 | AX14: 30 | AY14: -1481 | BC14: 62.5 | BD14: 52 | BE14: 3 | BF14: 6287.360954 | BG14: 160527 | BH14: 285662 | BI14: 271400 | BJ14: 14262 | BQ14: 13300 | BR14: 11300 | CM14: 3085 | CZ14: 160201 | DA14: 285203 | DB14: 270872 | DC14: 14331 | DJ14: 13300 | DK14: 11300 | ED14: 3085 | EF14: 187 | ES14: 160201 | ET14: 285315 | EU14: 270872 | EV14: 14443 | FC14: 13300 | FD14: 11300 | FW14: 3085 | FY14: 53730 | FZ14: 56424 | GA14: 56424 | GB14: 56229 | GF14: -17619 | GH14: 440 | GI14: -19761 | GL14: -24800 | GO14: -23000 | GX14: 36974 | HB14: 43182 | HF14: 55590 | HJ14: 66998 | HX14: 818 | HY14: -818
A15: Pirkanmaan sairaanhoitopiirin kuntayhtymä | B15: 5931 | D15: 5.856216216 | E15: 33.1 | F15: 2366 | J15: 81 | K15: 4160 | L15: 191 | M15: 7969.54141 | N15: 346220 | O15: 718456 | P15: 679944 | Q15: 38512 | X15: 32193 | Y15: 26410 | AR15: 6967 | AT15: 9 | AW15: 9.244755245 | AX15: 27.7 | AY15: 1729 | BC15: 83.5 | BD15: 3320 | BE15: 146 | BF15: 8282.50591 | BG15: 346460 | BH15: 717221 | BI15: 679340 | BJ15: 37881 | BQ15: 33334 | BR15: 26755 | CM15: 6842 | CZ15: 346460 | DA15: 722816 | DB15: 679760 | DC15: 43056 | DJ15: 38000 | DK15: 28239 | ED15: 6842 | EF15: 1 | ES15: 346460 | ET15: 726210 | EU15: 680560 | EV15: 45650 | FC15: 40000 | FD15: 26239 | FW15: 6842 | FY15: 213504 | FZ15: 216486 | GA15: 216486 | GB15: 216500 | GF15: -57000 | GH15: 1500 | GI15: -83660 | GK15: 500 | GL15: -82900 | GN15: 500 | GO15: -84320 | GQ15: 500 | GX15: 116386 | HB15: 172510 | HF15: 213317 | HJ15: 254124 | HX15: 701 | HY15: -701
A16: Varsinais-Suomen sairaanhoitopiirin ky. | B16: 2685 | D16: 2.376271186 | E16: 26.8 | F16: -1370 | J16: 62.4 | K16: 208 | L16: 12 | M16: 6473.243538 | N16: 367468 | O16: 677234 | P16: 624193 | Q16: 53041 | X16: 43313 | Y16: 40313 | AR16: 6600 | AT16: 45 | AW16: 0.1308243728 | AX16: 27.4 | AY16: -1498 | BC16: 60.5 | BD16: 163 | BE16: 9 | BF16: 6975.428146 | BG16: 380302 | BH16: 702134 | BI16: 651869 | BJ16: 50265 | BQ16: 42370 | BR16: 40370 | CM16: 6660 | CZ16: 389225 | DA16: 720267 | DB16: 668522 | DC16: 51745 | DJ16: 44551 | DK16: 41551 | ED16: 6660 | EF16: 287 | ES16: 400122 | ET16: 739645 | EU16: 688642 | EV16: 51003 | FC16: 44609 | FD16: 41609 | FW16: 6660 | FY16: 114057 | FZ16: 121814 | GA16: 121814 | GB16: 129418 | GC16: 400 | GF16: -28195 | GG16: 325 | GI16: -23580 | GJ16: 310 | GL16: -14300 | GM16: 320 | GO16: -14200 | GP16: 320 | GX16: 264167 | HB16: 241731 | HF16: 210398 | HJ16: 179065 | HX16: 500 | HY16: -500
A17: Vaasan sairaanhoitopiirin ky. | B17: 17667 | D17: 1.59417102 | E17: 40.9 | F17: -1455 | J17: 61.2 | K17: 583 | L17: 33 | M17: 6490.102619 | N17: 119028 | O17: 421893 | P17: 216710 | Q17: 205183 | X17: 7958 | Y17: 7958 | AR17: 2023 | AT17: 140 | AW17: 1.078155206 | AX17: 40.3 | AY17: -1566 | BC17: 60.1 | BD17: 441 | BE17: 24 | BF17: 6634.963615 | BG17: 120086 | BH17: 433758 | BI17: 220669 | BJ17: 213089 | BQ17: 12016 | BR17: 8616 | CM17: 2039 | CZ17: 121527 | DA17: 441884 | DB17: 224534 | DC17: 217350 | DJ17: 12200 | DK17: 8800 | ED17: 2040 | EF17: 62 | ES17: 122985 | ET17: 451517 | EU17: 229739 | EV17: 221778 | FC17: 12500 | FD17: 9100 | FW17: 2040 | FY17: 57712 | FZ17: 61052 | GA17: 61052 | GB17: 66027 | GF17: -22424 | GH17: 100 | GI17: -14107 | GL17: -18760 | GO17: -18825 | GX17: 36055 | HB17: 32460 | HF17: 24060 | HJ17: 25160 | HX17: 2820 | HY17: -2820
A18: Carea - Kymenlaakson sairaanhoito- ja sosiaalipalvelujen kuntayhtymä | B18: 7616 | D18: 0.8065054212 | E18: 74.3 | F18: -2490 | J18: 42.1 | K18: 2079 | L18: 108 | M18: 7045.99816 | N18: 107697 | O18: 226060 | P18: 225945 | Q18: 115 | X18: 111 | Y18: 5932 | AR18: 2020 | AT18: 35 | AW18: 0.3946916173 | AX18: 72.2 | AY18: -2426 | BC18: 43.1 | BD18: 2015 | BE18: 104 | BF18: 7080.748593 | BG18: 103060 | BH18: 215372 | BI18: 211232 | BJ18: 4140 | BQ18: 3875 | BR18: 5516 | CM18: 1910 | CZ18: 102260 | DA18: 215372 | DB18: 209120 | DC18: 6252 | DJ18: 6002 | DK18: 5300 | ED18: 1860 | EF18: 299 | ES18: 101237 | ET18: 215372 | EU18: 207029 | EV18: 8343 | FC18: 8093 | FD18: 5500 | FW18: 1820 | FY18: 71150 | FZ18: 68185 | GA18: 68185 | GB18: 66870 | GC18: 800 | GF18: -5235 | GI18: -5305 | GL18: -5300 | GO18: -5300 | GX18: 9170 | HB18: 8517 | HF18: 9364 | HJ18: 8711 | HX18: 5099 | HY18: -5099
A19: Keski-Pohjanmaan erikoissairaanhoito- ja peruspalvelukuntayhtymä | B19: 7241 | D19: 0.7512019231 | E19: 35.4 | F19: -2017 | J19: 41.7 | K19: 897 | L19: 30 | M19: 10732.80065 | N19: 88263 | O19: 203237 | P19: 197957 | Q19: 5280 | X19: 5054 | Y19: 5054 | AR19: 1850 | AT19: 211 | AW19: 0.3950729927 | AX19: 37.8 | AY19: -2346 | BC19: 38.2 | BD19: 974 | BE19: 32 | BF19: 11093.64273 | BG19: 92899 | BH19: 207017 | BI19: 200583 | BJ19: 6434 | BQ19: 6256 | BR19: 5606 | CM19: 1850 | CZ19: 93560 | DA19: 208289 | DB19: 201792 | DC19: 6497 | DJ19: 6316 | DK19: 5660 | ED19: 1850 | EF19: 230 | ES19: 94228 | ET19: 209572 | EU19: 203012 | EV19: 6560 | FC19: 6378 | FD19: 5714 | FY19: 55993 | FZ19: 56012 | GA19: 56012 | GB19: 55442 | GF19: -7313 | GI19: -10215 | GJ19: 210 | GL19: -8564 | GO19: -7434 | GX19: 14783 | HB19: 19200 | HF19: 20600 | HJ19: 20000 | HX19: 1987 | HY19: -1987
A20: Pohjois-Pohjanmaan sairaanhoitopiirin ky. | B20: 999 | D20: 37.28571429 | E20: 30.2 | F20: 3787 | J20: 77.5 | K20: 5668 | L20: 317 | M20: 6516.932271 | N20: 333419 | O20: 568957 | P20: 568191 | Q20: 766 | X20: -110 | Y20: 25070 | AR20: 5853 | AT20: 3 | AW20: 3.939849624 | AX20: 33.5 | AY20: 2367 | BC20: 77.4 | BD20: 3941 | BE20: 147 | BF20: 9815.415822 | BG20: 334898 | BH20: 573131 | BI20: 545437 | BJ20: 27694 | BQ20: 27085 | BR20: 25499 | CM20: 5833 | CZ20: 338247 | DA20: 586238 | DB20: 554503 | DC20: 31735 | DJ20: 30735 | DK20: 27029 | ED20: 5833 | EF20: 301 | ES20: 341630 | ET20: 598126 | EU20: 563759 | EV20: 34367 | FC20: 33167 | FD20: 28651 | FW20: 5833 | FY20: 129838 | FZ20: 108895 | GA20: 108895 | GB20: 114407 | GF20: -32003 | GI20: -38200 | GK20: 500 | GL20: -46200 | GO20: -46200 | GX20: 100000 | HB20: 112500 | HF20: 130000 | HJ20: 145500 | HX20: 0 | HY20: 0
A21: Päijät-Hämeen sosiaali- ja terveysyhtymä | B21: 1229 | D21: 0.6037151703 | E21: 69.2 | F21: -3566 | J21: 33.1 | K21: 75 | L21: 4 | M21: 7410.980392 | N21: 203787 | O21: 386681 | P21: 374326 | Q21: 12355 | X21: 11067 | Y21: 12574 | AR21: 3682 | AT21: 264 | AW21: -0.01131221719 | AX21: 68.2 | AY21: -2349 | BC21: 35.2 | BD21: 65 | BE21: 3 | BF21: 7539.262821 | BG21: 207308 | BH21: 401330 | BI21: 386960 | BJ21: 14370 | BQ21: 13334 | BR21: 13089 | CM21: 3627 | CZ21: 209809 | DA21: 407869 | DB21: 393415 | DC21: 14454 | DJ21: 13243 | DK21: 13090 | ED21: 3590 | EF21: 239 | ES21: 213240 | ET21: 414636 | EU21: 399968 | EV21: 14668 | FC21: 13436 | FD21: 13309 | FW21: 3550 | FY21: 96254 | FZ21: 101319 | GA21: 101319 | GB21: 103760 | GD21: 170 | GE21: 160 | GF21: -15122 | GG21: 1500 | GI21: -18371 | GJ21: 800 | GL21: -19663 | GM21: 145 | GO21: -19564 | GX21: 36274 | HB21: 41165 | HF21: 47465 | HJ21: 53615 | HX21: 188 | HY21: -188
A22: Pohjois-Karjalan sairaanhoito- ja sosiaalipalvelujen ky. | B22: 21203 | D22: 0.7394378194 | E22: 77.8 | F22: -4022 | J22: 47.6 | K22: 357 | L22: 17 | M22: 7477.269542 | N22: 135279 | O22: 249070 | P22: 236844 | Q22: 12226 | X22: 10985 | Y22: 8870 | AR22: 2894 | AT22: 114 | AW22: 0.616761539 | AX22: 75.5 | AY22: -4209 | BC22: 46.4 | BD22: 381 | BE22: 19 | BF22: 7451.213775 | BG22: 136356 | BH22: 249660 | BI22: 239428 | BJ22: 10232 | BQ22: 8554 | BR22: 7979 | CM22: 2900 | CZ22: 140447 | DA22: 257726 | DB22: 246835 | DC22: 10891 | DJ22: 9051 | DK22: 9235 | ED22: 2900 | EF22: 87 | ES22: 144660 | ET22: 266894 | EU22: 254470 | EV22: 12424 | FC22: 10405 | FD22: 10454 | FW22: 2900 | FY22: 58054 | FZ22: 59629 | GA22: 59629 | GB22: 63720 | GF22: -11020 | GG22: 0 | GH22: 500 | GI22: -15455 | GL22: -18310 | GO22: -23900 | GX22: 65519 | HB22: 71660 | HF22: 76489 | HJ22: 88138 | HX22: 9905 | HY22: -9905
A23: Kolpeneen palvelukeskuksen ky. | B23: 5404 | D23: 0.02721685689 | E23: 28.2 | F23: -867 | J23: 63.4 | K23: 445 | L23: 21 | M23: 7752.139865 | N23: 12444 | O23: 16920 | P23: 16245 | Q23: 675 | X23: 540 | Y23: 600 | AR23: 238,8 | AT23: 292 | AW23: 1.02262931 | AX23: 25.6 | AY23: -992 | BC23: 62.4 | BD23: 468 | BE23: 22 | BF23: 7752.796626 | BG23: 13970 | BH23: 18608 | BI23: 17768 | BJ23: 840 | BQ23: 590 | BR23: 650 | CM23: 265,3 | ED23: 251,1 | EF23: 285 | FW23: 241,6 | FY23: 3109 | FZ23: 3052 | GA23: 3052 | GF23: -1680 | GG23: 1650 | GI23: -3440 | GJ23: 503 | GL23: -3222 | GM23: 398 | GO23: -810 | GX23: 5924 | HX23: 985 | HY23: -985
A24: Kårkulla samkommun | B24: 9109 | D24: 0.6773709688 | E24: 76.9 | F24: -5577 | J24: 31.9 | K24: 183 | L24: 7 | M24: 9252.522035 | N24: 40132 | O24: 59030 | P24: 58056 | Q24: 974 | X24: 726 | Y24: 726 | AR24: 821 | AT24: 8 | AW24: 0.2453561951 | AX24: 82.6 | AY24: -6074 | BC24: 27.8 | BD24: 85 | BE24: 3 | BF24: 9348.548613 | BG24: 40398 | BH24: 60285 | BI24: 59278 | BJ24: 1007 | BQ24: 790 | BR24: 790 | CM24: 821 | CZ24: 40648 | DA24: 60555 | DB24: 59529 | DC24: 1026 | DJ24: 800 | DK24: 800 | ED24: 821 | EF24: 38 | ES24: 40707 | ET24: 60674 | EU24: 59588 | EV24: 1086 | FC24: 830 | FD24: 830 | FW24: 821 | FY24: 10793 | FZ24: 11370 | GA24: 11370 | GB24: 11370 | GE24: 830 | GF24: -4525 | GG24: 984 | GH24: 370 | GI24: -7455 | GJ24: 620 | GK24: 265 | GL24: -12350 | GM24: 1600 | GN24: 500 | GO24: -11850 | GP24: 1160 | GX24: 11568 | HB24: 16666 | HF24: 24961 | HJ24: 33174 | HX24: 13300 | HY24: -13300
A25: Varsinais-Suomen erityishuoltopiirin ky. | B25: 7407 | E25: 12 | F25: 905 | J25: 86.8 | K25: 1134 | L25: 68 | M25: 6045.842217 | N25: 26737 | O25: 34402 | Q25: 34402 | X25: 164 | Y25: 815 | AT25: 317 | AW25: -4404 | AX25: 26.8 | AY25: -934 | BC25: 70.8 | BD25: 180 | BE25: 9 | BF25: 7483.034999 | EF25: 222 | FY25: 3170 | GF25: -4770 | GI25: -5965 | GL25: -6635 | GO25: -1885 | GX25: 13657 | HX25: 0 | HY25: 0
A26: Eskoon sosiaalipalvelujen kuntayhtymä | B26: 3098 | D26: 0.7305986696 | E26: 50.2 | F26: -2163 | J26: 34.4 | K26: 548 | L26: 31 | M26: 6544.349939 | N26: 19440 | O26: 24825 | P26: 23865 | Q26: 960 | X26: 822 | Y26: 759 | AR26: 396 | AT26: 113 | AW26: -0.1924855491 | AX26: 47.9 | AY26: -2568 | BC26: 30.4 | BD26: 210 | BE26: 11 | BF26: 7255.850234 | BG26: 18642 | BH26: 23940 | BI26: 22808 | BJ26: 1132 | BQ26: 1014 | BR26: 951 | CM26: 366 | CZ26: 19344 | DA26: 24986 | DB26: 23765 | DC26: 1221 | DJ26: 1000 | DK26: 950 | ED26: 365 | EF26: 235 | ES26: 18200 | ET26: 23521 | EU26: 22371 | EV26: 1150 | FC26: 1000 | FD26: 1000 | FW26: 355 | FY26: 2024 | FZ26: 1846 | GA26: 1846 | GB26: 1812 | GE26: 420 | GF26: -5240 | GG26: 266 | GI26: -1610 | GL26: -2880 | GM26: 32 | GO26: -2615 | GX26: 5340 | HB26: 5925 | HF26: 7410 | HJ26: 8695 | HX26: 1545 | HY26: -1545
A27: Eteva kuntayhtymä | B27: 9684 | D27: 0.9237147595 | E27: 54.6 | F27: -2516 | J27: 46.7 | K27: 2 | L27: 0 | M27: 5590.37389 | N27: 58147 | O27: 78819 | P27: 78436 | Q27: 383 | X27: 386 | Y27: 376 | AR27: 1314 | AT27: 243 | AW27: -0.01096224117 | AX27: 63.3 | AY27: -2945 | BC27: 40.9 | BD27: 9 | BE27: 1 | BF27: 5551.851852 | BG27: 51468 | BH27: 72759 | BI27: 72225 | BJ27: 534 | BQ27: 541 | BR27: 503 | CM27: 1168 | CZ27: 51925 | DA27: 73300 | DB27: 72695 | DC27: 605 | DJ27: 610 | DK27: 600 | ED27: 1200 | EF27: 127 | FY27: 8883 | FZ27: 9753 | GA27: 9753 | GF27: -577 | GI27: -811 | GL27: -450 | HX27: 1420 | HY27: -1420
A28: Vaalijalan kuntayhtymä | B28: 8808 | D28: 0.6995037221 | E28: 56.8 | F28: -2267 | J28: 43.2 | K28: 582 | L28: 37 | M28: 5759.623027 | N28: 32916 | O28: 42657 | P28: 42020 | Q28: 637 | X28: 447 | Y28: 818 | AR28: 790 | AT28: 161 | AW28: 0.2868252516 | AX28: 57.6 | AY28: -2745 | BC28: 40.6 | BD28: 242 | BE28: 14 | BF28: 6319.760884 | BG28: 35465 | BH28: 46404 | BI28: 45175 | BJ28: 1229 | BQ28: 1022 | BR28: 1015 | CM28: 805 | CZ28: 35272 | DA28: 46440 | DB28: 44933 | DC28: 1507 | DJ28: 1298 | DK28: 1065 | ED28: 815 | EF28: 191 | ES28: 35489 | ET28: 46766 | EU28: 45209 | EV28: 1557 | FC28: 1342 | FD28: 1115 | FW28: 825 | FY28: 4403 | FZ28: 4843 | GA28: 4843 | GB28: 4747 | GF28: -6271 | GG28: 1970 | GI28: -5602 | GJ28: 1400 | GL28: -5160 | GM28: 1500 | GO28: -4160 | GP28: 1000 | GX28: 12814 | HB28: 16157 | HF28: 18557 | HJ28: 19597 | HX28: 3465 | HY28: -3465
A29: Kokemäen ja Kiikoisten kuntayhtymä | B29: 19979 | D29: 1.055670297 | E29: 51.7 | F29: 349 | J29: 64.4 | K29: 3063 | L29: 174 | M29: 9958.192819 | O29: 41 | P29: 1 | Q29: 40 | X29: 32 | Y29: 28 | AT29: 105 | AW29: 0.981910164 | AX29: 49.7 | AY29: 453 | BC29: 64.6 | BD29: 3201 | BE29: 169 | BF29: 6918.956661 | BH29: 54 | BI29: 4 | BJ29: 50 | BQ29: 34 | BR29: 27 | DA29: 54 | DB29: 4 | DC29: 50 | DJ29: 34 | DK29: 26 | EF29: 94 | ET29: 54 | EU29: 4 | EV29: 50 | FC29: 34 | FD29: 25 | FW29: 0 | FY29: 1 | FZ29: 4 | GA29: 4 | GB29: 4 | HX29: 6262 | HY29: -6262
A30: Moision palvelukeskuskiinteistön kuntayhtymä | B30: 3667 | D30: 1.354008192 | E30: 41.1 | F30: -2132 | J30: 56.3 | K30: 415 | L30: 17 | M30: 10080.21949 | O30: 515 | P30: 268 | Q30: 247 | X30: 187 | Y30: 123 | AT30: 190 | AW30: -0.3216374269 | AX30: 54.9 | AY30: -3148 | BC30: 46.6 | BD30: 651 | BE30: 27 | BF30: 8735.168359 | BH30: 508 | BI30: -292 | BJ30: 800 | BQ30: 154 | DA30: 518 | DB30: 298 | DC30: 220 | DJ30: 162 | DK30: 123 | EF30: 137 | ET30: 529 | EU30: 304 | EV30: 225 | FC30: 166 | FD30: 123 | FW30: 0 | FY30: 83 | FZ30: 100 | GA30: 100 | GB30: 105 | GX30: 531 | HB30: 411 | HF30: 291 | HJ30: 171 | HX30: 225 | HY30: -225
A31: Varsinais-Suomen lastensuojelu ky. | B31: 612664 | D31: 4.923439563 | E31: 42.3 | F31: -1495 | J31: 75.9 | K31: 1361 | L31: 58 | M31: 7090.257716 | N31: 2667 | O31: 3436 | P31: 3301 | Q31: 135 | X31: 75 | Y31: 126 | AR31: 44 | AT31: 6 | AW31: 2.94570607 | AX31: 40.5 | AY31: -1565 | BC31: 76.3 | BD31: 1105 | BE31: 46 | BF31: 8754.048228 | BG31: 2513 | BH31: 3182 | BI31: 3085 | BJ31: 97 | BQ31: 39 | BR31: 125 | CM31: 44 | CZ31: 2513 | DA31: 3182 | DB31: 3085 | DC31: 97 | DJ31: 39 | DK31: 125 | ED31: 44 | EF31: 14 | ES31: 2513 | ET31: 3182 | EU31: 3085 | EV31: 97 | FC31: 39 | FD31: 125 | FW31: 44 | FY31: 306 | FZ31: 289 | GA31: 289 | GB31: 289 | GF31: -25 | GX31: 1715 | HB31: 1625 | HF31: 1545 | HJ31: 1474 | HX31: 116591 | HY31: -116591
A32: Hämeen päihdehuollon ky. | B32: 2338 | D32: 3.40247678 | E32: 22.8 | F32: 631 | J32: 73 | K32: 2007 | L32: 106 | M32: 6888.237756 | N32: 1034 | O32: 2005 | P32: 1933 | Q32: 72 | X32: 73 | Y32: 0 | AR32: 27 | AT32: 57 | AW32: 3.989847716 | AX32: 21.2 | AY32: 853 | BC32: 73.8 | BD32: 2138 | BE32: 113 | BF32: 6934.371056 | BG32: 156 | BH32: 148 | BI32: 626 | BJ32: -478 | BQ32: -508 | BR32: 72 | CM32: 2 | EF32: 15 | FY32: 278 | FZ32: 206 | GA32: 206 | HB32: 800 | HX32: 301 | HY32: -301
A33: Itä-Suomen päihdehuollon ky. | B33: 21987 | D33: 1.773881499 | E33: 30.5 | F33: -1320 | J33: 61.4 | K33: 525 | L33: 23 | M33: 8357.493188 | N33: 1539 | O33: 2196 | P33: 2169 | Q33: 27 | X33: 22 | Y33: 85 | AR33: 27,5 | AT33: 116 | AW33: 0.4305803571 | AX33: 37 | AY33: -1625 | BC33: 54.7 | BD33: 655 | BE33: 27 | BF33: 8702.775007 | BG33: 1492 | BH33: 2134 | BI33: 2126 | BJ33: 8 | BQ33: 5 | BR33: 78 | CM33: 26 | CZ33: 1500 | DA33: 2155 | DB33: 2145 | DC33: 10 | DJ33: 5 | DK33: 73 | ED33: 26 | EF33: 117 | ES33: 1500 | ET33: 2155 | EU33: 2150 | EV33: 5 | FD33: 72 | FW33: 26 | FY33: 223 | FZ33: 221 | GA33: 221 | GB33: 230 | HX33: 3784 | HY33: -3784
A34: Uudenmaan päihdehuollon ky. | B34: 1819 | D34: 0.3230769231 | E34: 33.4 | F34: -2802 | J34: 34.9 | K34: 91 | L34: 3 | M34: 10376.62338 | N34: 1602 | O34: 2585 | P34: 2451 | Q34: 134 | X34: 138 | Y34: 136 | AR34: 32,5 | AT34: 265 | AW34: 0.7450271248 | AX34: 34.1 | AY34: -2916 | BC34: 33.2 | BD34: 128 | BE34: 4 | BF34: 10751.0917 | BG34: 1724 | BH34: 2697 | BI34: 2540 | BJ34: 157 | BQ34: 160 | BR34: 100 | CM34: 34,5 | CZ34: 1721 | DA34: 2708 | DB34: 2587 | DC34: 121 | DJ34: 124 | DK34: 100 | ED34: 34,5 | EF34: 232 | ES34: 1738 | ET34: 2730 | EU34: 2625 | EV34: 105 | FC34: 108 | FD34: 100 | FW34: 34,5 | FY34: 255 | FZ34: 247 | GA34: 247 | GB34: 275 | GC34: 300 | GD34: 240 | GF34: -100 | GI34: -440 | GJ34: 300 | GL34: -120 | GO34: -130 | HB34: 300 | HF34: 250 | HJ34: 200 | HX34: 435 | HY34: -435
A35: Lapin Jätehuolto kuntayhtymä | B35: 10543 | D35: 2.704287827 | E35: 28.9 | F35: -725 | J35: 66.9 | K35: 680 | L35: 36 | M35: 6866.516262 | N35: 593 | O35: 6053 | P35: 5621 | Q35: 432 | X35: 412 | Y35: 322 | AR35: 14 | AT35: 42 | AW35: 1.032391048 | AX35: 32.8 | AY35: -1247 | BC35: 63.8 | BD35: 540 | BE35: 26 | BF35: 7576.39085 | BG35: 604 | BH35: 6310 | BI35: -5892 | BJ35: 12202 | BQ35: 399 | BR35: 301 | CM35: 14 | CZ35: 577 | DA35: 6369 | DB35: 5933 | DC35: 436 | DJ35: 417 | DK35: 304 | ED35: 13 | EF35: 203 | ES35: 589 | ET35: 6488 | EU35: 6052 | EV35: 436 | FC35: 417 | FD35: 307 | FW35: 13 | FY35: 4806 | FZ35: 5062 | GA35: 5062 | GB35: 5229 | GF35: -400 | GI35: -330 | GL35: -120 | GO35: -110 | GX35: 1740 | HB35: 1740 | HF35: 1740 | HJ35: 1740 | HX35: 1775 | HY35: -1775
A36: Sastamalan koulutuskuntayhtymä | B36: 2463 | D36: 0.2105263158 | E36: 47.3 | F36: -1820 | J36: 47.7 | K36: 30 | L36: 2 | M36: 6260.087895 | N36: 25489 | O36: 40803 | P36: 40030 | Q36: 773 | X36: 621 | Y36: 3068 | AR36: 650 | AT36: 270 | AW36: 0.1843317972 | AX36: 50.1 | AY36: -1820 | BC36: 44 | BD36: 341 | BE36: 19 | BF36: 6549.679487 | BG36: 24327 | BH36: 40387 | BI36: 39667 | BJ36: 720 | BQ36: 317 | BR36: 2450 | CM36: 650 | CZ36: 24327 | DA36: 40387 | DB36: 39668 | DC36: 719 | DJ36: 292 | DK36: 2463 | ED36: 650 | EF36: 193 | ES36: 24327 | ET36: 40387 | EU36: 39668 | EV36: 719 | FC36: 157 | FD36: 2603 | FW36: 650 | FY36: 7144 | FZ36: 7295 | GA36: 7295 | GB36: 7295 | GD36: 320 | GF36: -3357 | GG36: 175 | GI36: -921 | GL36: -2151 | GO36: -6670 | GX36: 7674 | HB36: 7970 | HF36: 9599 | HJ36: 15728 | HX36: 958 | HY36: -958
A37: Jyväskylän koulutuskuntayhtymä | B37: 2565 | D37: 0.03056234719 | E37: 24.4 | F37: -1059 | J37: 65.2 | K37: 418 | L37: 20 | M37: 7755.988024 | N37: 69738 | O37: 114538 | P37: 101414 | Q37: 13124 | X37: 12649 | Y37: 8004 | AR37: 1209 | AT37: 291 | AW37: 0.3772151899 | AX37: 40 | AY37: -2024 | BC37: 54.8 | BD37: 668 | BE37: 27 | BF37: 9058.009988 | BG37: 71251 | BH37: 109553 | BI37: 103454 | BJ37: 6099 | BQ37: 5512 | BR37: 8624 | CM37: 1202 | CZ37: 70440 | DA37: 105286 | DB37: 101261 | DC37: 4025 | DJ37: 3400 | DK37: 9171 | ED37: 1170 | EF37: 274 | ES37: 69930 | ET37: 105773 | EU37: 101223 | EV37: 4550 | FC37: 3845 | FD37: 10635 | FW37: 1155 | FY37: 17566 | FZ37: 17887 | GA37: 17887 | GB37: 17192 | GD37: 350 | GF37: -17750 | GI37: -19351 | GL37: -18355 | GO37: -16705 | GX37: 8844 | HB37: 21388 | HF37: 34049 | HJ37: 46399 | HX37: 734 | HY37: -734
A38: Keski-Pohjanmaan koulutusyhtymä | B38: 46188 | D38: 1.190700483 | E38: 43.1 | F38: -1950 | J38: 61.9 | K38: 232 | L38: 13 | M38: 6298.943484 | N38: 27012 | O38: 44971 | P38: 41716 | Q38: 3255 | X38: 2997 | Y38: 2997 | AR38: 540 | AT38: 80 | AW38: 0.6364113602 | AX38: 49.2 | AY38: -2357 | BC38: 57.8 | BD38: 180 | BE38: 10 | BF38: 6837.712757 | BG38: 25478 | BH38: 41001 | BI38: 38493 | BJ38: 2508 | BQ38: 2255 | BR38: 2754 | CM38: 510 | CZ38: 24530 | DA38: 40060 | DB38: 37100 | DC38: 2960 | DJ38: 2675 | DK38: 3000 | ED38: 480 | EF38: 113 | ES38: 24530 | ET38: 40260 | EU38: 36750 | EV38: 3510 | FC38: 3205 | FD38: 3000 | FW38: 480 | FY38: 7463 | FZ38: 6147 | GA38: 6147 | GB38: 5520 | GF38: -3740 | GH38: 1000 | GI38: -5000 | GL38: -5200 | GO38: -6700 | GX38: 14793 | HB38: 17405 | HF38: 19420 | HJ38: 23000 | HX38: 14443 | HY38: -14443
A39: Keski-Uudenmaan koulutuskuntayhtymä | B39: 2086 | D39: 0.6947236181 | E39: 110.6 | F39: -4655 | J39: 31.1 | K39: 275 | L39: 12 | M39: 13729.57746 | N39: 36552 | O39: 60222 | P39: 55996 | Q39: 4226 | X39: 4211 | Y39: 4017 | AR39: 631,5 | AT39: 279 | AW39: 0.306066803 | AX39: 100.7 | AY39: -4998 | BC39: 29.6 | BD39: 135 | BE39: 7 | BF39: 7357.347328 | BG39: 37795 | BH39: 62103 | BI39: 57417 | BJ39: 4686 | BQ39: 4682 | BR39: 4076 | CM39: 650 | CZ39: 38122 | DA39: 62724 | DB39: 57761 | DC39: 4963 | DJ39: 4952 | DK39: 4080 | ED39: 660 | EF39: 47 | ES39: 38122 | ET39: 59588 | EU39: 57532 | EV39: 2056 | FC39: 2045 | FD39: 4084 | FW39: 670 | FY39: 10096 | FZ39: 10325 | GA39: 10325 | GB39: 10396 | GF39: -3587 | GI39: -6139 | GL39: -4796 | GO39: -1615 | GX39: 1000 | HB39: 1500 | HF39: 1300 | HJ39: 800 | HX39: 517 | HY39: -517
A40: Satakunnan koulutuskuntayhtymä | B40: 10582 | D40: 2.80794702 | E40: 28.1 | F40: -477 | J40: 69.4 | K40: 538 | L40: 32 | M40: 6123.706446 | N40: 18870 | O40: 29920 | P40: 28670 | Q40: 1250 | X40: 1197 | Y40: 1600 | AR40: 413 | AT40: 186 | AW40: -0.1391880696 | AX40: 34.6 | AY40: -919 | BC40: 62 | BD40: 693 | BE40: 38 | BF40: 6632.285714 | BG40: 18145 | BH40: 27015 | BI40: 25770 | BJ40: 1245 | BQ40: 1200 | BR40: 1600 | CM40: 375 | DA40: 26950 | DB40: 25455 | DC40: 1495 | DJ40: 1450 | DK40: 1600 | ED40: 360 | EF40: 214 | ET40: 26900 | EU40: 25405 | EV40: 1495 | FC40: 1450 | FD40: 1600 | FW40: 340 | FY40: 5300 | FZ40: 3575 | GA40: 3575 | GF40: -1750 | GI40: -1100 | GL40: -1100 | GO40: -1100 | GX40: 597 | HB40: 542 | HF40: 487 | HJ40: 432 | HX40: 704 | HY40: -704
A41: Luksia, Länsi-Uudenmaan koulutuskuntayhtymä | B41: 67806 | D41: 0.2374185329 | E41: 55.2 | F41: -1535 | J41: 60.8 | K41: 1356 | L41: 69 | M41: 6025.598335 | N41: 20699 | O41: 34465 | P41: 31670 | Q41: 2795 | X41: 2856 | Y41: 1456 | AR41: 320 | AT41: 256 | AW41: 0.3100123223 | AX41: 54.6 | AY41: -1722 | BC41: 59.7 | BD41: 1245 | BE41: 62 | BF41: 7307.954428 | BG41: 20850 | BH41: 33313 | BI41: 31152 | BJ41: 2161 | BQ41: 2224 | BR41: 1500 | CM41: 320 | CZ41: 20587 | DA41: 32635 | DB41: 30832 | DC41: 1803 | DJ41: 1865 | DK41: 1514 | ED41: 320 | EF41: 132 | ES41: 20361 | ET41: 32077 | EU41: 30370 | EV41: 1707 | FC41: 1770 | FD41: 1419 | FW41: 320 | FY41: 5466 | FZ41: 5240 | GA41: 5240 | GB41: 5114 | GF41: -4968 | GI41: -5715 | GL41: -4400 | GO41: -5285 | HX41: 20186 | HY41: -20186
A42: Lounais-Suomen koulutuskuntayhtymä | B42: 9610 | D42: 1.437906648 | E42: 50.9 | F42: -2512 | J42: 50.2 | K42: 307 | L42: 18 | M42: 6303.084535 | N42: 13936 | O42: 21606 | P42: 20917 | Q42: 689 | X42: 659 | Y42: 851 | AR42: 285 | AT42: 49 | AW42: 0.6965006729 | AX42: 60.2 | AY42: -2982 | BC42: 45.8 | BD42: 479 | BE42: 25 | BF42: 7101.420514 | BG42: 13793 | BH42: 21312 | BI42: 20311 | BJ42: 1001 | BQ42: 980 | BR42: 937 | CM42: 280 | CZ42: 13146 | DA42: 20492 | DB42: 19560 | DC42: 932 | DJ42: 911 | DK42: 939 | ED42: 280 | EF42: 72 | ES42: 13146 | ET42: 20492 | EU42: 19560 | EV42: 932 | FC42: 911 | FD42: 939 | FW42: 270 | FY42: 3777 | FZ42: 3315 | GA42: 3315 | GB42: 3308 | GF42: -876 | GI42: -919 | GL42: -1684 | GO42: -3227 | GX42: 3025 | HB42: 2575 | HF42: 2125 | HJ42: 1675 | HX42: 2843 | HY42: -2843
A43: Lounais-Hämeen ammatillisen koulutuksen ky. | B43: 22171 | D43: 0.9519650655 | E43: 33.7 | F43: -876 | J43: 62.2 | K43: 928 | L43: 50 | M43: 6771.842687 | N43: 6364 | O43: 10523 | P43: 9826 | Q43: 697 | X43: 609 | Y43: 777 | AR43: 110 | AT43: 194 | AW43: 1.086801924 | AX43: 35.7 | AY43: -967 | BC43: 59.5 | BD43: 1056 | BE43: 56 | BF43: 6947.639485 | BG43: 6172 | BH43: 10125 | BI43: 9588 | BJ43: 537 | BQ43: 445 | BR43: 902 | CM43: 105 | CZ43: 5995 | DA43: 9687 | DB43: 9200 | DC43: 487 | DJ43: 395 | DK43: 947 | ED43: 105 | EF43: 135 | ES43: 6005 | ET43: 9644 | EU43: 9180 | EV43: 464 | FC43: 372 | FD43: 926 | FW43: 105 | FY43: 1950 | FZ43: 1857 | GA43: 1857 | GB43: 1750 | GF43: -1960 | GI43: -1693 | GL43: -107 | GO43: -262 | HX43: 4886 | HY43: -4886
A44: Pohjois-Karjalan koulutuskuntayhtymä | B44: 6981 | D44: 0.2967189729 | E44: 35 | F44: -1111 | J44: 69 | K44: 492 | L44: 30 | M44: 6022.564981 | N44: 50348 | O44: 76360 | P44: 71163 | Q44: 5197 | X44: 5422 | Y44: 5171 | AR44: 754 | AT44: 281 | AW44: 0.4603629417 | AX44: 35.8 | AY44: -1552 | BC44: 63.8 | BD44: 328 | BE44: 19 | BF44: 6405.89504 | BG44: 46533 | BH44: 72354 | BI44: 67352 | BJ44: 5002 | BQ44: 5240 | BR44: 5215 | CM44: 725 | CZ44: 44652 | DA44: 69594 | DB44: 63988 | DC44: 5606 | DJ44: 5835 | DK44: 5008 | ED44: 700 | EF44: 217 | ES44: 43261 | ET44: 67729 | EU44: 62123 | EV44: 5606 | FC44: 5835 | FD44: 4973 | FW44: 670 | FY44: 10067 | FZ44: 10250 | GA44: 10250 | GB44: 9237 | GF44: -6296 | GI44: -7590 | GL44: -13460 | GO44: -9350 | HX44: 555 | HY44: -555
A45: Itä-Uudenmaan koulutuskuntayhtymä | B45: 7303 | D45: 0.4405436014 | E45: 38.3 | F45: -1751 | J45: 54.3 | K45: 33 | L45: 2 | M45: 6346.033898 | N45: 22349 | O45: 36851 | P45: 36076 | Q45: 775 | X45: 732 | Y45: 1928 | AR45: 495 | AT45: 273 | AW45: 1.432512315 | AX45: 60.7 | AY45: -2635 | BC45: 41.6 | BD45: 149 | BE45: 7 | BF45: 7321.807787 | BG45: 22478 | BH45: 36413 | BI45: 35280 | BJ45: 1133 | BQ45: 1023 | BR45: 1846 | CM45: 500 | CZ45: 22059 | DA45: 35645 | DB45: 34626 | DC45: 1019 | DJ45: 919 | DK45: 1846 | ED45: 510 | EF45: 185 | ES45: 22111 | ET45: 36233 | EU45: 34797 | EV45: 1436 | FC45: 1336 | FD45: 1846 | FW45: 510 | FY45: 7176 | FZ45: 6117 | GA45: 6117 | GB45: 5904 | GF45: -4290 | GI45: -1915 | GL45: -2650 | GO45: -2350 | GX45: 5337 | HB45: 4018 | HF45: 3620 | HJ45: 3222 | HX45: 744 | HY45: -744
A46: Raahen koulutuskuntayhtymä | B46: 12099 | D46: 0.4956830879 | E46: 62.8 | F46: -3122 | J46: 50.5 | K46: 27 | L46: 1 | M46: 6511.430493 | N46: 7290 | O46: 11467 | P46: 10579 | Q46: 888 | X46: 890 | Y46: 827 | AR46: 131 | AT46: 252 | AW46: 0.6705267938 | AX46: 64.9 | AY46: -3317 | BC46: 47.9 | BD46: 124 | BE46: 7 | BF46: 6381.633672 | BG46: 6631 | BH46: 11173 | BI46: 10200 | BJ46: 973 | BQ46: 981 | BR46: 842 | CM46: 127 | CZ46: 6500 | DA46: 10720 | DB46: 9750 | DC46: 970 | DJ46: 870 | DK46: 855 | ED46: 125 | EF46: 229 | ES46: 6300 | ET46: 10620 | EU46: 9620 | EV46: 1000 | FC46: 900 | FD46: 865 | FW46: 123 | FY46: 1595 | FZ46: 1898 | GA46: 1898 | GB46: 1800 | GF46: -2214 | GI46: -1406 | GL46: -1285 | GO46: -1459 | GX46: 1100 | HB46: 1315 | HF46: 1371 | HJ46: 1427 | HX46: 2979 | HY46: -2979
A47: Raision seudun koulutuskuntayhtymä | B47: 5614 | D47: 10.43209877 | E47: 32.6 | F47: -887 | J47: 62.7 | K47: 709 | L47: 32 | M47: 8114.844018 | N47: 13284 | O47: 20349 | P47: 19756 | Q47: 593 | X47: 599 | Y47: 1447 | AR47: 258 | AT47: 159 | AW47: 0.9449367089 | AX47: 30.5 | AY47: -1199 | BC47: 63.7 | BD47: 695 | BE47: 29 | BF47: 8812.576849 | BG47: 13096 | BH47: 19773 | BI47: 19384 | BJ47: 389 | BQ47: 396 | BR47: 1690 | CM47: 250 | CZ47: 12757 | DA47: 19674 | DB47: 18920 | DC47: 754 | DJ47: 760 | DK47: 1737 | ED47: 243 | EF47: 150 | ES47: 12245 | ET47: 19445 | EU47: 18416 | EV47: 1029 | FC47: 1035 | FD47: 1675 | FW47: 233 | FY47: 2574 | FZ47: 2771 | GA47: 2771 | GB47: 2668 | GF47: -6793 | GI47: -835 | GL47: -915 | GO47: -735 | HX47: 0 | HY47: 0
A48: Salon seudun koulutuskuntayhtymä | B48: 28219 | D48: 1.240147995 | E48: 44.3 | F48: -2070 | J48: 57.4 | K48: 482 | L48: 25 | M48: 6177.999438 | N48: 17477 | O48: 28200 | P48: 26365 | Q48: 1835 | X48: 1651 | Y48: 2668 | AR48: 291 | AT48: 40 | AW48: 0.7227441556 | AX48: 43.9 | AY48: -2174 | BC48: 57.5 | BD48: 445 | BE48: 18 | BF48: 9209.408355 | BG48: 16602 | BH48: 27031 | BI48: 24629 | BJ48: 2402 | BQ48: 2154 | BR48: 2707 | CM48: 291 | CZ48: 16540 | DA48: 27026 | DB48: 24481 | DC48: 2545 | DJ48: 2292 | DK48: 2671 | ED48: 291 | EF48: 54 | ES48: 15961 | ET48: 25785 | EU48: 23180 | EV48: 2605 | FC48: 2361 | FD48: 2519 | FW48: 291 | FY48: 4089 | FZ48: 3535 | GA48: 3535 | GB48: 3167 | GF48: -6033 | GI48: -5003 | GL48: -352 | GO48: -1217 | GX48: 9550 | HB48: 10713 | HF48: 10338 | HJ48: 9963 | HX48: 11458 | HY48: -11458
A49: Itä-Savon koulutuskuntayhtymä | B49: 6794 | D49: 2.064754098 | E49: 41.3 | F49: -1136 | J49: 63.6 | K49: 948 | L49: 43 | M49: 10950.84394 | N49: 14672 | O49: 21077 | P49: 20013 | Q49: 1064 | X49: 1064 | Y49: 1058 | AR49: 278,5 | AT49: 12 | AW49: 1.662908243 | AX49: 37.7 | AY49: -1413 | BC49: 66.2 | BD49: 549 | BE49: 23 | BF49: 8748.217469 | BG49: 14316 | BH49: 20771 | BI49: 19671 | BJ49: 1100 | BQ49: 1100 | BR49: 1174 | CM49: 267 | CZ49: 14162 | DA49: 20500 | DB49: 19400 | DC49: 1100 | DJ49: 1100 | DK49: 1130 | ED49: 257 | EF49: 21 | ES49: 13943 | ET49: 20200 | EU49: 19100 | EV49: 1100 | FC49: 1100 | FD49: 1170 | FW49: 256,5 | FY49: 2333 | FZ49: 2341 | GA49: 2341 | GB49: 2101 | GF49: -2373 | GI49: -1288 | GL49: -976 | GO49: -898 | HX49: 1630 | HY49: -1630
A50: Valkeakosken seudun koulutuskuntayhtymä | B50: 5562 | D50: 1.280144404 | E50: 51.6 | F50: -2581 | J50: 39.4 | K50: 88 | L50: 5 | M50: 6756.338788 | N50: 8616 | O50: 12183 | P50: 11743 | Q50: 440 | X50: 415 | Y50: 880 | AR50: 154 | AT50: 28 | AW50: 1.348073022 | AX50: 56.5 | AY50: -2723 | BC50: 40.5 | BD50: 324 | BE50: 17 | BF50: 6817.26255 | BG50: 8338 | BH50: 11996 | BI50: 11596 | BJ50: 400 | BQ50: 397 | BR50: 770 | CM50: 142 | CZ50: 8228 | DA50: 12000 | DB50: 11500 | DC50: 500 | DJ50: 504 | DK50: 715 | ED50: 142 | EF50: 107 | ES50: 8043 | ET50: 12000 | EU50: 11315 | EV50: 685 | FC50: 691 | FD50: 691 | FW50: 142 | FY50: 1195 | FZ50: 1270 | GA50: 1270 | GB50: 1270 | GF50: -194 | GI50: -242 | GL50: -300 | GO50: -300 | GX50: 834 | HB50: 184 | HF50: 89 | HX50: 2239 | HY50: -2239
A51: Ylä-Savon koulutuskuntayhtymä | B51: 2257 | D51: 0.2579957356 | E51: 13.8 | F51: -399 | J51: 79.8 | K51: 402 | L51: 20 | M51: 8557.349193 | N51: 14700 | O51: 25391 | P51: 23971 | Q51: 1420 | X51: 1388 | Y51: 1230 | AR51: 276 | AT51: 304 | AW51: -1.055147059 | AX51: 16.1 | AY51: -843 | BC51: 76.1 | BD51: 175 | BE51: 8 | BF51: 7810.043668 | BG51: 14171 | BH51: 24467 | BI51: 22865 | BJ51: 1602 | BQ51: 1571 | BR51: 1289 | CM51: 265 | CZ51: 13341 | DA51: 23306 | DB51: 21790 | DC51: 1516 | DJ51: 1484 | DK51: 1256 | ED51: 250 | EF51: 244 | ES51: 13360 | ET51: 23293 | EU51: 21782 | EV51: 1511 | FC51: 1479 | FD51: 1231 | FW51: 250 | FY51: 3763 | FZ51: 3765 | GA51: 3765 | GB51: 3485 | GF51: -2770 | GG51: 1530 | GI51: -1092 | GJ51: 240 | GL51: -3757 | GO51: -1550 | GX51: 1096 | HB51: 822 | HF51: 548 | HJ51: 274 | HX51: 172 | HY51: -172
A52: Optima samkommun | B52: 4854 | D52: 0.846740638 | E52: 33.3 | F52: -874 | J52: 61.6 | K52: 720 | L52: 41 | M52: 5784.035656 | N52: 12790 | O52: 21472 | P52: 20189 | Q52: 1283 | X52: 1010 | Y52: 1100 | AR52: 270 | AT52: 167 | AW52: 0.5858585859 | AX52: 38.3 | AY52: -1582 | BC52: 58.5 | BD52: 433 | BE52: 22 | BF52: 7218.993041 | BG52: 12698 | BH52: 20573 | BI52: 19241 | BJ52: 1332 | BQ52: 1136 | BR52: 1200 | CM52: 273 | CZ52: 12384 | DA52: 20158 | DB52: 18854 | DC52: 1304 | DJ52: 1115 | DK52: 1170 | ED52: 271 | EF52: 200 | ES52: 12384 | ET52: 20090 | EU52: 18854 | EV52: 1236 | FC52: 1056 | FD52: 1070 | FW52: 269 | FY52: 3689 | FZ52: 3085 | GA52: 3085 | GB52: 3050 | GF52: -5109 | GI52: -618 | GL52: -963 | GO52: -750 | GX52: 5163 | HB52: 2204 | HF52: 1744 | HJ52: 1302 | HX52: 1420 | HY52: -1420
A53: Äänekosken ammatillisen koulutuksen ky. | B53: 7987 | D53: -19.51230101 | E53: 29.1 | F53: 906 | J53: 33.5 | K53: 1921 | L53: 77 | M53: 9117.589176 | N53: 12542 | O53: 21742 | P53: 21225 | Q53: 517 | X53: 666 | Y53: 1250 | AR53: 232 | AT53: 320 | AW53: -0.4757142857 | AX53: 57.5 | AY53: -3333 | BC53: 31.6 | BD53: 1196 | BE53: 46 | BF53: 9556.684426 | BG53: 12072 | BH53: 20961 | BI53: 20266 | BJ53: 695 | BQ53: 893 | BR53: 1281 | CM53: 225 | CZ53: 11762 | DA53: 20145 | DB53: 19576 | DC53: 569 | DJ53: 769 | DK53: 1281 | ED53: 218 | EF53: 304 | ES53: 11626 | ET53: 20045 | EU53: 19440 | EV53: 605 | FC53: 804 | FD53: 1281 | FW53: 217 | FY53: 5706 | FZ53: 5375 | GA53: 5375 | GB53: 5106 | GE53: 1000 | GF53: -2000 | GI53: -1983 | GL53: -700 | GO53: -600 | HX53: 1312 | HY53: -1312
A54: Samkommunen för yrkesutbildning i östra Nyland | B54: 16842 | D54: 0.6542865986 | E54: 47.1 | F54: -2109 | J54: 53.5 | K54: 346 | L54: 21 | M54: 6056.839623 | N54: 2926 | O54: 4074 | P54: 4102 | Q54: -28 | X54: 0 | Y54: 536 | AR54: 58 | AT54: 202 | AW54: 0.3730084349 | AX54: 50.7 | AY54: -2509 | BC54: 49.6 | BD54: 258 | BE54: 14 | BF54: 6525.500857 | BG54: 2986 | BH54: 3668 | BI54: 4146 | BJ54: -478 | BQ54: -458 | BR54: 536 | CM54: 55 | CZ54: 2986 | DA54: 3540 | DB54: 4146 | DC54: -606 | DJ54: -591 | DK54: 536 | ED54: 52 | EF54: 170 | ES54: 2986 | ET54: 3421 | EU54: 4146 | EV54: -725 | FC54: -715 | FD54: 536 | FW54: 50 | FY54: 262 | FZ54: 377 | GA54: 377 | GB54: 377 | GF54: -494 | GI54: -933 | GL54: -1067 | GO54: -4790 | GX54: 312 | HX54: 5623 | HY54: -5623
A55: Koulutuskeskus Tavastia | B55: 74471 | D55: 2.122368308 | E55: 32.8 | F55: -854 | J55: 65.3 | K55: 947 | L55: 51 | M55: 6834.133247 | N55: 24317 | O55: 37753 | P55: 36261 | Q55: 1492 | X55: 1339 | Y55: 2305 | AR55: 470 | AT55: 122 | AW55: 0.9133723949 | AX55: 37.7 | AY55: -1182 | BC55: 61.2 | BD55: 999 | BE55: 51 | BF55: 7100.771222 | BG55: 28567 | BH55: 43327 | BI55: 41974 | BJ55: 1353 | BQ55: 1197 | BR55: 2352 | CM55: 490 | CZ55: 28616 | DA55: 42385 | DB55: 41290 | DC55: 1095 | DJ55: 962 | DK55: 2300 | ED55: 485 | EF55: 109 | ES55: 28765 | ET55: 42747 | EU55: 41193 | EV55: 1554 | FC55: 1420 | FD55: 5127 | FW55: 485 | FY55: 6516 | FZ55: 6817 | GA55: 6817 | GB55: 6530 | GF55: -2415 | GI55: -1960 | GL55: -1900 | GO55: -2500 | GX55: 3186 | HB55: 2686 | HF55: 2186 | HJ55: 9500 | HX55: 9446 | HY55: -9446
A56: Espoon seudun koulutuskuntayhtymä | B56: 5595 | D56: 0.8566206336 | E56: 41.4 | F56: -1742 | J56: 56.2 | K56: 56 | L56: 3 | M56: 5920.190275 | N56: 42676 | O56: 71638 | P56: 67176 | Q56: 4462 | X56: 4512 | Y56: 4383 | AR56: 745 | AT56: 110 | AW56: 1.001552795 | AX56: 48.2 | AY56: -1896 | BC56: 51.6 | BD56: 259 | BE56: 16 | BF56: 5995.746943 | BG56: 52118 | BH56: 82861 | BI56: 79018 | BJ56: 3843 | BQ56: 3892 | BR56: 4597 | CM56: 850 | CZ56: 52162 | DA56: 83552 | DB56: 78958 | DC56: 4594 | DJ56: 4694 | DK56: 4592 | ED56: 850 | EF56: 125 | ES56: 52489 | ET56: 83954 | EU56: 79202 | EV56: 4752 | FC56: 4852 | FD56: 4245 | FW56: 850 | FY56: 14558 | FZ56: 16616 | GA56: 16616 | GB56: 16614 | GF56: -2238 | GI56: -2218 | GL56: -1837 | GO56: -2421 | HX56: 2224 | HY56: -2224
A57: EVTEK-Kuntayhtymä | B57: 5213 | D57: 0.2153846154 | E57: 45.5 | F57: -2963 | J57: 47.7 | K57: 139 | L57: 5 | M57: 9229.314863 | N57: 320 | O57: 1847 | P57: 576 | Q57: 1271 | X57: 750 | Y57: 750 | AT57: 266 | AW57: 0.4118993135 | AX57: 49.8 | AY57: -3363 | BC57: 44.3 | BD57: 218 | BE57: 9 | BF57: 9166.509167 | BG57: 320 | BH57: 1755 | BI57: -624 | BJ57: 2379 | BQ57: 658 | BR57: 658 | CZ57: 320 | DA57: 1755 | DB57: 624 | DC57: 1131 | DJ57: 658 | DK57: 658 | EF57: 180 | ES57: 320 | ET57: 1755 | EU57: 624 | EV57: 1131 | FC57: 658 | FD57: 658 | FY57: 250 | FZ57: 276 | GA57: 276 | GB57: 276 | GF57: -500 | GI57: -500 | GL57: -500 | GO57: -500 | HX57: 1768 | HY57: -1768
A58: Rovaniemen koulutuskuntayhtymä | B58: 4857 | D58: 0.6150643452 | E58: 53.5 | F58: -2978 | J58: 28.3 | K58: 215 | L58: 11 | M58: 7306.373538 | N58: 34478 | O58: 62389 | P58: 58935 | Q58: 3454 | X58: 3215 | Y58: 3318 | AR58: 693 | AT58: 147 | AW58: 0.2728306177 | AX58: 59.7 | AY58: -3499 | BC58: 23.5 | BD58: 156 | BE58: 7 | BF58: 8424.050633 | BG58: 32346 | BH58: 59666 | BI58: 54853 | BJ58: 4813 | BQ58: 4653 | BR58: 3422 | CM58: 660 | CZ58: 31270 | DA58: 57666 | DB58: 52865 | DC58: 4801 | DJ58: 4641 | DK58: 3482 | ED58: 627 | EF58: 240 | ES58: 31321 | ET58: 57822 | EU58: 52951 | EV58: 4871 | FC58: 4711 | FD58: 3442 | FW58: 627 | FY58: 12200 | FZ58: 12210 | GA58: 12210 | GB58: 12045 | GF58: -6908 | GG58: 620 | GI58: -11341 | GJ58: 460 | GL58: -6406 | GM58: 250 | GO58: -3965 | GX58: 6594 | HB58: 10840 | HF58: 10286 | HJ58: 9732 | HX58: 2380 | HY58: -2380
A59: Suupohjan koulutuskuntayhtymä | B59: 4995 | D59: 0.5197762685 | E59: 68 | F59: -4001 | J59: 39.4 | K59: 263 | L59: 12 | M59: 8186.941314 | N59: 5347 | O59: 9259 | P59: 9432 | Q59: -173 | X59: -211 | Y59: 613 | AR59: 105 | AT59: 236 | AW59: 0.6194782609 | AX59: 57.8 | AY59: -3287 | BC59: 43 | BD59: 314 | BE59: 15 | BF59: 7705.674455 | BG59: 5144 | BH59: 7644 | BI59: 8824 | BJ59: -1180 | BQ59: -1206 | BR59: 433 | CM59: 94 | CZ59: 5245 | DA59: 7451 | DB59: 8803 | DC59: -1352 | DJ59: -1390 | DK59: 473 | EF59: 249 | ES59: 5245 | ET59: 7151 | EU59: 8803 | EV59: -1652 | FC59: -1690 | FD59: 473 | FY59: 1725 | FZ59: 1702 | GA59: 1702 | GB59: 1672 | GC59: 850 | GD59: 700 | GF59: -1341 | GI59: -773 | GL59: -712 | GO59: -360 | GX59: 1020 | HB59: 8010 | HF59: 250 | HX59: 1948 | HY59: -1948
A60: Oulun seudun koulutuskuntayhtymä | B60: 5203 | E60: 12.7 | F60: 1426 | J60: 84.4 | K60: 1930 | L60: 95 | M60: 7395.928847 | N60: 50546 | O60: 95499 | P60: 84432 | Q60: 11067 | X60: 10702 | Y60: 14407 | AR60: 971 | AT60: 262 | AX60: 15.5 | AY60: 938 | BC60: 80.2 | BD60: 1561 | BE60: 69 | BF60: 8262.772352 | BG60: 49812 | BH60: 92125 | BI60: 80445 | BJ60: 11680 | BQ60: 11550 | BR60: 11990 | CM60: 969 | CZ60: 50303 | DA60: 92975 | DB60: 80375 | DC60: 12600 | DJ60: 12100 | DK60: 8410 | ED60: 965 | EF60: 206 | ES60: 50935 | ET60: 93221 | EU60: 80411 | EV60: 12810 | FC60: 12310 | FD60: 8030 | FW60: 965 | FY60: 20018 | FZ60: 17331 | GA60: 17331 | GB60: 16983 | GF60: -7500 | GI60: -7000 | GK60: 1900 | GL60: -10350 | GO60: -10600 | GX60: 40314 | HB60: 36068 | HF60: 30345 | HJ60: 26522 | HX60: 0 | HY60: 0
A61: Päijät-Hämeen koulutuskonserni | B61: 2039 | D61: 1.258706468 | E61: 34.8 | F61: -1640 | J61: 65.3 | K61: 172 | L61: 10 | M61: 6394.428152 | N61: 77499 | O61: 124374 | P61: 114566 | Q61: 9808 | X61: 9479 | Y61: 10670 | AR61: 1453 | AT61: 107 | AW61: -1.913580247 | AX61: 49.8 | AY61: -2501 | BC61: 55 | BD61: 80 | BE61: 4 | BF61: 6953.04004 | BG61: 50874 | BH61: 85495 | BI61: 78013 | BJ61: 7482 | BQ61: 7208 | BR61: 9612 | CM61: 996 | CZ61: 49307 | DA61: 84010 | DB61: 75610 | DC61: 8400 | DJ61: 8107 | DK61: 9948 | ED61: 842 | EF61: 216 | ES61: 47175 | ET61: 84010 | EU61: 74640 | EV61: 9370 | FC61: 9012 | FD61: 9592 | FW61: 833 | FY61: 16492 | FZ61: 12732 | GA61: 12732 | GB61: 11806 | GF61: -9214 | GI61: -4391 | GL61: -9806 | GO61: -9200 | GX61: 9679 | HB61: 10372 | HF61: 8067 | HJ61: 10133 | HX61: 532 | HY61: -532
A62: Savonia-ammattikorkeakoulun kuntayhtymä | B62: 6684 | D62: 0.3515754561 | E62: 37.7 | F62: -2249 | J62: 53.8 | K62: 217 | L62: 9 | M62: 8901.767604 | N62: 28614 | O62: 56572 | P62: 53088 | Q62: 3484 | X62: 3389 | Y62: 2503 | AR62: 465 | AT62: 277 | AW62: 2.522707035 | AX62: 39 | AY62: -2576 | BC62: 64.3 | BD62: 334 | BE62: 13 | BF62: 9213.917146 | BH62: 887 | BI62: 618 | BJ62: 269 | BQ62: 270 | BR62: 270 | EF62: 139 | FW62: 0 | FY62: 10541 | FZ62: 126 | GA62: 126 | GB62: 0 | GF62: -10179 | GG62: 900 | GX62: 1247 | HX62: 941 | HY62: -941
A63: Seinäjoen koulutuskuntayhtymä | B63: 134658 | D63: 0.6714427183 | E63: 57.6 | F63: -2793 | J63: 58 | K63: 61 | L63: 3 | M63: 6723.213339 | N63: 38528 | O63: 65491 | P63: 61935 | Q63: 3556 | X63: 3886 | Y63: 2676 | AR63: 800 | AT63: 246 | AW63: 0.5014615998 | AX63: 66.7 | AY63: -3401 | BC63: 51.5 | BD63: 21 | BE63: 1 | BF63: 6486.559986 | BG63: 38079 | BH63: 63785 | BI63: 60617 | BJ63: 3168 | BQ63: 3211 | BR63: 2687 | CM63: 790 | CZ63: 37763 | DA63: 63785 | DB63: 59348 | DC63: 4437 | DJ63: 3300 | DK63: 2700 | ED63: 820 | EF63: 171 | ES63: 37200 | ET63: 62315 | EU63: 58215 | EV63: 4100 | FC63: 3200 | FD63: 2800 | FW63: 820 | FY63: 10272 | FZ63: 10100 | GA63: 10100 | GB63: 10900 | GF63: -5478 | GH63: 3853 | GI63: -4418 | GL63: -7000 | GO63: -3000 | GX63: 8978 | HB63: 7970 | HF63: 7000 | HJ63: 6000 | HX63: 25477 | HY63: -25477
A64: Hämeen ammatillisen korkeakoulutuksen ky. | B64: 1971 | D64: -0.107830552 | E64: 38.4 | F64: -1947 | J64: 40.8 | K64: 67 | L64: 4 | M64: 6294.558163 | N64: 41005 | O64: 64855 | P64: 60734 | Q64: 4121 | X64: 4161 | Y64: 3650 | AT64: 303 | AW64: 0.02418207681 | AX64: 39.2 | AY64: -2088 | BC64: 36.2 | BD64: 60 | BE64: 3 | BF64: 6506.545821 | BJ64: 0 | EF64: 213 | FY64: 11032 | GC64: 350 | GD64: 260 | GE64: 260 | GF64: -6640 | GH64: 30 | HX64: 716 | HY64: -716
A65: Mikkelin ammattikorkeakouluyhtymä | B65: 22138 | D65: 0.8708427107 | E65: 42.2 | F65: -1814 | J65: 59.5 | K65: 397 | L65: 18 | M65: 8204.114276 | N65: 54 | O65: 4392 | P65: 1324 | Q65: 3068 | X65: 2348 | Y65: 1700 | AR65: 1,5 | AT65: 158 | AW65: 0.3566670704 | AX65: 41.8 | AY65: -2050 | BC65: 57.7 | BD65: 257 | BE65: 12 | BF65: 7926.679789 | BG65: 112 | BH65: 4556 | BI65: 1494 | BJ65: 3062 | BQ65: 2212 | BR65: 1850 | CM65: 1,5 | DA65: 4650 | DB65: 1520 | DC65: 3130 | DJ65: 2280 | DK65: 1880 | EF65: 68 | ET65: 4730 | EU65: 1570 | EV65: 3160 | FC65: 2340 | FD65: 1900 | FY65: 448 | FZ65: 529 | GA65: 529 | GF65: -1972 | GI65: -3166 | GL65: -1994 | GO65: -250 | GX65: 24762 | HB65: 31762 | HX65: 6948 | HY65: -6948
A66: Etelä-Karjalan koulutuskuntayhtymä | B66: 39953 | D66: 6.162642522 | E66: 28.8 | F66: -1340 | J66: 72.4 | K66: 32 | L66: 2 | M66: 5780.398296 | N66: 25872 | O66: 41104 | P66: 38872 | Q66: 2232 | X66: 2102 | Y66: 2418 | AR66: 455 | AT66: 53 | AW66: 3.171627368 | AX66: 32.9 | AY66: -1599 | BC66: 68.3 | BD66: 13 | BE66: 1 | BF66: 6074.05539 | BG66: 26439 | BH66: 40732 | BI66: 38435 | BJ66: 2297 | BQ66: 2203 | BR66: 2634 | CM66: 472 | CZ66: 26332 | DA66: 40306 | DB66: 37925 | DC66: 2381 | DJ66: 2261 | DK66: 2759 | ED66: 470 | EF66: 131 | ES66: 25428 | ET66: 39572 | EU66: 37021 | EV66: 2551 | FC66: 2401 | FD66: 2884 | FW66: 455 | FY66: 6242 | FZ66: 5795 | GA66: 5795 | GB66: 5595 | GF66: -4400 | GI66: -4780 | GJ66: 130 | GL66: -5250 | GO66: -1650 | GX66: 3900 | HB66: 3500 | HF66: 3000 | HJ66: 2500 | HX66: 2326 | HY66: -2326
A67: Peimarin koulutuskuntayhtymä | B67: 31798 | D67: 10.86783042 | E67: 48.4 | F67: -1850 | J67: 53.6 | K67: 551 | L67: 34 | M67: 5853.640488 | N67: 9130 | O67: 13930 | P67: 13213 | Q67: 717 | X67: 717 | Y67: 681 | AR67: 176 | AT67: 74 | AW67: 6.451038576 | AX67: 48.4 | AY67: -2230 | BC67: 53.1 | BD67: 185 | BE67: 11 | BF67: 5973.950196 | BG67: 8945 | BH67: 13974 | BI67: 13017 | BJ67: 957 | BQ67: 957 | BR67: 852 | CM67: 174 | CZ67: 9023 | DA67: 13803 | DB67: 13016 | DC67: 787 | DJ67: 786 | DK67: 832 | ED67: 172 | EF67: 108 | ES67: 9112 | ET67: 13772 | EU67: 13118 | EV67: 654 | FC67: 653 | FD67: 781 | FW67: 170 | FY67: 1945 | FZ67: 1766 | GA67: 1766 | GB67: 1775 | GF67: -3120 | GI67: -785 | GJ67: 24 | GL67: -786 | GO67: -653 | HX67: 460 | HY67: =HX67*-1 -> -460
A68: Järviseudun koulutuskuntayhtymä | B68: 3261 | D68: 1.12864494 | E68: 28.9 | F68: -1273 | J68: 58.6 | K68: 348 | L68: 19 | M68: 6828.951256 | N68: 5084 | O68: 8857 | P68: 8560 | Q68: 297 | X68: 337 | Y68: 372 | AR68: 94 | AT68: 223 | AW68: 0.3519637462 | AX68: 27.1 | AY68: -1390 | BC68: 57.1 | BD68: 237 | BE68: 12 | BF68: 7502.564103 | BG68: 4728 | BH68: 8023 | BI68: 8051 | BJ68: -28 | BQ68: 13 | BR68: 388 | CM68: 87 | CZ68: 4397 | DA68: 7366 | DB68: 7477 | DC68: -111 | DJ68: -71 | DK68: 390 | ED68: 84 | EF68: 173 | ES68: 4334 | ET68: 7458 | EU68: 7377 | EV68: 81 | FC68: 121 | FD68: 395 | FW68: 81 | FY68: 1880 | FZ68: 1842 | GA68: 1842 | GB68: 1634 | GF68: -701 | GG68: 361 | GI68: -322 | GJ68: 60 | GL68: -170 | GO68: -75 | GX68: 64 | HB68: 5 | HX68: 479 | HY68: -479
A69: Savon koulutuskuntayhtymä | B69: 37868 | D69: 0.9087346025 | E69: 38.3 | F69: -1909 | J69: 60.4 | K69: 226 | L69: 12 | M69: 7033.723222 | N69: 55793 | O69: 102512 | P69: 97540 | Q69: 4972 | X69: 4534 | Y69: 4002 | AR69: 950 | AT69: 185 | AW69: 0.7214444189 | AX69: 43.4 | AY69: -2279 | BC69: 57 | BD69: 201 | BE69: 10 | BF69: 7219.972085 | BG69: 50867 | BH69: 96907 | BI69: 92308 | BJ69: 4599 | BQ69: 4205 | BR69: 3764 | CM69: 900 | CZ69: 48809 | DA69: 93046 | DB69: 86038 | DC69: 7008 | DJ69: 6650 | DK69: 3867 | ED69: 880 | EF69: 28 | ES69: 45654 | ET69: 83920 | EU69: 76937 | EV69: 6983 | FC69: 6660 | FD69: 3995 | FW69: 850 | FY69: 17289 | FZ69: 17879 | GA69: 17879 | GB69: 14157 | GF69: -4137 | GG69: 103 | GI69: -4344 | GJ69: 32 | GL69: -8360 | GO69: -16095 | GX69: 10104 | HB69: 8914 | HF69: 7723 | HJ69: 9033 | HX69: 9462 | HY69: -9462
A70: Kotkan-Haminan seudun koulutuskuntayhtymä | B70: 12644 | D70: 1.95842511 | E70: 51 | F70: -1570 | J70: 58.9 | K70: 1124 | L70: 59 | M70: 7012.840837 | N70: 21925 | O70: 35745 | P70: 33165 | Q70: 2580 | X70: 2330 | Y70: 1788 | AR70: 384 | AT70: 34 | AW70: 1.238785682 | AX70: 54.9 | AY70: -1834 | BC70: 56.6 | BD70: 1062 | BE70: 51 | BF70: 7607.762376 | BG70: 20849 | BH70: 34100 | BI70: 31447 | BJ70: 2653 | BQ70: 2430 | BR70: 1856 | CM70: 380 | CZ70: 20742 | DA70: 33809 | DB70: 31168 | DC70: 2641 | DJ70: 2438 | DK70: 1957 | ED70: 370 | EF70: 91 | ES70: 20513 | ET70: 33250 | EU70: 30860 | EV70: 2390 | FC70: 2207 | FD70: 2058 | FW70: 360 | FY70: 5416 | FZ70: 5285 | GA70: 5285 | GB70: 5216 | GF70: -2319 | GI70: -1814 | GL70: -1700 | GO70: -1700 | GX70: 12531 | HB70: 11531 | HF70: 10531 | HJ70: 9531 | HX70: 3053 | HY70: -3053
A71: Kemi-Tornionlaakson koulutuskuntayhtymä Lappia | B71: 30345 | D71: 1.931598342 | E71: 43.6 | F71: -952 | J71: 56.6 | K71: 1320 | L71: 68 | M71: 7096.082433 | N71: 21713 | O71: 37824 | P71: 34673 | Q71: 3151 | X71: 3096 | Y71: 3349 | AR71: 384 | AT71: 37 | AW71: 1.302251895 | AX71: 45.7 | AY71: -1288 | BC71: 54.5 | BD71: 1029 | BE71: 50 | BF71: 7587.963885 | BG71: 20127 | BH71: 34478 | BI71: 31981 | BJ71: 2497 | BQ71: 2459 | BR71: 2579 | CM71: 333 | CZ71: 19006 | DA71: 32003 | DB71: 29393 | DC71: 2610 | DJ71: 2560 | DK71: 2560 | ED71: 329,5 | EF71: 48 | ES71: 18664 | ET71: 31003 | EU71: 28393 | EV71: 2610 | FC71: 2560 | FD71: 2560 | FW71: 324,5 | FY71: 5868 | FZ71: 5784 | GA71: 5784 | GB71: 4481 | GF71: -3095 | GI71: -2527 | GL71: -1700 | GO71: -3215 | GX71: 3419 | HB71: 2670 | HF71: 2167 | HJ71: 1692 | HX71: 7141 | HY71: -7141
A72: Jokilaaksojen koulutuskuntayhtymä JEDU | B72: 5801 | D72: 0.7656623625 | E72: 45.1 | F72: -2663 | J72: 54.3 | K72: 49 | L72: 2 | M72: 7402.557545 | N72: 27987 | O72: 43377 | P72: 40215 | Q72: 3162 | X72: 3167 | Y72: 3742 | AR72: 541 | AT72: 187 | AW72: 1.139801774 | AX72: 41.3 | AY72: -2426 | BC72: 56.1 | BD72: 84 | BE72: 4 | BF72: 7025.004282 | BG72: 26696 | BH72: 41032 | BI72: 38389 | BJ72: 2643 | BQ72: 2642 | BR72: 3164 | CM72: 520 | CZ72: 26217 | DA72: 40407 | DB72: 37653 | DC72: 2754 | DJ72: 2753 | DK72: 2929 | ED72: 508 | EF72: 116 | ES72: 26014 | ET72: 40126 | EU72: 37013 | EV72: 3113 | FC72: 3113 | FD72: 2971 | FW72: 497 | FY72: 5256 | FZ72: 4972 | GA72: 4972 | GB72: 4444 | GF72: -4410 | GG72: 64 | GI72: -5535 | GJ72: 882 | GL72: -5902 | GO72: -3448 | GX72: 1600 | HB72: 1700 | HF72: 3600 | HJ72: 800 | HX72: 1782 | HY72: -1782
A73: Pohjois-Suomen laboratoriokeskuksen liikelaitoskuntayhtymä | B73: 11972 | D73: -0.03909774436 | E73: 49.8 | F73: -2168 | J73: 34.1 | K73: 152 | L73: 8 | M73: 6608.875642 | N73: 28210 | O73: 62186 | P73: 60680 | Q73: 1506 | X73: 1381 | Y73: 806 | AR73: 639 | AT73: 296 | AW73: 0.3420234394 | AX73: 51.1 | AY73: -2429 | BC73: 30.7 | BD73: 144 | BE73: 8 | BF73: 6738.312286 | BG73: 28158 | BH73: 63456 | BI73: 62135 | BJ73: 1321 | BQ73: 1200 | BR73: 836 | CM73: 649 | CZ73: 28515 | DA73: 63502 | DB73: 61695 | DC73: 1807 | DJ73: 1682 | DK73: 1040 | ED73: 649 | EF73: 236 | ES73: 28515 | ET73: 63502 | EU73: 61695 | EV73: 1807 | FC73: 1682 | FD73: 1040 | FW73: 649 | FY73: 11161 | FZ73: 12039 | GA73: 12039 | GB73: 11400 | GD73: 850 | GF73: -2084 | GI73: -1532 | GL73: -1400 | GO73: -1400 | HX73: 3569 | HY73: -3569
A74: Kainuun sosiaali- ja terveydenhuollon kuntayhtymä | B74: 1520 | D74: 2.019906323 | E74: 68.8 | F74: -2830 | J74: 54.7 | K74: 2910 | L74: 89 | M74: 11939.76684 | N74: 165698 | O74: 327523 | P74: 318094 | Q74: 9429 | X74: 9071 | Y74: 5206 | AR74: 3250 | AT74: 2 | AW74: 1.111310592 | AX74: 71.9 | AY74: -4350 | BC74: 53.7 | BD74: 1442 | BE74: 43 | BF74: 12355.44108 | BG74: 172383 | BH74: 329181 | BI74: 326532 | BJ74: 2649 | BQ74: 2078 | BR74: 5881 | CM74: 3293 | CZ74: 175831 | DA74: 335765 | DB74: 333063 | DC74: 2702 | DJ74: 2120 | DK74: 5999 | EF74: 10 | ES74: 179347 | ET74: 342480 | EU74: 339724 | EV74: 2756 | FC74: 2162 | FD74: 6119 | FW74: 0 | FY74: 98124 | FZ74: 96940 | GA74: 96940 | GB74: 100856 | GF74: -9600 | GG74: 869 | GI74: -17800 | GJ74: 1251 | GL74: -34150 | GO74: -32800 | GX74: 2965 | HB74: 20265 | HF74: 53915 | HJ74: 86215 | HX74: 707 | HY74: -707
A75: Kainuun liitto -kuntayhtymä | B75: 5675 | D75: -0.04291845494 | E75: 30.8 | F75: -1461 | J75: 62.8 | K75: 40 | L75: 2 | M75: 6251.711427 | N75: 1684 | O75: 3598 | P75: 3598 | Q75: =O75-P75 -> 0 | X75: 0 | AR75: 29 | AT75: 290 | AW75: -0.4722617354 | AX75: 39.4 | AY75: -1993 | BC75: 54.1 | BD75: 76 | BE75: 4 | BF75: 6415.620642 | BG75: 1598 | BH75: 2985 | BI75: 2985 | CM75: 25 | CZ75: 1614 | DA75: 3015 | DB75: 3015 | DC75: =DA75-DB75 -> 0 | ED75: 25 | EF75: 156 | ES75: 1630 | ET75: 3045 | EU75: 3045 | FW75: 25 | FY75: 1430 | FZ75: 1133 | GA75: 1133793 | GB75: 1156578 | HX75: 865 | HY75: -865
A76: Järviseudun sähkövoiman ky. | B76: 1462 | D76: 0.2634408602 | E76: 23.8 | F76: -470 | J76: 65.7 | K76: 726 | L76: 43 | M76: 6094.957433 | N76: 30 | O76: 6248 | P76: 6248 | Q76: =O76-P76 -> 0 | X76: 0 | AR76: 0 | AT76: 267 | AW76: 0.3065326633 | AX76: 25.9 | AY76: -640 | BC76: 62.7 | BD76: 841 | BE76: 46 | BF76: 6618.890357 | BG76: 30 | BH76: 6291 | BI76: 6291 | CZ76: 30 | DA76: 6291 | DB76: 6291 | DC76: =DA76-DB76 -> 0 | EF76: 294 | ES76: 30 | ET76: 6291 | EU76: 6291 | FW76: 0 | FY76: 6177 | FZ76: 6261 | GA76: 6261 | GB76: 6261 | GF76: -1 | GX76: 2200 | HB76: 2200 | HF76: 2200 | HJ76: 2000 | HX76: 342 | HY76: -342
A77: Korpelan Voima ky. | B77: 9074 | D77: 0.8582384958 | E77: 78.6 | F77: -4238 | J77: 13.7 | K77: 149 | L77: 9 | M77: 6157.671382 | N77: 1465 | O77: 22478 | P77: 18187 | Q77: 4291 | X77: 4357 | Y77: 2906 | AR77: 23 | AT77: 146 | AW77: 0.3539635439 | AX77: 84 | AY77: -4683 | BC77: 11.5 | BD77: 27 | BE77: 1 | BF77: 6610.593267 | BG77: 1230 | BH77: 5632 | BI77: 2374 | BJ77: 3258 | BQ77: 3335 | BR77: 2507 | CM77: 20 | CZ77: 1243 | DA77: 5909 | DB77: 2156 | DC77: 3753 | DJ77: 3831 | DK77: 2699 | ED77: 20 | EF77: 165 | ES77: 1234 | ET77: 6337 | EU77: 2094 | EV77: 4243 | FC77: 4320 | FD77: 2851 | FW77: 20 | FY77: 435 | FZ77: 493 | GA77: 493 | GB77: 493 | GC77: 1000 | GF77: -5448 | GI77: -4546 | GL77: -3775 | GO77: -4246 | HX77: 3101 | HY77: -3101
A78: Vatajankosken Sähkön kuntayhtymä | B78: 4343 | D78: 2.126436782 | E78: 49.5 | F78: -1427 | J78: 51.2 | K78: 2104 | L78: 97 | M78: 7907.888839 | N78: 0 | O78: 132 | P78: 22 | Q78: 110 | X78: 339 | AR78: 0 | AT78: 204 | AW78: 0.7326923077 | AX78: 48.1 | AY78: -1667 | BC78: 49.8 | BD78: 1840 | BE78: 79 | BF78: 8548.21755 | BG78: 0 | BH78: 132 | BI78: 23 | BJ78: 109 | BQ78: 222 | BR78: 0 | DA78: 133 | DB78: 23 | DC78: 110 | DJ78: 190 | EF78: 225 | ET78: 151 | EU78: 25 | EV78: 126 | FC78: 174 | FW78: 0 | FY78: 8 | FZ78: 8 | GA78: 8 | GB78: 8 | GF78: 0 | GL78: 0 | HX78: 291 | HY78: -291
A79: Tuusulan seudun vesilaitos ky. | B79: 2523 | D79: 37.31818182 | E79: 11.6 | F79: -163 | J79: 88.5 | K79: 142 | L79: 8 | M79: 6289.342055 | N79: 675 | O79: 3372 | P79: 2200 | Q79: 1172 | X79: 1092 | Y79: 927 | AR79: 11 | AT79: 118 | AW79: 42.9375 | AX79: 15.4 | AY79: -245 | BC79: 84.8 | BD79: 446 | BE79: 25 | BF79: 6479.764244 | BG79: 693 | BH79: 3345 | BI79: 2277 | BJ79: 1068 | BQ79: 1028 | BR79: 907 | CM79: 10 | CZ79: 710 | DA79: 3464 | DB79: 2330 | DC79: 1134 | DJ79: 1074 | DK79: 1030 | ED79: 10 | EF79: 95 | ES79: 730 | ET79: 3594 | EU79: 2430 | EV79: 1164 | FC79: 1084 | FD79: 1080 | FW79: 10 | FY79: 1001 | FZ79: 983 | GA79: 983 | GB79: 1050 | GF79: -910 | GI79: -2890 | GJ79: 300 | GL79: -1390 | GO79: -890 | GX79: 3063 | HB79: 4081 | HF79: 4481 | HJ79: 4131 | HX79: 17 | HY79: -17
A80: Hollolan-Lahden vesilaitos ky. | B80: 1350 | D80: -18.44067797 | E80: 53.9 | F80: -2526 | J80: 76.9 | K80: 126 | L80: 5 | M80: 8408.831909 | N80: 28 | O80: 570 | P80: 276 | Q80: 294 | Y80: 180 | AR80: 1 | AT80: 319 | AW80: 0.2388059701 | AX80: 44.8 | AY80: -2645 | BC80: 76.1 | BD80: 46 | BE80: 2 | BF80: 7625.180897 | BG80: 34 | BH80: 570 | BI80: 256 | BJ80: 314 | BR80: 170 | CM80: 1 | CZ80: 35 | DA80: 570 | DB80: 250 | DC80: 320 | DK80: 160 | ED80: 1 | EF80: 8 | ES80: 35 | ET80: 570 | EU80: 250 | EV80: 320 | FD80: 150 | FW80: 1 | FY80: 226 | FZ80: 201 | GA80: 201 | GB80: 200 | GD80: 800 | GF80: -70 | GI80: -70 | GL80: -70 | GO80: -70 | GX80: 1333 | HB80: 1000 | HF80: 867 | HJ80: 734 | HX80: 0 | HY80: 0
A81: Masku-Nousiainen vesilaitos ky. | B81: 14081 | D81: 0.2721186035 | E81: 49.2 | F81: -2983 | J81: 39.2 | K81: 524 | L81: 20 | M81: 9370.657459 | N81: 119 | O81: 518 | P81: 377 | Q81: 141 | X81: 108 | Y81: 108 | AR81: 3 | AT81: 284 | AW81: 0.1763355593 | AX81: 54 | AY81: -3475 | BC81: 33.5 | BD81: 633 | BE81: 24 | BF81: 9637.7497 | BG81: 119 | BH81: 500 | BI81: 384 | BJ81: 116 | BQ81: 100 | BR81: 100 | CM81: 3 | CZ81: 120 | DA81: 502 | DB81: 386 | DC81: 116 | DJ81: 100 | DK81: 100 | ED81: 3 | EF81: 112 | ES81: 121 | ET81: 504 | EU81: 388 | EV81: 116 | FC81: 100 | FD81: 100 | FW81: 3 | FY81: 118 | FZ81: 118 | GA81: 118 | GB81: 118 | GC81: 1200 | GD81: 1500 | GF81: -80 | GG81: 40 | GI81: -50 | GL81: -50 | GO81: -50 | GX81: 386 | HB81: 329 | HF81: 272 | HJ81: 215 | HX81: 3128 | HY81: -3128
A82: Helsingin seudun ympäristöpalvelut -kuntayhtymä (HSY) | B82: 17065 | D82: 1.466420343 | E82: 31.2 | F82: -856 | J82: 61.1 | K82: 835 | L82: 48 | M82: 6338.777874 | N82: 43004 | O82: 346361 | P82: 188533 | Q82: 157828 | X82: 88452 | Y82: 87671 | AR82: 741,2 | AT82: 92 | AW82: 0.7177100303 | AX82: 31.1 | AY82: -935 | BC82: 61 | BD82: 780 | BE82: 43 | BF82: 6555.749331 | BG82: 42742 | BH82: 345928 | BI82: 185200 | BJ82: 160728 | BQ82: 91611 | BR82: 90274 | CM82: 738,1 | CZ82: 42266 | DA82: 350259 | DB82: 181129 | DC82: 169130 | DJ82: 100016 | DK82: 94152 | ED82: 729,5 | EF82: 215 | ES82: 41923 | ET82: 345575 | EU82: 172026 | EV82: 173549 | FC82: 102723 | FD82: 97322 | FW82: 720,7 | FY82: 99329 | FZ82: 102140 | GA82: 102140 | GB82: 89370 | GF82: -133825 | GG82: 1284 | GI82: -155905 | GJ82: 1110 | GL82: -142160 | GM82: 675 | GO82: -155760 | GP82: 675 | GX82: 1414599 | HB82: 1478805 | HF82: 1517421 | HJ82: 1568367 | HX82: 4056 | HY82: -4056
A83: Pirkanmaan liitto | B83: 9101 | E83: 11.2 | F83: 165 | J83: 92 | K83: 609 | L83: 28 | M83: 7876.121267 | N83: 3064 | O83: 4240 | P83: 4304 | Q83: -64 | X83: -52 | Y83: 65 | AR83: 43 | AT83: 7 | AX83: 12.8 | AY83: -112 | BC83: 91.1 | BD83: 536 | BE83: 24 | BF83: 8214.478114 | BG83: 2984 | BH83: 4066 | BI83: 4059 | BJ83: 7 | BQ83: 13 | BR83: 45 | CM83: 41 | CZ83: 2984 | DA83: 4131 | DB83: 4124 | DC83: 7 | DJ83: 13 | DK83: 45 | ED83: 39 | EF83: 24 | ES83: 2984 | ET83: 4196 | EU83: 4189 | EV83: 7 | FC83: 13 | FD83: 45 | FW83: 38 | FY83: 880 | FZ83: 754 | GA83: 754 | GB83: 754 | GF83: -90 | GI83: -90 | GL83: -180 | GO83: -15 | HX83: 0 | HY83: 0
A84: Uudenmaan liitto | B84: 4288 | D84: 1.178440607 | E84: 60.4 | F84: -3334 | J84: 34.1 | K84: 748 | L84: 35 | M84: 7833.411215 | N84: 5165 | O84: 8114 | P84: 8352 | Q84: -238 | X84: -234 | Y84: 16 | AR84: 78 | AT84: 63 | AW84: -0.296692112 | AX84: 62.6 | AY84: -3924 | BC84: 29 | BD84: 172 | BE84: 8 | BF84: 8083.974808 | BG84: 5218 | BH84: 8264 | BI84: -8454 | BJ84: 16718 | BQ84: -186 | BR84: 14 | CM84: 77 | CZ84: 5250 | DA84: 8517 | DB84: 8511 | DC84: 6 | DJ84: 10 | DK84: 10 | ED84: 77 | EF84: 118 | ES84: 5300 | ET84: 8610 | EU84: 8606 | EV84: 4 | FC84: 8 | FD84: 8 | FW84: 77 | FY84: 2524 | FZ84: 2435 | GA84: 2435 | GB84: 2475 | GC84: 650 | GE84: 555 | HX84: 1503 | HY84: -1503
A85: Satakuntaliitto | B85: 2427 | D85: -0.1775700935 | E85: 33 | F85: -1669 | J85: 60.7 | K85: 61 | L85: 3 | M85: 6930.66561 | N85: 1847 | O85: 2890 | P85: 2898 | Q85: -8 | X85: 0 | AR85: 23 | AT85: 294 | AW85: 1.107142857 | AX85: 40 | AY85: -1935 | BC85: 53.4 | BD85: 161 | BE85: 8 | BF85: 7128.029079 | BG85: 1846 | BH85: 2947 | BI85: 2955 | BJ85: -8 | BQ85: 0 | CM85: 22 | CZ85: 1846 | DA85: 2999 | DB85: 3007 | DC85: -8 | DJ85: 0 | ED85: 22 | EF85: 220 | ES85: 1846 | ET85: 2999 | EU85: 3007 | EV85: -8 | FW85: 22 | FY85: 684 | FZ85: 682 | GA85: 682 | GB85: 682 | HX85: 61 | HY85: -61
A86: Lapin liitto | B86: 22120 | D86: 0.593695637 | E86: 65.2 | F86: -3892 | J86: 42.1 | K86: 95 | L86: 4 | M86: 8672.306799 | N86: 12216 | O86: 18563 | P86: 18542 | Q86: 21 | X86: 25 | Y86: 53 | AR86: 197 | AT86: 221 | AW86: 0.6409967725 | AX86: 63.9 | AY86: -3841 | BC86: 43.2 | BD86: 76 | BE86: 4 | BF86: 7054.1852 | BG86: 12431 | BH86: 18745 | BI86: 18880 | BJ86: -135 | BQ86: 56 | BR86: 84 | CM86: 196 | CZ86: 12440 | DA86: 18981 | DB86: 18925 | DC86: 56 | DJ86: 56 | DK86: 84 | ED86: 196 | EF86: 153 | ES86: 12471 | ET86: 19029 | EU86: 18975 | EV86: 54 | FC86: 56 | FD86: 84 | FW86: 196 | FY86: 2485 | FZ86: 2978 | GA86: 2978 | GB86: 2625 | GC86: 900 | GF86: -1662 | GG86: 1552 | GI86: -765 | GJ86: 765 | GL86: -765 | GM86: 765 | GO86: -765 | GP86: 765 | GX86: 363 | HB86: 526 | HF86: 530 | HJ86: 550 | HX86: 9559 | HY86: -9559
A87: Varsinais-Suomen liitto | B87: 7983 | D87: 0.9083602304 | E87: 52.6 | F87: -3163 | J87: 52.7 | K87: 500 | L87: 20 | M87: 22477.99879 | N87: 3876 | O87: 5927 | P87: 6012 | Q87: -85 | X87: -75 | Y87: 15 | AR87: 64 | AT87: 95 | AW87: 0.4551049964 | AX87: 53.7 | AY87: -3557 | BC87: 50.8 | BD87: 389 | BE87: 15 | BF87: 9747.806747 | BG87: 4594 | BH87: 6635 | BI87: 6708 | BJ87: -73 | BQ87: -63 | BR87: 17 | CM87: 65 | CZ87: 4142 | DA87: 6129 | DB87: 6122 | DC87: 7 | DJ87: 18 | DK87: 18 | ED87: 65 | EF87: 114 | ES87: 4237 | ET87: 6331 | EU87: 6323 | EV87: 8 | FC87: 20 | FD87: 20 | FW87: 65 | FY87: -889 | FZ87: 902 | GA87: 902 | GB87: 883 | GF87: -20 | GI87: -20 | GL87: -20 | GO87: -20 | HX87: 4403 | HY87: -4403
A88: Etelä-Karjalan liitto | B88: 8565 | D88: 0.6128839845 | E88: 32.2 | F88: -1361 | J88: 65.3 | K88: 320 | L88: 18 | M88: 6658.189454 | N88: 1366 | O88: 2137 | P88: 2126 | Q88: 11 | X88: -22 | AR88: 27 | AT88: 226 | AW88: 0.07558945908 | AX88: 36.3 | AY88: -1893 | BC88: 60.5 | BD88: 48 | BE88: 3 | BF88: 6932.090856 | BG88: 1406 | BH88: 2180 | BI88: 2499 | BJ88: -319 | BQ88: -349 | CM88: 30 | CZ88: 1448 | DA88: 2224 | DB88: 2243 | DC88: -19 | DJ88: -49 | ED88: 30 | EF88: 288 | ES88: 1477 | ET88: 2246 | EU88: 2265 | EV88: -19 | FC88: -49 | FW88: 30 | FY88: 524 | FZ88: 583 | GA88: 583 | GB88: 585 | GX88: 624 | HB88: 576 | HF88: 528 | HJ88: 480 | HX88: 2686 | HY88: -2686
A89: Hämeen liitto | B89: 7012 | D89: 1.28125 | E89: 49.2 | F89: -2245 | J89: 56.5 | K89: 809 | L89: 42 | M89: 6858.775965 | N89: 2094 | O89: 3396 | P89: 3451 | Q89: -55 | X89: -51 | Y89: 6 | AR89: 28 | AT89: 16 | AW89: 1.573463573 | AX89: 44.9 | AY89: -2218 | BC89: 59.4 | BD89: 513 | BE89: 26 | BF89: 7311.378092 | BG89: 1973 | BH89: 2174 | BI89: 3271 | BJ89: -1097 | BQ89: -22 | BR89: 6 | CM89: 25 | CZ89: 1945 | DA89: 2217 | DB89: 3226 | DC89: -1009 | DJ89: -19 | DK89: 6 | ED89: 24 | EF89: 26 | ES89: 1959 | ET89: 2262 | EU89: 3256 | EV89: -994 | FC89: 0 | FD89: 6 | FW89: 24 | FY89: 1038 | FZ89: 1012 | GA89: 1012 | GB89: 1019 | GF89: -15 | GI89: -15 | HX89: 3797 | HY89: -3797
A90: Päijät-Hämeen liitto | B90: 16605 | D90: 1.468567503 | E90: 37.1 | F90: -1226 | J90: 65.2 | K90: 329 | L90: 22 | M90: 5058.39822 | N90: 12562 | O90: 19299 | P90: 18958 | Q90: 341 | X90: 983 | Y90: 914 | AR90: 815 | AT90: 165 | AW90: 1.130343167 | AX90: 41.9 | AY90: -1637 | BC90: 61 | BD90: 185 | BE90: 11 | BF90: 5928.584508 | BG90: 12572 | BH90: 20731 | BI90: 19740 | BJ90: 991 | BQ90: 949 | BR90: 1010 | CM90: 815 | CZ90: 12625 | DA90: 20845 | DB90: 20146 | DC90: 699 | DJ90: 954 | DK90: 1015 | ED90: 815 | EF90: 162 | ES90: 12794 | ET90: 21186 | EU90: 20156 | EV90: 1030 | FC90: 990 | FD90: 1020 | FW90: 815 | FY90: 2174 | FZ90: 2016 | GA90: 2016 | GB90: 2044 | GF90: -989 | GH90: 130 | GI90: -955 | GL90: -1090 | GN90: 130 | GO90: -1095 | GQ90: 130 | GX90: 380 | HB90: 307 | HF90: 234 | HJ90: 161 | HX90: 2648 | HY90: -2648
A91: Keski-Suomen liitto | B91: 34913 | D91: 1.317558577 | E91: 30.6 | F91: -1420 | J91: 78.3 | K91: 81 | L91: 5 | M91: 5208.399664 | N91: 2085 | O91: 3886 | P91: 3886 | Q91: 0 | X91: 0 | Y91: 0 | AR91: 30 | AT91: 20 | AW91: 1.289396976 | AX91: 35.4 | AY91: -1662 | BC91: 76.3 | BD91: 94 | BE91: 6 | BF91: 6221.999942 | BG91: 1882 | BH91: 3411 | BI91: 3461 | BJ91: -50 | BQ91: 0 | CM91: 26 | CZ91: 1800 | DA91: 3310 | DB91: 3260 | DC91: 50 | ED91: 26 | EF91: 57 | ES91: 1800 | ET91: 3310 | EU91: 3260 | EV91: 50 | FW91: 26 | FY91: 700 | FZ91: 552 | GA91: 552 | GB91: 500 | HX91: 16684 | HY91: -16684
A92: Keski-Pohjanmaan liitto | B92: 10310 | D92: 1.275751759 | E92: 41.7 | F92: -2549 | J92: 58.7 | K92: 149 | L92: 7 | M92: 6933.137885 | N92: 1030 | O92: 1784 | P92: 1783 | Q92: 1 | X92: 0 | AR92: 13 | AT92: 97 | AW92: 0.7578279826 | AX92: 53.8 | AY92: -3295 | BC92: 51 | BD92: 157 | BE92: 6 | BF92: 9132.723112 | BG92: 910 | BH92: 1527 | BI92: 1557 | BJ92: -30 | BQ92: -31 | CM92: 13 | CZ92: 810 | DA92: 1408 | DB92: 1408 | DC92: 0 | ED92: 10 | EF92: 78 | ES92: 810 | ET92: 1408 | EU92: 1408 | FW92: 10 | FY92: 601 | FZ92: 512 | GA92: 512 | GB92: 475 | HX92: 2835 | HY92: -2835
A93: Etelä-Pohjanmaan liitto | B93: 2111 | D93: 1.48189415 | E93: 27.9 | F93: -630 | J93: 73.3 | K93: 866 | L93: 47 | M93: 6533.272143 | N93: 1945 | O93: 3203 | P93: 3312 | Q93: -109 | X93: -96 | AR93: 32 | AT93: 213 | AW93: 1.742971888 | AX93: 32.3 | AY93: -1278 | BC93: 68.8 | BD93: 476 | BE93: 24 | BF93: 7232.883093 | BG93: 1892977 | BH93: 3038178 | BI93: 3089699 | BJ93: -51521 | BQ93: -46521 | CM93: 29 | CZ93: 1828 | DA93: 2951 | DB93: 3025 | DC93: -74 | DJ93: -70866 | ED93: 28 | EF93: 302 | ES93: 1828 | ET93: 3001 | EU93: 3025 | EV93: -24 | FC93: -20 | FW93: 28 | FY93: 1000 | FZ93: 845818 | GA93: 845818 | GB93: 841 | HX93: 226 | HY93: -226
A94: Österbottens förbund - Pohjanmaan liitto | B94: 1769 | D94: 5.1640625 | E94: 57.1 | F94: -1963 | J94: 60 | K94: 561 | L94: 23 | M94: 8087.555066 | N94: 1638 | O94: 2864 | P94: 3639 | Q94: -775 | X94: 0 | AR94: 33 | AT94: 94 | AW94: 1.261363636 | AX94: 59.6 | AY94: -2621 | BC94: 58.5 | BD94: 12 | BE94: 1 | BF94: 9079.365079 | BG94: 1642 | BH94: 2864 | BI94: 4089 | BJ94: -1225 | BQ94: -100 | CM94: 32 | DA94: 2906 | DB94: 2911 | DC94: -5 | ED94: 31 | EF94: 31 | ET94: 2960 | EU94: 2965 | EV94: -5 | FW94: 31 | FY94: 476 | FZ94: 466 | GA94: 466 | HX94: 115 | HY94: -115
A95: Kymenlaakson liitto | B95: 37899 | D95: 3.006215908 | E95: 53.9 | F95: -2227 | J95: 45.1 | K95: 565 | L95: 34 | M95: 5594.670897 | N95: 1856 | O95: 2934 | P95: 2934 | Q95: 0 | AR95: 27 | AT95: 21 | AW95: 0.6292016807 | AX95: 57.1 | AY95: -2448 | BC95: 41.8 | BD95: 547 | BE95: 32 | BF95: 6307.10464 | BG95: 1759 | BH95: 2601 | BI95: 2601 | BJ95: 0 | CM95: 25,5 | CZ95: 1648 | DA95: 2500 | DB95: 2500 | DC95: 0 | ED95: 23 | EF95: 210 | ES95: 1665 | ET95: 2525 | EU95: 2525 | FW95: 23 | FY95: 816 | FZ95: 608 | GA95: 608 | GB95: 610 | HX95: 7251 | HY95: -7251
A96: Suupohjan elinkeinotoimen ky. | B96: 11197 | D96: -0.09828009828 | E96: 33.6 | F96: -2359 | J96: 24.5 | K96: 498 | L96: 16 | M96: 11695.29116 | N96: 7086 | O96: 8979 | P96: 8982 | Q96: -3 | X96: -3198 | Y96: 1157 | AR96: 138 | AT96: 297 | AW96: 0.8402465039 | AX96: 35.7 | AY96: -2463 | BC96: 29.5 | BD96: 498 | BE96: 19 | BF96: 9464.301552 | BG96: 6574 | BH96: 8177 | BI96: 8177 | BJ96: 0 | BQ96: 0 | CM96: 125 | DA96: 8341 | DB96: 8341 | DC96: 0 | EF96: 164 | ET96: 8507 | EU96: 8507 | FY96: 1517 | FZ96: 1209 | GA96: 1209 | GC96: 1100 | GD96: 1000 | HX96: 3565 | HY96: -3565
A97: Pohjois-Pohjanmaan liitto | B97: 6478 | D97: 0.8666910153 | E97: 64.1 | F97: -3817 | J97: 43.9 | K97: 350 | L97: 16 | M97: 11174.86861 | N97: 3489 | O97: 5965 | P97: 6016 | Q97: -51 | X97: 18 | Y97: 18 | AR97: 53 | AT97: 108 | AW97: 0.6539483217 | AX97: 63 | AY97: -3928 | BC97: 42.7 | BD97: 413 | BE97: 18 | BF97: 8398.872887 | BG97: 3428 | BH97: 5527 | BI97: 5534 | BJ97: -7 | BQ97: 24 | BR97: 24 | CM97: 52 | CZ97: 3462 | DA97: 5583 | DB97: 5590 | DC97: -7 | DJ97: 24 | DK97: 24 | ED97: 52 | EF97: 212 | ES97: 3497 | ET97: 5638 | EU97: 5646 | EV97: -8 | FC97: 23 | FD97: 23 | FW97: 52 | FY97: 1813 | FZ97: 1431 | GA97: 1431 | GB97: 1460 | GF97: -18 | GI97: -24 | GL97: -24 | GO97: -23 | HX97: 2822 | HY97: -2822
A98: Pohjois-Savon liitto | B98: 8866 | D98: 0.8319821079 | E98: 44.2 | F98: -1769 | J98: 57.4 | K98: 793 | L98: 42 | M98: 6770.936776 | N98: 1911 | O98: 4242 | P98: 4261 | Q98: -19 | X98: -8 | AR98: 29 | AT98: 153 | AW98: 0.3870879121 | AX98: 46.2 | AY98: -2057 | BC98: 55.4 | BD98: 698 | BE98: 35 | BF98: 7224.162866 | BG98: 2024 | BH98: 3814 | BI98: 3828 | BJ98: -14 | BQ98: -10 | CM98: 28 | CZ98: 2000 | DA98: 3710 | DB98: 3741 | DC98: -31 | DJ98: -27 | ED98: 25 | EF98: 238 | ES98: 1950 | ET98: 3756 | EU98: 3771 | EV98: -15 | FC98: -11 | FW98: 25 | FY98: 1744 | FZ98: 625 | GA98: 625 | GB98: 670 | HX98: 3038 | HY98: -3038
A99: Etelä-Savon maakuntaliitto | B99: 1259 | D99: 0.8718330849 | E99: 21.6 | F99: -594 | J99: 79.2 | K99: 690 | L99: 31 | M99: 12895.05247 | N99: 2061 | O99: 3011 | P99: 3071 | Q99: -60 | X99: -60 | AR99: 36 | AT99: 282 | AW99: 1.627272727 | AX99: 19 | AY99: -860 | BC99: 80.5 | BD99: 286 | BE99: 13 | BF99: 7999.23254 | BG99: 1948 | BH99: 2959 | BI99: -2926 | BJ99: 5885 | BQ99: 33 | BR99: 33 | CM99: 34 | CZ99: 1771 | DA99: 2694 | DB99: 2661 | DC99: 33 | DJ99: 33 | DK99: 33 | ED99: 32 | EF99: 277 | ES99: 1790 | ET99: 2719 | EU99: 2686 | EV99: 33 | FC99: 33 | FD99: 33 | FW99: 32 | FY99: 674 | FZ99: 668 | GA99: 668 | GB99: 598 | HX99: 97 | HY99: -97
A100: Oulunkaaren kuntayhtymä OSOTE | B100: 7769 | D100: 0.5303430079 | E100: 42.2 | F100: -2030 | J100: 40.4 | K100: 242 | L100: 14 | M100: 6641.504671 | N100: 45090 | O100: 114105 | P100: 114055 | Q100: 50 | X100: 49 | Y100: 119 | AR100: 977 | AT100: 235 | AW100: 0.1211641885 | AX100: 44.2 | AY100: -2231 | BC100: 37.1 | BD100: 230 | BE100: 13 | BF100: 6652.350184 | BG100: 45276 | BH100: 116913 | BI100: 116870 | BJ100: 43 | BQ100: 43 | BR100: 43 | CM100: 987 | CZ100: 46181 | DA100: 119251 | DB100: 119207 | DC100: 44 | DJ100: 44 | DK100: 43 | ED100: 997 | EF100: 255 | ES100: 47105 | ET100: 121636 | EU100: 121591 | EV100: 45 | FC100: 45 | FD100: 45 | FW100: 1007 | FY100: 53875 | FZ100: 56505 | GA100: 56505 | GB100: 58788 | GX100: 8 | HX100: 2577 | HY100: -2577
A101: Jokilaaksojen musiikkiopisto ky. | B101: 47031 | D101: 0.5124729064 | E101: 72.8 | F101: -4872 | J101: 38.4 | K101: 122 | L101: 5 | M101: 7438.359987 | N101: 1134 | O101: 1404 | P101: 1404 | Q101: 0 | X101: 0 | Y101: 0 | AR101: 23 | AT101: 143 | AW101: 0.3912948082 | AX101: 81.7 | AY101: -5508 | BC101: 34 | BD101: 276 | BE101: 11 | BF101: 9393.17555 | BG101: 1138 | BH101: 1418 | BI101: 1418 | BJ101: 0 | BQ101: 0 | BR101: 0 | CM101: 24 | CZ101: 1158 | DA101: 1449 | DB101: 1449 | DC101: 0 | ED101: 24 | EF101: 66 | ES101: 1179 | ET101: 1478 | EU101: 1478 | FW101: 24 | FY101: 152 | FZ101: 157 | GA101: 157 | GB101: 165 | HX101: 25357 | HY101: -25357
A102: Skn för Västra Nylands folkhögskola | B102: 5422604 | D102: 1.470066041 | E102: 45.3 | F102: -1797 | J102: 64.2 | K102: 698 | L102: 36 | M102: 7153.649426 | N102: 1431 | O102: 2136 | P102: 2227 | Q102: -91 | X102: 59 | Y102: 72 | AR102: 27 | AT102: - | AW102: 0.9931606097 | AX102: 48.3 | AY102: -2127 | BC102: 62.1 | BD102: 619 | BE102: 30 | BF102: 7481.31377 | BG102: 1322 | BH102: 2084 | BI102: 2092 | BJ102: -8 | BQ102: -5 | BR102: 71 | CM102: 25 | CZ102: 1320 | DA102: 2100 | DB102: 2075 | DC102: 25 | DJ102: 28 | DK102: 56 | ED102: 25 | EF102: 0 | ES102: 1320 | ET102: 2100 | EU102: 2075 | EV102: 25 | FC102: 28 | FD102: 59 | FW102: 25 | FY102: 383 | FZ102: 384 | GA102: 384 | GB102: 380 | GC102: 20000 | GD102: 20000 | GE102: 20000 | GF102: -130 | GI102: -60 | GL102: -50 | GO102: -40 | HX102: 1315633 | HY102: -1315633
A103: Keski-Uudenmaan vesiensuojelun liikelaitoskuntayhtymä | B103: 3885 | D103: 1.305410122 | E103: 46.9 | F103: -2830 | J103: 44.8 | K103: 178 | L103: 8 | M103: 7866.788321 | N103: 354 | O103: 4530 | P103: 3552 | Q103: 978 | X103: 988 | Y103: 2302 | AR103: 5 | AT103: 41 | AW103: 0.941475827 | AX103: 51.1 | AY103: -3266 | BC103: 41.4 | BD103: 91 | BE103: 4 | BF103: 8372.177524 | BG103: 354 | BH103: 4576 | BI103: 3533 | BJ103: 1043 | BQ103: 1053 | BR103: 1630 | CM103: 5 | CZ103: 355 | DA103: 4597 | DB103: 3558 | DC103: 1039 | DJ103: 1049 | DK103: 1665 | ED103: 5 | EF103: 9 | ES103: 355 | ET103: 4678 | EU103: 3618 | EV103: 1060 | FC103: 1070 | FD103: 1692 | FW103: 5 | FY103: 2582 | FZ103: 2542 | GA103: 2542 | GB103: 2550 | GF103: -1550 | GI103: -1385 | GL103: -1180 | GO103: -1180 | HX103: 1391 | HY103: -1391
A104: Kvarnen samkommun | B104: 2846 | D104: 0.9517391304 | E104: 24 | F104: -383 | J104: 75.7 | K104: 816 | L104: 44 | M104: 35535.90971 | N104: 1722 | O104: 2726 | P104: 2664 | Q104: 62 | X104: 62 | Y104: 88 | AR104: 34 | AT104: 192 | AW104: 0.1138487681 | AX104: 56.7 | AY104: -2744 | BC104: 55 | BD104: 649 | BE104: 25 | BF104: 9531.680441 | BG104: 1611 | BH104: 2472 | BI104: 2389 | BJ104: 83 | BQ104: 83 | BR104: 83 | CM104: 34 | CZ104: 1611 | DA104: 2500 | DB104: 2417 | DC104: 83 | DJ104: 83 | DK104: 83 | ED104: 33 | EF104: 138 | ES104: 1642 | ET104: 2520 | EU104: 2437 | EV104: 83 | FC104: 83 | FD104: 83 | FW104: 33 | FY104: 539 | FZ104: 413 | GA104: 413 | GB104: 430 | GF104: -100 | GI104: -100 | GL104: -100 | GO104: -100 | HX104: 846 | HY104: -846
A105: Sisä-Savon seutuyhtymä | B105: 14422 | D105: 0.8794701987 | E105: 63.5 | F105: -2721 | J105: 43.4 | K105: 185 | L105: 11 | M105: 5333.928571 | N105: 876 | O105: 1400 | P105: 1380 | Q105: 20 | X105: 20 | Y105: 0 | AR105: 16 | AT105: 89 | AW105: 0.4460684802 | AX105: 67.5 | AY105: -2995 | BC105: 40.2 | BD105: 199 | BE105: 12 | BF105: 6131.484731 | BH105: 20 | BI105: 20 | EF105: 124 | FW105: 0 | FY105: 360 | FZ105: 10 | GA105: 10 | GB105: 0 | HX105: 5816 | HY105: -5816
A106: Svenska Österbottens förbund för utbildning och kultur | B106: 2218 | D106: 3.991017964 | E106: 17 | F106: 1 | J106: 73.4 | K106: 855 | L106: 45 | M106: 6972.876834 | N106: 18825 | O106: 30204 | P106: 28500 | Q106: 1704 | X106: 1452 | Y106: 1340 | AR106: 290 | AT106: 27 | AW106: 1.632575758 | AX106: 21.1 | AY106: -657 | BC106: 70.6 | BD106: 537 | BE106: 25 | BF106: 7830.645161 | BG106: 17225 | BH106: 27461 | BI106: 25785 | BJ106: 1676 | BQ106: 1409 | BR106: 1327 | CM106: 276 | CZ106: 17311 | DA106: 27586 | DB106: 25919 | DC106: 1667 | DJ106: 1415 | DK106: 1345 | ED106: 276 | EF106: 151 | ES106: 17397 | ET106: 27462 | EU106: 25961 | EV106: 1501 | FC106: 1265 | FD106: 1365 | FW106: 276 | FY106: 4677 | FZ106: 3979 | GA106: 3979 | GB106: 4019 | GF106: -3843 | GG106: 400 | GI106: -1025 | GL106: -1635 | GO106: -515 | GX106: 11341 | HB106: 10765 | HF106: 10189 | HJ106: 9612 | HX106: 240 | HY106: -240
A107: Haapaveden-Siikalatvan seudun kuntayhtymä | B107: 2423 | D107: 6.363636364 | E107: 17.6 | F107: -363 | J107: 77.5 | K107: 388 | L107: 22 | M107: 6664.48177 | N107: 150 | O107: 625 | P107: 621 | Q107: 4 | X107: 0 | AT107: 109 | AW107: 5.623853211 | AX107: 17.8 | AY107: -136 | BC107: 77.4 | BD107: 631 | BE107: 35 | BF107: 6533.877551 | BG107: 162 | BH107: 593 | BI107: 589 | BJ107: 4 | BQ107: 0 | CZ107: 162 | DA107: 593 | DB107: 589 | DC107: 4 | EF107: 33 | ES107: 162 | ET107: 593 | EU107: 589 | EV107: 4 | FY107: 445 | FZ107: 404 | GA107: 404 | GB107: 404 | HX107: 100 | HY107: -100
A108: Itä-Lapin kuntayhtymä | B108: 54771 | D108: 0.3631912763 | E108: 75.3 | F108: -3867 | J108: 51.6 | K108: 236 | L108: 12 | M108: 6565.39184 | N108: 335 | O108: 816 | P108: 835 | Q108: -19 | X108: -20 | Y108: 0 | AR108: 8 | AT108: 214 | AW108: -0.286994842 | AX108: 81.7 | AY108: -4626 | BC108: 47.2 | BD108: . | BE108: . | BF108: 7912.361271 | BG108: 178 | BH108: 326 | BI108: 360 | BJ108: -34 | BQ108: -35 | BR108: 0 | CM108: 4 | EF108: 243 | FY108: 330 | FZ108: 125 | GA108: 125 | GE108: 1700 | GX108: 852 | HB108: 20 | HX108: 26950 | HY108: -26950
A109: Vaasanseudun Areenat Kuntayhtymä | B109: 86926 | D109: 0.8585200721 | E109: 36.4 | F109: -1639 | J109: 61.7 | K109: 217 | L109: 12 | M109: 6762.387657 | N109: 1076 | O109: 2734 | P109: 2350 | Q109: 384 | X109: 383 | Y109: 383 | AR109: 19 | AT109: 197 | AW109: 0.1098994258 | AX109: 42.4 | AY109: -2093 | BC109: 56.3 | BD109: 229 | BE109: 11 | BF109: 7385.183743 | BG109: 1099 | BH109: 2827 | BI109: 2339 | BJ109: 488 | BQ109: 484 | BR109: 484 | CM109: 19 | CZ109: 1115 | DA109: 2855 | DB109: 2362 | DC109: 493 | DJ109: 490 | DK109: 490 | ED109: 20 | EF109: 154 | ES109: 1132 | ET109: 2883 | EU109: 2385 | EV109: 498 | FC109: 495 | FD109: 495 | FW109: 21 | FY109: 552 | FZ109: 472 | GA109: 472 | GB109: 490 | GF109: -3077 | GG109: 2779 | GI109: -175 | GL109: -300 | GO109: -200 | HX109: 21744 | HY109: -21744
A110: Pohjois-Lapin alueyhteistyön kuntayhtymä | B110: 7001 | D110: 0.6409239786 | E110: 54.2 | F110: -2447 | J110: 40.7 | K110: 387 | L110: 19 | M110: 14674.74634 | N110: 115 | O110: 296 | P110: 308 | Q110: -12 | X110: -12 | Y110: 0 | AR110: 2,5 | AT110: 274 | AW110: -0.01823185415 | AX110: 57.1 | AY110: -2913 | BC110: 35.4 | BD110: 403 | BE110: 20 | BF110: 7525.726435 | BG110: 50 | BH110: 48 | BI110: 120 | BJ110: -72 | BQ110: -72 | BR110: 0 | CM110: 0,5 | CZ110: 25 | DA110: 48 | DB110: 60 | DC110: -12 | DJ110: -12 | DK110: 0 | ED110: 0,3 | EF110: 262 | ES110: 25 | ET110: 48 | EU110: 60 | EV110: -12 | FC110: -12 | FW110: 0,3 | FY110: 180 | FZ110: 30 | GA110: 30 | GB110: 15 | HX110: 2310 | HY110: -2310
A111: Helsingin seudun liikenne-kuntayhtymä (HSL) | B111: 6682 | D111: 0.5985772358 | E111: 37.3 | F111: -1618 | J111: 39 | K111: 551 | L111: 30 | M111: 7297.260889 | N111: 17899 | O111: 601623 | P111: 601657 | Q111: -34 | X111: -619 | Y111: 7632 | AR111: 378 | AT111: 247 | AW111: 0.3700673725 | AX111: 41.2 | AY111: -2042 | BC111: 34 | BD111: 485 | BE111: 25 | BF111: 7176.117612 | BG111: 19001 | BH111: 614754 | BI111: 614878 | BJ111: -124 | BQ111: -669 | BR111: 9217 | CM111: 380 | CZ111: 19001 | DA111: 676400 | DB111: 666836 | DC111: 9564 | DJ111: 8419 | DK111: 17873 | ED111: 380 | EF111: 284 | ES111: 19001 | ET111: 744747 | EU111: 730762 | EV111: 13985 | FC111: 12640 | FD111: 19075 | FW111: 379 | FY111: 575784 | FZ111: 587912 | GA111: 587912 | GB111: 703619 | GF111: -22730 | GI111: -48504 | GL111: -11410 | GO111: -7900 | GX111: 23000 | HB111: 30000 | HF111: 36667 | HJ111: 42222 | HX111: 1528 | HY111: -1528
A112: Keski-Savon Jätehuolto liikelaitoskuntayhtymä | B112: 9104 | D112: 0.1922272048 | E112: 29.5 | F112: -114 | J112: 64.1 | K112: 1515 | L112: 76 | M112: 7094.600386 | N112: 758 | O112: 5030 | P112: 4444 | Q112: 586 | X112: 356 | Y112: 155 | AR112: 20 | AT112: 268 | AW112: -0.04886769964 | AX112: 34.9 | AY112: -583 | BC112: 58.8 | BD112: 1601 | BE112: 75 | BF112: 7745.779221 | BG112: 754 | BH112: 5273 | BI112: 4676 | BJ112: 597 | BQ112: 366 | BR112: 155 | CM112: 20 | CZ112: 771 | DA112: 5418 | DB112: 4809 | DC112: 609 | DJ112: 363 | DK112: 155 | ED112: 20 | EF112: 174 | ES112: 791 | ET112: 5569 | EU112: 4895 | EV112: 674 | FC112: 429 | FD112: 155 | FW112: 20 | FY112: 2378 | FZ112: 2411 | GA112: 2411 | GB112: 2535 | GF112: -150 | GI112: -2200 | GL112: -300 | GO112: -300 | HB112: 1000 | HX112: 3111 | HY112: -3111
A113: Ounastähti Kehittämiskuntayhtymä | B113: 2409 | D113: 1.731660232 | E113: 18.6 | F113: 61 | J113: 81.4 | K113: 1113 | L113: 57 | M113: 8669.860279 | N113: 10 | O113: 6020 | P113: 2192 | Q113: 3828 | X113: 4079 | AR113: 0 | AT113: 22 | AW113: 2.121827411 | AX113: 15.2 | AY113: 303 | BC113: 83.7 | BD113: 1262 | BE113: 60 | BF113: 7668.170632 | BG113: 5 | BI113: 25 | BJ113: -25 | BQ113: 2569 | CZ113: 5 | DB113: 26 | DC113: -26 | DJ113: 2442 | EF113: 97 | ES113: 6 | EU113: 27 | EV113: -27 | FC113: 2415 | FW113: 0 | FY113: 2182 | FZ113: 20 | GA113: 20 | GB113: 21 | HX113: 780 | HY113: -780
A114: Keski-Satakunnan terveydenhuollon kuntayhtymä | B114: 106342 | D114: 3.207939799 | E114: 43.9 | F114: -2057 | J114: 59 | K114: 461 | L114: 23 | M114: 6353.914998 | N114: 12060 | O114: 28865 | P114: 29347 | Q114: -482 | X114: -542 | Y114: 416 | AR114: 340 | AT114: 65 | AW114: 0.6988029492 | AX114: 46.6 | AY114: -2584 | BC114: 55.6 | BD114: 111 | BE114: 5 | BF114: 7801.113037 | BG114: 15047 | BH114: 28889 | BI114: 28560 | BJ114: 329 | BQ114: 275 | BR114: 275 | CM114: 342 | CZ114: 15122 | DA114: 29034 | DB114: 28702 | DC114: 332 | DJ114: 276 | DK114: 276 | ED114: 342 | EF114: 110 | FY114: 9387 | FZ114: 9010 | GA114: 9010 | GF114: -250 | GI114: -349 | GL114: -250 | GX114: 3838 | HB114: 4471 | HF114: 3838 | HX114: 12990 | HY114: -12990
A115: Forssan seudun hyvinvointikuntayhtymä | B115: 3819 | E115: 14 | F115: -87 | J115: 83.3 | K115: 123 | L115: 7 | M115: 27156.68203 | N115: 54362 | O115: 122152 | P115: 120123 | Q115: 2029 | X115: 1965 | Y115: 1910 | AR115: 1100 | AT115: 181 | AW115: -40.46153846 | AX115: 26.4 | AY115: -922 | BC115: 71.4 | BD115: 118 | BE115: 6 | BF115: 7597.557807 | BG115: 53973 | BH115: 126137 | BI115: 124136 | BJ115: 2001 | BQ115: 1940 | BR115: 1940 | CM115: 1100 | CZ115: 54430 | DA115: 127296 | DB115: 12295 | DC115: 115001 | DJ115: 1940 | DK115: 1940 | ED115: 1100 | EF115: 298 | ES115: 54887 | ET115: 128461 | EU115: 126460 | EV115: 2001 | FC115: 1940 | FD115: 1940 | FW115: 1100 | FY115: 48190 | FZ115: 51738 | GA115: 51738 | GB115: 52778 | GF115: -1450 | GI115: -1630 | GL115: -1750 | GO115: -1700 | GX115: 2080 | HB115: 1630 | HF115: 1180 | HJ115: 730 | HX115: 0 | HY115: 0
A116: Muonion-Enontekiön kansanterveystyön ky. | B116: 14322 | D116: -1.394495413 | E116: 29 | F116: -140 | J116: 80.1 | K116: 1269 | L116: 64 | M116: 6466.850638 | N116: 4315 | O116: 6134 | P116: 6182 | Q116: -48 | X116: 55 | Y116: 55 | AR116: 69,8 | AT116: 312 | AW116: 0.8021786492 | AX116: 42.5 | AY116: -801 | BC116: 73 | BD116: 1414 | BE116: 71 | BF116: 7250.781521 | BG116: 4298 | BH116: 6281 | BI116: 6241 | BJ116: 40 | BQ116: 43 | BR116: 43 | CM116: 67,1 | CZ116: 4232 | DA116: 6212 | DB116: 6175 | DC116: 37 | DJ116: 37 | DK116: 37 | ED116: 66,7 | EF116: 90 | ES116: 4238 | ET116: 6210 | EU116: 6180 | EV116: 30 | FC116: 29 | FD116: 29 | FW116: 66,7 | FY116: 1187 | FZ116: 1334 | GA116: 1334 | GB116: 1334 | GF116: -221 | GI116: -138 | HX116: 1962 | HY116: -1962
A117: Nurmeksen ja Valtimon terveydenhuollon ky. | B117: 869 | D117: 1.485507246 | E117: 29.7 | F117: -458 | J117: 72.2 | K117: 1317 | L117: 59 | M117: 21756.20767 | N117: 8591 | O117: 24783 | P117: 24303 | Q117: 480 | X117: 490 | Y117: 490 | AR117: 170 | AT117: 68 | AW117: 2.897674419 | AX117: 25.7 | AY117: -825 | BC117: 74 | BD117: 817 | BE117: 32 | BF117: 9193.475816 | BG117: 8283 | BH117: 24942 | BI117: 24483 | BJ117: 459 | BQ117: 470 | BR117: 489 | CM117: 163 | CZ117: 8283 | DA117: 24816 | DB117: 24357 | DC117: 459 | DJ117: 462 | DK117: 489 | ED117: 163 | EF117: 5 | ES117: 8283 | ET117: 24816 | EU117: 24357 | EV117: 459 | FC117: 462 | FD117: 489 | FW117: 163 | FY117: 14257 | FZ117: 14679 | GA117: 14679 | GB117: 14552 | GF117: -180 | GI117: -59 | GL117: -100 | GO117: -100 | HX117: 174 | HY117: -174
A118: Orimattilan seudun terveydenhuollon kiinteistökuntayhtymä | B118: 15952 | D118: 0.5418698325 | E118: 36.6 | F118: -820 | J118: 65 | K118: 1091 | L118: 53 | M118: 6542.661699 | N118: 679 | O118: 1350 | P118: 1026 | Q118: 324 | X118: 203 | Y118: 203 | AT118: 231 | AW118: 1.148317171 | AX118: 38.3 | AY118: -873 | BC118: 63.2 | BD118: 1301 | BE118: 66 | BF118: 7172.264489 | BG118: 633 | BH118: 1310 | BI118: 987 | BJ118: 323 | BQ118: 200 | BR118: 200 | CZ118: 630 | DA118: 1308 | DB118: 989 | DC118: 319 | DJ118: 196 | DK118: 196 | EF118: 102 | ES118: 625 | ET118: 1305 | EU118: 986 | EV118: 319 | FC118: 195 | FD118: 195 | FY118: 124 | FZ118: 122 | GA118: 122 | GB118: 125 | GF118: -150 | GI118: -100 | GL118: -100 | GO118: -100 | HX118: 4686 | HY118: -4686
A119: Paimion-Sauvon kansanterveystyön ky. | B119: 1431 | D119: 0.7231270358 | E119: 64.8 | F119: -878 | J119: 57.3 | K119: 3218 | L119: 165 | M119: 7137.059215 | N119: 5638 | O119: 8531 | P119: 8132 | Q119: 399 | X119: 282 | Y119: 282 | AR119: 96 | AT119: 98 | AW119: -0.6303854875 | AX119: 80.3 | AY119: -1831 | BC119: 49.3 | BD119: 3285 | BE119: 148 | BF119: 8075.561607 | BG119: 5540 | BH119: 8601 | BI119: 8177 | BJ119: 424 | BQ119: 315 | BR119: 315 | CM119: 97 | CZ119: 5540 | DA119: 8601 | DB119: 8177 | DC119: 424 | DJ119: 315 | DK119: 315 | ED119: 97 | EF119: 303 | ES119: 5540 | ET119: 8601 | EU119: 8177 | EV119: 424 | FC119: 315 | FD119: 315 | FW119: 97 | FY119: 1726 | FZ119: 1836 | GA119: 1836 | GB119: 1836 | GF119: -215 | GI119: -193 | GL119: -193 | GO119: -193 | GX119: 3696 | HB119: 3761 | HF119: 3826 | HJ119: 3891 | HX119: 780 | HY119: -780
A120: Pelkosenniemen-Savukosken kansanterveystyön ky. | B120: 4755 | D120: 2.571428571 | E120: 48.1 | F120: -2264 | J120: 41.8 | K120: 489 | L120: 28 | M120: 6292.413506 | N120: 3312 | O120: 5083 | P120: 4953 | Q120: 130 | X120: 111 | Y120: 222 | AR120: 57,35 | AT120: 103 | AW120: -1.493556701 | AX120: 49.1 | AY120: -2654 | BC120: 35 | BD120: 121 | BE120: 7 | BF120: 6490.779547 | BG120: 3310 | BH120: 5057 | BI120: 4946 | BJ120: 111 | BQ120: 93 | BR120: 93 | CM120: 59,35 | CZ120: 3310 | DA120: 5058 | DB120: 4946 | DC120: 112 | DJ120: 94 | DK120: 94 | ED120: 59,35 | EF120: 291 | ES120: 3310 | ET120: 5060 | EU120: 4946 | EV120: 114 | FC120: 96 | FD120: 96 | FW120: 59,35 | FY120: 964 | FZ120: 969 | GA120: 969 | GB120: 970 | GC120: 730 | GE120: 620 | GF120: -80 | GI120: -244 | GL120: -151 | GO120: -55 | GX120: 720 | HB120: 670 | HF120: 620 | HJ120: 570 | HX120: 524 | HY120: -524
A121: Pöytyän kansanterveystyön ky. | B121: 2721 | D121: 0.5941883768 | E121: 81 | F121: -1955 | J121: 40.8 | K121: 2897 | L121: 135 | M121: 7808.797446 | N121: 6412 | O121: 9136 | P121: 8791 | Q121: 345 | X121: 331 | Y121: 331 | AR121: 112 | AT121: 119 | AW121: 0.1834196891 | AX121: 84.7 | AY121: -2159 | BC121: 39.5 | BD121: 2889 | BE121: 137 | BF121: 7690.57971 | BG121: 6476 | BH121: 9291 | BI121: 8970 | BJ121: 321 | BQ121: 312 | BR121: 312 | CM121: 115 | CZ121: 6507 | DA121: 9313 | DB121: 8994 | DC121: 319 | DJ121: 311 | DK121: 311 | ED121: 115 | EF121: 42 | ES121: 6537 | ET121: 9313 | EU121: 9005 | EV121: 308 | FC121: 302 | FD121: 302 | FW121: 115 | FY121: 1362 | FZ121: 1498 | GA121: 1498 | GB121: 1506 | GC121: 500 | GE121: 360 | GF121: -218 | GI121: -146 | GL121: -107 | GO121: -167 | GX121: 213 | HB121: 113 | HF121: 38 | HX121: 1691 | HY121: -1691
A122: Sote kuntayhtymä/Perusturvaliikelaitos Saarikka | B122: 2688 | D122: -0.06878306878 | E122: 24.9 | F122: -1005 | J122: 59.6 | K122: 135 | L122: 9 | M122: 5527.46077 | N122: 30851 | O122: 83458 | P122: 82693 | Q122: 765 | X122: 765 | Y122: 158 | AR122: 605 | AT122: 289 | AW122: -1.062176166 | AX122: 28.7 | AY122: -1223 | BC122: 52.7 | BD122: 119 | BE122: 8 | BF122: 5750.545455 | BG122: 31270 | BH122: 84489 | BI122: 83831 | BJ122: 658 | BQ122: 658 | BR122: 202 | CM122: 600 | CZ122: 31683 | DA122: 84900 | DB122: 84811 | DC122: 89 | DJ122: 89 | DK122: 89 | ED122: 600 | EF122: 208 | ES122: 31755 | ET122: 85095 | EU122: 85028 | EV122: 67 | FC122: 67 | FD122: 67 | FW122: 600 | FY122: 39685 | FZ122: 39969 | GA122: 39969 | GB122: 40513 | GF122: -157 | GI122: -36 | GL122: -76 | GO122: -50 | HX122: 158 | HY122: -158
A123: Sisä-Savon terveydenhuollon ky. | B123: 103364 | D123: 1.86452584 | E123: 78.1 | F123: -2944 | J123: 54.4 | K123: 846 | L123: 45 | M123: 5679.008484 | N123: 8119 | O123: 26920 | P123: 26611 | Q123: 309 | X123: 314 | Y123: 42 | AR123: 135 | AT123: 91 | AW123: 1.451085584 | AX123: 87.8 | AY123: -3571 | BC123: 50.7 | BD123: 547 | BE123: 27 | BF123: 7302.884989 | BG123: 7925 | BH123: 25376 | BI123: 25338 | BJ123: 38 | BR123: 38 | CM123: 123 | CZ123: 7925 | DA123: 25376 | DB123: 25338 | DC123: 38 | DK123: 32 | ED123: 123 | EF123: 256 | FY123: 17098 | FZ123: 16014 | GA123: 16014 | GF123: -58 | GI123: -30 | GX123: 1764 | HB123: 1700 | HF123: 1700 | HX123: 19835 | HY123: -19835
A124: Säkylän ja Köyliön terveydenhuollon kuntayhtymä | B124: 8007 | D124: 0.1200387222 | E124: 27.4 | F124: -1144 | J124: 66.2 | K124: 62 | L124: 4 | M124: 5705.40779 | N124: 6323 | O124: 9520 | P124: 8886 | Q124: 634 | X124: 433 | Y124: 433 | AR124: 103,5 | AT124: 285 | AW124: 0.6013824885 | AX124: 30.8 | AY124: -1528 | BC124: 61.3 | BD124: 13 | BE124: 1 | BF124: 6356.687101 | BG124: 5520 | BH124: 8610 | BI124: 8014 | BJ124: 596 | BQ124: 471 | BR124: 471 | CM124: 89,5 | CZ124: 5522 | DA124: 8611 | DB124: 8016 | DC124: 595 | DJ124: 471 | DK124: 471 | ED124: 89,5 | EF124: 296 | ES124: 5522 | ET124: 8611 | EU124: 8016 | EV124: 595 | FC124: 471 | FD124: 471 | FW124: 89,5 | FY124: 1423 | FZ124: 1462 | GA124: 1462 | GB124: 1462 | GF124: -78 | GI124: -60 | GX124: 6940 | HB124: 6620 | HF124: 6303 | HJ124: 5986 | HX124: 926 | HY124: -926
A125: Vieskan liikelaitoskuntayhtymä | B125: 8487 | D125: 4.745974955 | E125: 29.9 | F125: -1209 | J125: 70.7 | K125: 9 | L125: 0 | M125: 7042.221694 | N125: 1580 | O125: 3935 | P125: 2672 | Q125: 1263 | X125: 1097 | Y125: 757 | AR125: 37 | AT125: 137 | AW125: 3.565217391 | AX125: 32.3 | AY125: -1403 | BC125: 67.8 | BD125: 2 | BE125: 0 | BF125: 6636.524823 | BG125: 174 | BH125: 2230 | BI125: 1152 | BJ125: 1078 | BQ125: 1050 | BR125: 750 | CM125: 4 | CZ125: 175 | DA125: 2230 | DB125: 1150 | DC125: 1080 | DJ125: 1050 | DK125: 750 | ED125: 5 | EF125: 197 | ES125: 175 | ET125: 2230 | EU125: 1150 | EV125: 1080 | FC125: 1050 | FD125: 750 | FW125: 5 | FY125: 366 | FZ125: 379 | GA125: 379 | GB125: 380 | GF125: -1000 | GI125: -2230 | GL125: -1000 | GO125: -1000 | GX125: 9000 | HB125: 8500 | HF125: 8000 | HJ125: 8000 | HX125: 271 | HY125: -271
A126: Riihimäen seudun terveyskeskuksen ky. | B126: 2820 | D126: 0.2836095764 | E126: 30.4 | F126: -1696 | J126: 56.3 | K126: 131 | L126: 6 | M126: 10911.86798 | N126: 21586 | O126: 34711 | P126: 33687 | Q126: 1024 | X126: 943 | Y126: 950 | AR126: 421 | AT126: 301 | AW126: 2.995893224 | AX126: 31.5 | AY126: -2041 | BC126: 57.7 | BD126: 57 | BE126: 2 | BF126: 8401.55532 | BG126: 21416 | BH126: 34264 | BI126: 33254 | BJ126: 1010 | BQ126: 954 | BR126: 961 | CM126: 424 | CZ126: 22273 | DA126: 35635 | DB126: 34584 | DC126: 1051 | DJ126: 992 | DK126: 999 | EF126: 64 | ES126: 23164 | ET126: 37060 | EU126: 35968 | EV126: 1092 | FC126: 1032 | FD126: 1039 | FY126: 8638 | FZ126: 8278 | GA126: 8278 | GB126: 8953 | GF126: -703 | GI126: -769 | GL126: -648 | GO126: -60 | GX126: 1788 | HB126: 489 | HF126: 253 | HJ126: 106 | HX126: 213 | HY126: =HX126*-1 -> -213
A127: Raahen seudun hyvinvointikuntayhtymä | B127: 10176 | D127: 2.037555697 | E127: 35.4 | F127: -1836 | J127: 63.2 | K127: 149 | L127: 8 | M127: 6446.851531 | N127: 54789 | O127: 126007 | P127: 124197 | Q127: 1810 | X127: 1697 | Y127: 1720 | AR127: 1280 | AT127: 126 | AW127: -0.6381880734 | AX127: 46.8 | AY127: -2554 | BC127: 57.1 | BD127: 38 | BE127: 2 | BF127: 8374.574789 | BG127: 54805 | BH127: 128722 | BI127: 127039 | BJ127: 1683 | BQ127: 1620 | BR127: 1636 | CM127: 1270 | CZ127: 55607 | DA127: 131446 | DB127: 129590 | DC127: 1856 | DJ127: 1783 | DK127: 1750 | ED127: 1260 | EF127: 246 | ES127: 56717 | ET127: 134432 | EU127: 132519 | EV127: 1913 | FC127: 1830 | FD127: 1800 | FW127: 1250 | FY127: 54753 | FZ127: 57405 | GA127: 57405 | GB127: 60223 | GF127: -1492 | GI127: -1955 | GL127: -1796 | GO127: -650 | GX127: 9450 | HB127: 9449 | HF127: 9448 | HJ127: 9447 | HX127: 1488 | HY127: -1488
A128: Kuusiokuntien terveyskuntayhtymä | B128: 3317 | D128: 0.8827598762 | E128: 34.8 | F128: -1533 | J128: 70 | K128: 211 | L128: 12 | M128: 27187.71828 | N128: 20887 | O128: 29478 | P128: 29153 | Q128: 325 | X128: 322 | Y128: 338 | AR128: 384 | AT128: 286 | AW128: 0.8471153846 | AX128: 43.5 | AY128: -2309 | BC128: 62.4 | BD128: 350 | BE128: 17 | BF128: 7571.681939 | BG128: 21035 | BH128: 30010 | BI128: 29627 | BJ128: 383 | BQ128: 380 | BR128: 397 | CM128: 384 | CZ128: 21349 | DA128: 30460 | DB128: 30067 | DC128: 393 | DJ128: 390 | DK128: 402 | ED128: 380 | EF128: 141 | ES128: 21666 | ET128: 30911 | EU128: 30514 | EV128: 397 | FC128: 394 | FD128: 409 | FW128: 380 | FY128: 5542 | FZ128: 5712 | GA128: 5712 | GB128: 5882 | GD128: 450 | GF128: -490 | GI128: -395 | GL128: -400 | GO128: -400 | HX128: 651 | HY128: -651
A129: Kuntayhtymä Kaksineuvoinen | B129: 72658 | D129: 0.8365663524 | E129: 64.8 | F129: -2831 | J129: 50.9 | K129: 294 | L129: 17 | M129: 5632.040813 | N129: 40832 | O129: 94800 | P129: 94255 | Q129: 545 | X129: 547 | Y129: 545 | AR129: 832 | AT129: 166 | AW129: 0.4493518338 | AX129: 72.6 | AY129: -3276 | BC129: 48.1 | BD129: 311 | BE129: 17 | BF129: 6503.93516 | BG129: 36403 | BH129: 90058 | BI129: 89503 | BJ129: 555 | BQ129: 562 | BR129: 560 | CM129: 704 | CZ129: 36419 | DA129: 90622 | DB129: 90056 | DC129: 566 | DJ129: 572 | DK129: 567 | ED129: 700 | EF129: 115 | ES129: 37148 | ET129: 92434 | EU129: 91857 | EV129: 577 | FC129: 583 | FD129: 579 | FW129: 700 | FY129: 43893 | FZ129: 43896 | GA129: 43896 | GB129: 45305 | GF129: -649 | GI129: -635 | GL129: -927 | GO129: -700 | HX129: 21416 | HY129: -21416
A130: Itä-Suomen laboratoriokeskuksen liikelaitoskuntayhtymä ISLAB | B130: 14692 | D130: 1.005638474 | E130: 44.5 | F130: -2067 | J130: 54.2 | K130: 327 | L130: 18 | M130: 5717.962836 | N130: 26840 | O130: 62961 | P130: 62219 | Q130: 742 | X130: 600 | Y130: 550 | AR130: 616 | AT130: 200 | AW130: 0.8353879623 | AX130: 50.2 | AY130: -2503 | BC130: 48.8 | BD130: 289 | BE130: 15 | BF130: 6880.750853 | BG130: 26343 | BH130: 62696 | BI130: 62151 | BJ130: 545 | BQ130: 532 | BR130: 550 | CM130: 621 | CZ130: 26406 | DA130: 62706 | DB130: 62247 | DC130: 459 | DJ130: 443 | DK130: 550 | ED130: 621 | EF130: 223 | ES130: 26406 | ET130: 60706 | EU130: 62247 | EV130: -1541 | FC130: 443 | FD130: 550 | FW130: 621 | FY130: 16469 | FZ130: 16538 | GA130: 16538 | GB130: 16509 | GF130: -800 | GI130: -734 | GL130: -800 | GO130: -800 | HX130: 2937 | HY130: -2937
A131: Peruspalvelukuntayhtymä Kallio | B131: 18588 | D131: 36.88505747 | E131: 43.1 | F131: -2067 | J131: 43.1 | K131: 26 | L131: 2 | M131: 5187.356448 | N131: 52989 | O131: 139450 | P131: 138875 | Q131: 575 | X131: 574 | Y131: 574 | AR131: 990 | AT131: 218 | AW131: 9.008810573 | AX131: 51.4 | AY131: -2590 | BC131: 36.6 | BD131: 30 | BE131: 2 | BF131: 6038.417835 | BG131: 53191 | BH131: 140820 | BI131: 140249 | BJ131: 571 | BQ131: 570 | BR131: 570 | CM131: 990 | CZ131: 54255 | DA131: 143636 | DB131: 143054 | DC131: 582 | DJ131: 581 | DK131: 581 | ED131: 990 | EF131: 254 | ES131: 55340 | ET131: 146509 | EU131: 145915 | EV131: 594 | FC131: 593 | FD131: 593 | FW131: 990 | FY131: 60315 | FZ131: 61572 | GA131: 61572 | GB131: 64059 | GF131: -1240 | GI131: -1240 | GL131: -1240 | GO131: -1240 | HX131: 63 | HY131: -63
A132: Perusturvakuntayhtymä Karviainen | B132: 3130 | D132: 2.702830189 | E132: 13.4 | F132: -240 | J132: 78.9 | K132: 322 | L132: 22 | M132: 6704.693611 | N132: 24384 | O132: 85349 | P132: 85080 | Q132: 269 | X132: 269 | Y132: 269 | AR132: 481 | AT132: 232 | AW132: 0 | AX132: 25.5 | AY132: -1096 | BC132: 64.9 | BD132: 96 | BE132: 6 | BF132: 6218.045113 | BG132: 24266 | BH132: 116234 | BI132: 115965 | BJ132: 269 | BQ132: 269 | BR132: 269 | CM132: 454 | CZ132: 24387 | DA132: 116814 | DB132: 116545 | DC132: 269 | DJ132: 269 | DK132: 269 | ED132: 444 | EF132: 148 | ES132: 24509 | ET132: 117397 | EU132: 117128 | EV132: 269 | FC132: 269 | FD132: 269 | FW132: 444 | FY132: 45060 | FZ132: 76739 | GA132: 76739 | GB132: 77509 | GF132: -629 | GI132: -365 | GL132: -114 | GO132: -114 | HX132: 110 | HY132: -110
A133: Suupohjan peruspalveluliikelaitoskuntayhtymä | B133: 21829 | D133: 1.609417741 | E133: 43.2 | F133: -1746 | J133: 55.4 | K133: 415 | L133: 24 | M133: 5426.129835 | N133: 37230 | O133: 98971 | P133: 98610 | Q133: 361 | X133: 361 | Y133: 366 | AR133: 940 | AT133: 77 | AW133: 0.977874818 | AX133: 48.4 | AY133: -2278 | BC133: 51.2 | BD133: 171 | BE133: 9 | BF133: 6753.63806 | BG133: 37498 | BH133: 98925 | BI133: 98564 | BJ133: 361 | BQ133: 361 | BR133: 361 | CM133: 930 | CZ133: 37498 | DA133: 98925 | DB133: 98564 | DC133: 361 | DJ133: 361 | DK133: 361 | ED133: 930 | EF133: 86 | ES133: 37498 | ET133: 98925 | EU133: 98564 | EV133: 361 | FC133: 361 | FD133: 361 | FW133: 930 | FY133: 47612 | FZ133: 46841 | GA133: 46841 | GB133: 46841 | GF133: -862 | GI133: -707 | GL133: -360 | GO133: -360 | HX133: 5084 | HY133: -5084
A134: JIK-peruspalveluliikelaitoskuntayhtymä | B134: 10170 | D134: 4.271442987 | E134: 18.9 | F134: -498 | J134: 80.4 | K134: 426 | L134: 25 | M134: 6669.101394 | N134: 41152 | O134: 111623 | P134: 110842 | Q134: 781 | X134: 833 | Y134: 833 | AR134: 928 | AT134: 86 | AW134: 1.429778247 | AX134: 21.5 | AY134: -858 | BC134: 77.1 | BD134: 262 | BE134: 14 | BF134: 6709.94744 | BG134: 42359 | BH134: 118617 | BI134: 117713 | BJ134: 904 | BQ134: 960 | BR134: 960 | CM134: 956 | CZ134: 42359 | DA134: 118617 | DB134: 117713 | DC134: 904 | DJ134: 960 | DK134: 960 | ED134: 956 | EF134: 29 | ES134: 42359 | ET134: 118617 | EU134: 117713 | EV134: 904 | FC134: 960 | FD134: 960 | FW134: 956 | FY134: 56743 | FZ134: 59519 | GA134: 59519 | GB134: 59519 | GF134: -1103 | GI134: -1197 | GL134: -580 | GO134: -285 | HX134: 611 | HY134: -611
A135: Pohjois-Satakunnan peruspalveluliikelaitos kuntayhtymä (PoSa) | B135: 818 | D135: 0.9264705882 | E135: 42.6 | F135: -1583 | J135: 70.7 | K135: 694 | L135: 28 | M135: 18613.93152 | N135: 29024 | O135: 58017 | P135: 57689 | Q135: 328 | X135: 333 | Y135: 320 | AR135: 592 | AT135: 38 | AW135: 0.3773234201 | AX135: 36.6 | AY135: -1596 | BC135: 73.8 | BD135: 380 | BE135: 15 | BF135: 9013.173653 | BG135: 28412 | BH135: 57632 | BI135: 57365 | BJ135: 267 | BQ135: 270 | BR135: 264 | CM135: 578 | CZ135: 28696 | DA135: 58077 | DB135: 57993 | DC135: 84 | DJ135: 283 | DK135: 267 | ED135: 570 | EF135: 133 | ES135: 28985 | ET135: 58658 | EU135: 58568 | EV135: 90 | FC135: 290 | FD135: 270 | FW135: 560 | FY135: 20639 | FZ135: 20880 | GA135: 20880 | GB135: 21334 | GF135: -592 | GI135: -487 | GL135: -336 | GO135: -245 | HX135: 502 | HY135: -502
A136: Rannikko-Pohjanmaan sosiaali- ja perusterveydenhuollon ky. | B136: 12303 | D136: 2.467940814 | E136: 30.2 | F136: -1011 | J136: 65.5 | K136: 703 | L136: 35 | M136: 7815.176798 | N136: 2887 | O136: 4153 | P136: 4095 | Q136: 58 | X136: 57 | Y136: 57 | AR136: 47 | AT136: 129 | AW136: 0.4363698396 | AX136: 34.1 | AY136: -1410 | BC136: 60.5 | BD136: 736 | BE136: 34 | BF136: 7869.828212 | BG136: 2672 | BH136: 3772 | BI136: 3738 | BJ136: 34 | BQ136: 31 | BR136: 31 | CM136: 47 | CZ136: 2840 | DA136: 3941 | DB136: 3937 | DC136: 4 | DJ136: 0 | DK136: 0 | ED136: 50 | EF136: 211 | ES136: 2865 | ET136: 3971 | EU136: 3967 | EV136: 4 | FW136: 50 | FY136: 873 | FZ136: 756 | GA136: 756 | GB136: 773 | HX136: 1317 | HY136: -1317
A137: Peruspalvelukuntayhtymä Selänne | B137: 17172 | D137: 1.247852761 | E137: 51.3 | F137: -2306 | J137: 44 | K137: 112 | L137: 7 | M137: 5373.337328 | N137: 36679 | O137: 91567 | P137: 91269 | Q137: 298 | X137: 332 | Y137: 332 | AR137: 880 | AT137: 198 | AW137: 0.6285504407 | AX137: 56.8 | AY137: -2540 | BC137: 39.1 | BD137: 106 | BE137: 7 | BF137: 5808.905598 | BG137: 31647 | BH137: 77838 | BI137: 77587 | BJ137: 251 | BQ137: 275 | BR137: 275 | CM137: 783 | CZ137: 32597 | DA137: 80173 | DB137: 79914 | DC137: 259 | DJ137: 284 | DK137: 284 | ED137: 780 | EF137: 181 | ES137: 33575 | ET137: 82578 | EU137: 82312 | EV137: 266 | FC137: 292 | FD137: 292 | FW137: 780 | FY137: 42460 | FZ137: 35603 | GA137: 35603 | GB137: 37771 | GF137: -737 | GI137: -355 | GL137: -200 | GO137: -200 | HX137: 2603 | HY137: -2603
A138: Liikelaitoskuntayhtymä Meri-Lapin kuntapalvelut | B138: 9577 | D138: 1.755855608 | E138: 47 | F138: -2176 | J138: 59.1 | K138: 129 | L138: 7 | M138: 7512.439983 | N138: 2865 | O138: 6609 | P138: 6467 | Q138: 142 | Y138: 140 | AR138: 92 | AT138: 36 | AW138: 1.456375839 | AX138: 47.9 | AY138: -2157 | BC138: 58.6 | BD138: 140 | BE138: 8 | BF138: 6381.573367 | BG138: 2966 | BH138: 7050 | BI138: 6929 | BJ138: 121 | BR138: 120 | CM138: 97 | CZ138: 2995 | DA138: 7071 | DB138: 7036 | DC138: 35 | DK138: 30 | ED138: 96 | EF138: 19 | ES138: 3025 | ET138: 7177 | EU138: 7144 | EV138: 33 | FD138: 30 | FW138: 95 | FY138: 762 | FZ138: 787 | GA138: 787 | GB138: 819 | GX138: 200 | HB138: 100 | HX138: 1949 | HY138: -1949
A139: Ylä-Savon SOTE kuntayhtymä | B139: 12396 | D139: 0.7538153615 | E139: 41.3 | F139: -2569 | J139: 30.3 | K139: 209 | L139: 10 | M139: 8410.711379 | N139: 65128 | O139: 157664 | P139: 156044 | Q139: 1620 | X139: 1328 | Y139: 1528 | AR139: 1255 | AT139: 209 | AW139: -0.3228718831 | AX139: 48.1 | AY139: -2972 | BC139: 21.4 | BD139: 275 | BE139: 12 | BF139: 8390.981689 | BG139: 64693 | BH139: 159617 | BI139: 157742 | BJ139: 1875 | BQ139: 1588 | BR139: 1588 | CM139: 1267 | CZ139: 65664 | DA139: 162091 | DB139: 160108 | DC139: 1983 | DJ139: 1668 | DK139: 1668 | ED139: 1267 | EF139: 145 | ES139: 66780 | ET139: 164928 | EU139: 162830 | EV139: 2098 | FC139: 1751 | FD139: 1751 | FW139: 1267 | FY139: 70159 | FZ139: 72122 | GA139: 72122 | GB139: 74448 | GE139: 1250 | GF139: -1374 | GI139: -2638 | GL139: -2424 | GO139: -1021 | GX139: 1816 | HB139: 2777 | HF139: 3234 | HJ139: 2784 | HX139: 3322 | HY139: -3322
A140: Perusturvakuntayhtymä Akseli | B140: 47703 | D140: 1.873370577 | E140: 35.7 | F140: -1831 | J140: 59.4 | K140: 111 | L140: 6 | M140: 6063.333837 | N140: 23216 | O140: 46087 | P140: 45925 | Q140: 162 | X140: 160 | Y140: 163 | AR140: 560 | AT140: 150 | AW140: 0.3860826098 | AX140: 39.2 | AY140: -2143 | BC140: 54.9 | BD140: 109 | BE140: 6 | BF140: 6899.608571 | BG140: 22702 | BH140: 45456 | BI140: 45249 | BJ140: 207 | BQ140: 204 | BR140: 204 | CM140: 550 | CZ140: 22702 | DA140: 45456 | DB140: 45249 | DC140: 207 | DJ140: 204 | ED140: 550 | EF140: 194 | ES140: 22702 | ET140: 45456 | EU140: 45249 | EV140: 207 | FC140: 204 | FW140: 550 | FY140: 15332 | FZ140: 15261 | GA140: 15261 | GB140: 15261 | GF140: -249 | GI140: -232 | HX140: 5677 | HY140: -5677
A141: Itä-Suomen huoltopalvelut liikelaitoskuntayhtymä | B141: 16700 | D141: 0.5448251584 | E141: 37.7 | F141: -2136 | J141: 52.2 | K141: 155 | L141: 8 | M141: 6582.680437 | N141: 40370 | O141: 72524 | P141: 73333 | Q141: -809 | X141: -1049 | Y141: 1451 | AR141: 1231 | AT141: 163 | AW141: -0.1151903652 | AX141: 47.2 | AY141: -2641 | BC141: 44.5 | BD141: 197 | BE141: 10 | BF141: 7381.25112 | BG141: 40090 | BH141: 75745 | BI141: 74099 | BJ141: 1646 | BQ141: 1291 | BR141: 2166 | CM141: 1210 | CZ141: 40914 | DA141: 78194 | DB141: 74863 | DC141: 3331 | DJ141: 2964 | DK141: 2155 | ED141: 1200 | EF141: 106 | ES141: 42052 | ET141: 81024 | EU141: 77445 | EV141: 3579 | FC141: 3212 | FD141: 2185 | FW141: 1200 | FY141: 6432 | FZ141: 6630 | GA141: 6630 | GB141: 6945 | GF141: -1262 | GG141: 2700 | GI141: -7287 | GJ141: 4300 | GL141: -780 | GO141: -745 | GX141: 14980 | HB141: 14140 | HF141: 12452 | HJ141: 10764 | HX141: 8094 | HY141: -8094
A142: Malmin kiinteistöt ky | B142: 8341 | D142: 0.9135723431 | E142: 49.6 | F142: -2384 | J142: 49.8 | K142: 93 | L142: 6 | M142: 5800.644622 | AT142: 71 | AW142: 0.6659110724 | AX142: 44.8 | AY142: -2195 | BC142: 53.8 | BD142: 141 | BE142: 8 | BF142: 6073.536468 | EF142: 96 | HX142: 3878 | HY142: -3878
A143: Pohjois-Karjalan maakuntaliitto | B143: 15493 | D143: 2.225886232 | E143: 27.7 | F143: -1229 | J143: 61.7 | K143: 462 | L143: 23 | M143: 6801.50463 | AT143: 33 | AW143: 1.676842684 | AX143: 25.3 | AY143: -1169 | BC143: 63.6 | BD143: 372 | BE143: 18 | BF143: 7661.060635 | EF143: 41 | HX143: 3602 | HY143: -3602
A144: Kuntayhtymä Raision-Naantalin vesilaitos | B144: 763 | D144: 0.8879310345 | E144: 40.4 | F144: -2132 | J144: 53.8 | K144: 137 | L144: 6 | M144: 8509.975062 | AT144: 241 | AW144: 0.1782178218 | AX144: 44.5 | AY144: -2798 | BC144: 49.6 | BD144: 348 | BE144: 14 | BF144: 9278.137128 | EF144: 100 | HX144: 138 | HY144: -138
A145: Kainuun Jätehuollon ky. | B145: 2084 | D145: 0.6283367556 | E145: 45.6 | F145: -2222 | J145: 49.6 | K145: 42 | L145: 3 | M145: 7401.08002 | AT145: 257 | AW145: 2.179551122 | AX145: 40 | AY145: -1988 | BC145: 52.9 | BD145: 57 | BE145: 4 | BF145: 5814.958718 | EF145: 242 | HX145: 318 | HY145: -318
B146: 5065 | D146: 0.3223635004 | E146: 58 | F146: -1372 | J146: 53.7 | K146: 1176 | L146: 72 | M146: 5473.684211 | AT146: 251 | AW146: 1.409530387 | AX146: 58.7 | AY146: -1305 | BC146: 52.8 | BD146: 1475 | BE146: 91 | BF146: 5916.834474 | EF146: 186 | HX146: 1337 | HY146: -1337
B147: 4992 | E147: 10.3 | F147: 3571 | J147: 92.4 | K147: 3255 | L147: 209 | M147: 5678.257472 | AT147: 102 | AX147: 10.3 | AY147: 3340 | BC147: 92.2 | BD147: 3375 | BE147: 193 | BF147: 6389.287137 | EF147: 76 | HX147: 0 | HY147: 0
B148: 3355 | D148: 0.424863388 | E148: 42.6 | F148: -1718 | J148: 49.6 | K148: 199 | L148: 13 | M148: 6406.50164 | AT148: 305 | AW148: -0.00390625 | AX148: 44.8 | AY148: -1992 | BC148: 45.3 | BD148: 83 | BE148: 5 | BF148: 5733.333333 | EF148: 283 | HX148: 515 | HY148: -515
B149: 5580 | D149: 2.445528455 | E149: 41.3 | F149: -2313 | J149: 54.1 | K149: 188 | L149: 9 | M149: 10071.85629 | AT149: 157 | AW149: 1.061668682 | AX149: 41 | AY149: -2528 | BC149: 52 | BD149: 128 | BE149: 6 | BF149: 7801.825994 | EF149: 266 | HX149: 597 | HY149: -597
B150: 2056 | D150: 1.651026393 | E150: 17.3 | F150: -634 | J150: 81.1 | K150: 90 | L150: 5 | M150: 4905.477308 | AT150: 171 | AW150: -1.167192429 | AX150: 32.9 | AY150: -1214 | BC150: 67.7 | BD150: 303 | BE150: 18 | BF150: 6304.412494 | EF150: 219 | HX150: 251 | HY150: -251
B151: 9729 | D151: 0.8767263427 | E151: 73.8 | F151: -3177 | J151: 41 | K151: 93 | L151: 6 | M151: 60072.56047 | AT151: 219 | AW151: 0.00157294534 | AX151: 75.2 | AY151: -3373 | BC151: 36.7 | BD151: 189 | BE151: 12 | BF151: 5773.13618 | EF151: 259 | HX151: 1909 | HY151: -1909
B152: 1153 | D152: 1.309711286 | E152: 53.8 | F152: -1425 | J152: 61.2 | K152: 1882 | L152: 100 | M152: 9552.058111 | AT152: 73 | AW152: 1.215517241 | AX152: 52.6 | AY152: -1324 | BC152: 62.5 | BD152: 2063 | BE152: 104 | BF152: 7253.401361 | EF152: 61 | HX152: 373 | HY152: -373
B153: 3226 | D153: 1.186213071 | E153: 18.8 | F153: -257 | J153: 80.4 | K153: 702 | L153: 37 | M153: 10559.24389 | AT153: 133 | AW153: 1.285714286 | AX153: 15.8 | AY153: -522 | BC153: 83.2 | BD153: 113 | BE153: 5 | BF153: 7895.074946 | EF153: 12 | HX153: 322 | HY153: -322
B154: 2145 | D154: 1.508706468 | E154: 14 | F154: 485 | J154: 80.7 | K154: 1548 | L154: 54 | M154: 6373.361686 | AT154: 170 | AW154: 2.72972973 | AX154: 17.3 | AY154: 315 | BC154: 76.3 | BD154: 1834 | BE154: 59 | BF154: 11315.11254 | EF154: 157 | HX154: 105 | HY154: -105
B155: 54635 | D155: 0.5923083556 | E155: 66.8 | F155: -3480 | J155: 49.6 | K155: 320 | L155: 15 | M155: 7853.63116 | AT155: 139 | AW155: 0.6857565439 | AX155: 59.2 | AY155: -3424 | BC155: 51.1 | BD155: 2 | BE155: 0 | BF155: 8200.686106 | EF155: 163 | HX155: 23127 | HY155: -23127
B156: 8998 | D156: 1.094129816 | E156: 50.4 | F156: -2185 | J156: 48.5 | K156: 366 | L156: 18 | M156: 11717.92095 | AT156: 55 | AW156: 0.6985482494 | AX156: 52.7 | AY156: -2519 | BC156: 47.1 | BD156: 316 | BE156: 14 | BF156: 7990.612427 | EF156: 51 | HX156: 3680 | HY156: -3680
B157: 1777 | D157: 0.4003724395 | E157: 41.4 | F157: -2408 | J157: 37.8 | K157: 162 | L157: 7 | M157: 8951.034192 | AT157: 295 | AW157: 0.115902965 | AX157: 40.1 | AY157: -2382 | BC157: 35.5 | BD157: 313 | BE157: 13 | BF157: 8902.53304 | EF157: 45 | GD157: 250 | GE157: 240 | HX157: 562 | HY157: -562
B158: 2383 | D158: 0.5592476489 | E158: 49 | F158: -3020 | J158: 26.5 | K158: 120 | L158: 6 | M158: 5764.362943 | AT158: 195 | AW158: 0.2412723041 | AX158: 53.5 | AY158: -3368 | BC158: 22 | BD158: 103 | BE158: 5 | BF158: 8058.897243 | EF158: 282 | HX158: 1194 | HY158: -1194
B159: 19153 | D159: 2.458382181 | E159: 46.1 | F159: -1834 | J159: 52.3 | K159: 300 | L159: 17 | M159: 6766.899767 | AT159: 189 | AW159: 1.304812834 | AX159: 53.7 | AY159: -2731 | BC159: 45.7 | BD159: 253 | BE159: 13 | BF159: 7183.936461 | EF159: 188 | HX159: 1610 | HY159: -1610
B160: 9572 | D160: 0.7158980974 | E160: 50.7 | F160: -2372 | J160: 49.5 | K160: 33 | L160: 2 | M160: 5983.590254 | AT160: 174 | AW160: 0.832046332 | AX160: 48.3 | AY160: -2403 | BC160: 48.7 | BD160: 7 | BE160: 0 | BF160: 5864.980667 | EF160: 43 | HX160: 3083 | HY160: -3083
B161: 7950 | D161: 0.9383259912 | E161: 28.1 | F161: -1240 | J161: 70.4 | K161: 86 | L161: 5 | M161: 8018.426295 | AT161: 240 | AW161: 0.03544494721 | AX161: 31.9 | AY161: -1479 | BC161: 65.7 | BD161: 130 | BE161: 8 | BF161: 6095.638005 | EF161: 245 | HX161: 1263 | HY161: -1263
B162: 1987 | D162: 3.474056604 | E162: 20.8 | F162: 374 | J162: 79 | K162: 1355 | L162: 89 | M162: 6260.692464 | AT162: 29 | AW162: 5.666666667 | AX162: 23.3 | AY162: -61 | BC162: 76.8 | BD162: 1080 | BE162: 63 | BF162: 6259.036145 | EF162: 279 | HX162: 33 | HY162: -33
B163: 20534 | D163: 1.563591496 | E163: 52.3 | F163: -2682 | J163: 53.9 | K163: 4 | L163: 0 | M163: 7690.219314 | AT163: 78 | AW163: 0.9793594306 | AX163: 57.9 | AY163: -3139 | BC163: 50.9 | BD163: 4 | BE163: 0 | BF163: 6933.294267 | EF163: 69 | HX163: 4931 | HY163: -4931
B164: 10898 | D164: -0.3095930233 | E164: 36.6 | F164: -1973 | J164: 56.4 | K164: 80 | L164: 4 | M164: 6826.372595 | AT164: 300 | AW164: -0.4220907298 | AX164: 41.2 | AY164: -2430 | BC164: 49.5 | BD164: 49 | BE164: 3 | BF164: 7090.721093 | EF164: 73 | GD164: 1400 | GE164: 1000 | HX164: 2013 | HY164: -2013
B165: 6287 | D165: 0.6236979167 | E165: 53.4 | F165: -2589 | J165: 39.5 | K165: 82 | L165: 4 | M165: 6209.368873 | AT165: 283 | AW165: 2.416450216 | AX165: 49.4 | AY165: -2333 | BC165: 41.5 | BD165: 347 | BE165: 19 | BF165: 6778.949025 | EF165: 59 | HX165: 328 | HY165: -328
B166: 18859 | D166: 5.033530572 | E166: 52.3 | F166: -2730 | J166: 58.5 | K166: 154 | L166: 8 | M166: 7328.719723 | AT166: 88 | AW166: 5.353016688 | AX166: 59.7 | AY166: -3016 | BC166: 53.6 | BD166: 384 | BE166: 21 | BF166: 6681.948576 | EF166: 17 | HX166: 735 | HY166: -735
B167: 5706 | D167: 2.302425107 | E167: 18.8 | F167: -398 | J167: 73.4 | K167: 365 | L167: 24 | M167: 6022.093565 | AT167: 183 | AW167: -0.1050228311 | AX167: 25.4 | AY167: -779 | BC167: 65.2 | BD167: 396 | BE167: 24 | BF167: 6018.270402 | EF167: 221 | HX167: 402 | HY167: -402
B168: 14985 | D168: 1.504492512 | E168: 44.6 | F168: -2014 | J168: 58.5 | K168: 109 | L168: 7 | M168: 6516.848746 | AT168: 30 | AW168: 0.6575034578 | AX168: 54.3 | AY168: -2584 | BC168: 53.1 | BD168: 128 | BE168: 8 | BF168: 6094.019361 | EF168: 218 | HX168: 5054 | HY168: -5054
B169: 10942 | D169: 0.1257238647 | E169: 72.5 | F169: -2706 | J169: 43.4 | K169: 1609 | L169: 79 | M169: 5282.973546 | AT169: 259 | AW169: 0.4068123393 | AX169: 79.3 | AY169: -3222 | BC169: 40.3 | BD169: 1595 | BE169: 75 | BF169: 7771.688666 | EF169: 198 | GC169: 1100 | HX169: 6414 | HY169: -6414
B170: 32690 | D170: 1.74547605 | E170: 42.3 | F170: -1521 | J170: 60.1 | K170: 513 | L170: 33 | M170: 11080.59826 | AT170: 54 | AW170: 1.671408535 | AX170: 41.6 | AY170: -1487 | BC170: 53.8 | BD170: 607 | BE170: 38 | BF170: 5880.540273 | EF170: 46 | HX170: 8256 | HY170: -8256
B171: 4872 | D171: 0.5048543689 | E171: 50.3 | F171: -2450 | J171: 52.2 | K171: 2 | L171: 0 | M171: 6310.42885 | AT171: 260 | AW171: 0 | AX171: 50.9 | AY171: -2501 | BC171: 49.3 | BD171: 3 | BE171: 0 | BF171: 5903.012794 | EF171: 227 | HX171: 775 | HY171: -775
B172: 8191 | D172: 2.699651568 | E172: 29.1 | F172: -368 | J172: 69.9 | K172: 992 | L172: 49 | M172: 4962.229547 | AT172: 64 | AW172: 1.035044423 | AX172: 25.8 | AY172: -702 | BC172: 72.3 | BD172: 493 | BE172: 24 | BF172: 7498.675975 | EF172: 155 | HX172: 1157 | HY172: -1157
B173: 41178 | D173: 1.945399393 | E173: 50.1 | F173: -1872 | J173: 55.1 | K173: 511 | L173: 33 | M173: 6895.665108 | AT173: 51 | AW173: 1.155687457 | AX173: 55.7 | AY173: -2191 | BC173: 52.5 | BD173: 544 | BE173: 33 | BF173: 6031.38584 | EF173: 121 | HX173: 9170 | HY173: -9170
B174: 9335 | D174: 1.645678306 | E174: 32.2 | F174: -266 | J174: 66.7 | K174: 1276 | L174: 70 | M174: 5426.476877 | AT174: 123 | AW174: 0.6506348596 | AX174: 39 | AY174: -751 | BC174: 61.6 | BD174: 1214 | BE174: 60 | BF174: 7402.665245 | EF174: 167 | HX174: 1743 | HY174: -1743
B175: 16347 | D175: 1.885498108 | E175: 37.8 | F175: -1600 | J175: 57 | K175: 282 | L175: 18 | M175: 101075.9494 | AT175: 61 | AW175: 0.8901923979 | AX175: 38.9 | AY175: -1884 | BC175: 56.3 | BD175: 167 | BE175: 10 | BF175: 6346.01227 | EF175: 199 | HX175: 3606 | HY175: -3606
B176: 1423 | D176: 0.9597701149 | E176: 20.7 | F176: 79 | J176: 76.2 | K176: 795 | L176: 47 | M176: 6834.202294 | AT176: 278 | AW176: -1.208791209 | AX176: 31.1 | AY176: -1162 | BC176: 65.2 | BD176: 36 | BE176: 2 | BF176: 7290.794979 | EF176: 143 | HX176: 52 | HY176: -52
B177: 9630 | D177: 1.240855275 | E177: 34.4 | F177: -1038 | J177: 61.7 | K177: 653 | L177: 37 | M177: 7371.526023 | AT177: 101 | AW177: -0.5386586929 | AX177: 44.5 | AY177: -1824 | BC177: 51.5 | BD177: 543 | BE177: 27 | BF177: 7317.208233 | EF177: 295 | HX177: 1919 | HY177: -1919
B178: 7772 | D178: 0.3275535939 | E178: 53.2 | F178: -1964 | J178: 49.9 | K178: 1410 | L178: 69 | M178: 6524.505069 | AT178: 258 | AW178: 0.7316068275 | AX178: 59 | AY178: -1882 | BC178: 49.5 | BD178: 1618 | BE178: 84 | BF178: 7011.596789 | EF178: 172 | HX178: 2649 | HY178: -2649
B179: 193798 | D179: 5.249181591 | E179: 45.6 | F179: -831 | J179: 73.3 | K179: 1249 | L179: 61 | M179: 5396.684065 | AT179: 25 | AW179: 1.987443496 | AX179: 42.7 | AY179: -1519 | BC179: 70.9 | BD179: 821 | BE179: 33 | BF179: 9121.175916 | EF179: 83 | HX179: 15208 | HY179: -15208
B180: 7262 | D180: 0.6511811024 | E180: 44.2 | F180: -2088 | J180: 51.3 | K180: 255 | L180: 14 | M180: 6910.952805 | AT180: 244 | AW180: -0.2055666004 | AX180: 46.2 | AY180: -2447 | BC180: 46.9 | BD180: 183 | BE180: 10 | BF180: 6877.434291 | EF180: 88 | GE180: 960 | HX180: 1862 | HY180: -1862
B181: 3279 | D181: 0.8527454243 | E181: 55.9 | F181: -1111 | J181: 63.4 | K181: 2063 | L181: 108 | M181: 6266.832203 | AT181: 66 | AW181: 0.8016898608 | AX181: 55.8 | AY181: -1046 | BC181: 63.2 | BD181: 2197 | BE181: 114 | BF181: 7030.003 | EF181: 93 | HX181: 1794 | HY181: -1794
B182: 10590 | D182: 0.63072 | E182: 75.1 | F182: -3571 | J182: 22.3 | K182: 177 | L182: 11 | M182: 6749.408983 | AT182: 228 | AW182: 0.8968583284 | AX182: 71.5 | AY182: -3636 | BC182: 21.8 | BD182: 63 | BE182: 4 | BF182: 5818.714002 | EF182: 257 | GC182: 1100 | HX182: 2808 | HY182: -2808
B183: 3620 | D183: 0.7663280116 | E183: 51.4 | F183: -1897 | J183: 44.3 | K183: 1165 | L183: 60 | M183: 6492.744276 | AT183: 154 | AW183: 0.4060568603 | AX183: 62.6 | AY183: -2708 | BC183: 38.4 | BD183: 1159 | BE183: 56 | BF183: 7516.163505 | EF183: 119 | HX183: 1344 | HY183: -1344
B184: 15507 | D184: 1.939278132 | E184: 52.1 | F184: -2936 | J184: 54.1 | K184: 78 | L184: 4 | M184: 8472.746705 | AT184: 145 | AW184: 0.9082311734 | AX184: 56.4 | AY184: -3267 | BC184: 51.2 | BD184: 110 | BE184: 5 | BF184: 7361.416361 | EF184: 75 | HX184: 2092 | HY184: -2092
B185: 5509 | D185: 1.368932039 | E185: 15.1 | F185: -227 | J185: 80.2 | K185: 258 | L185: 13 | M185: 7607.874294 | AT185: 217 | AW185: 0.2243902439 | AX185: 17.3 | AY185: -485 | BC185: 77.7 | BD185: 181 | BE185: 9 | BF185: 7683.598641 | EF185: 98 | HX185: 649 | HY185: =HX185*-1 -> -649
B186: 6836 | D186: 2.676870748 | E186: 34.5 | F186: -1116 | J186: 59.8 | K186: 670 | L186: 41 | M186: 6969.492982 | AT186: 70 | AW186: 1.170752325 | AX186: 34.6 | AY186: -1613 | BC186: 59.2 | BD186: 210 | BE186: 11 | BF186: 6830.586875 | EF186: 224 | HX186: 954 | HY186: -954
B187: 10970 | D187: 1.309911454 | E187: 36 | F187: -1368 | J187: 58.1 | K187: 286 | L187: 16 | M187: 8680.899698 | AT187: 175 | AW187: 0.4409005629 | AX187: 47.6 | AY187: -1939 | BC187: 49.6 | BD187: 583 | BE187: 30 | BF187: 7010.511883 | EF187: 79 | HX187: 1465 | HY187: -1465
B188: 966 | D188: 1.513184584 | E188: 47 | F188: -2679 | J188: 59.9 | K188: 1255 | L188: 46 | M188: 9930.113052 | AT188: 14 | AW188: 0.997983871 | AX188: 44 | AY188: -2828 | BC188: 61.6 | BD188: 923 | BE188: 33 | BF188: 10352.02492 | EF188: 202 | HX188: 433 | HY188: -433
B189: 3739 | D189: 2.910344828 | E189: 26.3 | F189: -709 | J189: 68.3 | K189: 993 | L189: 50 | M189: 11914.11043 | AT189: 10 | AW189: 0.6909620991 | AX189: 25.6 | AY189: -1142 | BC189: 68.6 | BD189: 588 | BE189: 25 | BF189: 8741.031684 | EF189: 184 | HX189: 946 | HY189: -946
B190: 2923 | D190: 1.126293996 | E190: 38 | F190: -447 | J190: 63.2 | K190: 1798 | L190: 81 | M190: 7528.522337 | AT190: 124 | AW190: 1.485422741 | AX190: 41.9 | AY190: -952 | BC190: 60.5 | BD190: 1591 | BE190: 71 | BF190: 8158.056791 | EF190: 128 | HX190: 755 | HY190: -755
B191: 1842 | D191: 2.572890026 | E191: 47.8 | F191: -1883 | J191: 52.3 | K191: 939 | L191: 50 | M191: 8115.706806 | AT191: 44 | AW191: 0.6286549708 | AX191: 48.8 | AY191: -2265 | BC191: 50.3 | BD191: 737 | BE191: 37 | BF191: 7355.950458 | EF191: 258 | HX191: 305 | HY191: -305
B192: 4125 | D192: 1.040785498 | E192: 47.2 | F192: -1201 | J192: 62.6 | K192: 1232 | L192: 67 | M192: 6091.02091 | AT192: 233 | AW192: -0.2326869806 | AX192: 50.1 | AY192: -1565 | BC192: 58.6 | BD192: 1256 | BE192: 69 | BF192: 6608.302808 | EF192: 248 | HX192: 596 | HY192: -596
B193: 19288 | D193: 0.1160714286 | E193: 48.5 | F193: -2624 | J193: 51.4 | K193: 111 | L193: 6 | M193: 6422.335025 | AT193: 275 | AW193: 0.5067942318 | AX193: 52.4 | AY193: -3072 | BC193: 48.5 | BD193: 19 | BE193: 1 | BF193: 7239.707322 | EF193: 264 | HX193: 6568 | HY193: -6568
B194: 4824 | D194: 0.9847972973 | E194: 23.7 | F194: -899 | J194: 69.5 | K194: 588 | L194: 31 | M194: 9086.296444 | AT194: 230 | AW194: 0.3271665044 | AX194: 23.6 | AY194: -1135 | BC194: 67.5 | BD194: 267 | BE194: 13 | BF194: 7649.614292 | EF194: 136 | HX194: 809 | HY194: -809
B195: 19633 | D195: 0.6082935101 | E195: 64.9 | F195: -5213 | J195: 33.8 | K195: 906 | L195: 27 | M195: 10731.4376 | AT195: 75 | AW195: 0.4419369113 | AX195: 66.6 | AY195: -5569 | BC195: 32 | BD195: 797 | BE195: 24 | BF195: 12339.17683 | EF195: 89 | HX195: 12832 | HY195: -12832
B196: 4354 | D196: -0.3230921705 | E196: 50.8 | F196: -1198 | J196: 56.1 | K196: 1854 | L196: 87 | M196: 7753.333333 | AT196: 309 | AW196: 1.520399667 | AX196: 43.8 | AY196: -1694 | BC196: 53.6 | BD196: 2098 | BE196: 67 | BF196: 11476.01891 | EF196: 50 | GD196: 600 | HX196: 742 | HY196: -742
B197: 18369 | D197: 1.415825311 | E197: 52.8 | F197: -2536 | J197: 55 | K197: 14 | L197: 1 | M197: 5940.719473 | AT197: 24 | AW197: 1.251440277 | AX197: 61 | AY197: -2778 | BC197: 51.9 | BD197: 242 | BE197: 14 | BF197: 6311.948367 | EF197: 20 | HX197: 6822 | HY197: -6822
B198: 4664 | D198: 6.363636364 | E198: 25.4 | F198: 365 | J198: 76.8 | K198: 1390 | L198: 78 | M198: 6485.977396 | AT198: 39 | AW198: 3.746527778 | AX198: 21.6 | AY198: 445 | BC198: 80 | BD198: 1341 | BE198: 76 | BF198: 6447.123519 | EF198: 65 | HX198: 329 | HY198: -329
B199: 2340 | D199: 1.116504854 | E199: 30.1 | F199: -1531 | J199: 59.1 | K199: 68 | L199: 4 | M199: 6589.648033 | AT199: 245 | AW199: 0.718875502 | AX199: 28.3 | AY199: -1501 | BC199: 58.7 | BD199: 81 | BE199: 4 | BF199: 6913.611462 | EF199: 13 | HX199: 244 | HY199: -244
B200: 83497 | D200: 0.912708327 | E200: 42.9 | F200: -2643 | J200: 63.5 | K200: 76 | L200: 3 | M200: 8594.445046 | AT200: 121 | AW200: 0.8252262606 | AX200: 50.8 | AY200: -3087 | BC200: 60.5 | BD200: 217 | BE200: 9 | BF200: 8474.539233 | EF200: 60 | HX200: 28427 | HY200: -28427
... 105 more rows
